Transaction Date,Local Authority Department,Beneficiary,Purpose of Expenditure,Amount (excluding VAT),Non Recoverable VAT,Merchant Category
 01-10-2023,oneSource Non-Shared LBH,Dawsongroup Environmental Municipal Civil Ltd,Vehicle Hire,2802.68,0.00,COMMERCIAL SUPPLIER 
 01-10-2023,oneSource Non-Shared LBH,Dawsongroup Environmental Municipal Civil Ltd,Vehicle Hire,2802.68,0.00,COMMERCIAL SUPPLIER 
 01-10-2023,oneSource Non-Shared LBH,Dawsongroup Environmental Municipal Civil Ltd,Vehicle Hire,2802.68,0.00,COMMERCIAL SUPPLIER 
 01-10-2023,oneSource Non-Shared LBH,Dawsongroup Environmental Municipal Civil Ltd,Vehicle Hire,2802.68,0.00,COMMERCIAL SUPPLIER 
 01-10-2023,oneSource Non-Shared LBH,Mistral Bus and Coach PLC,Vehicle Hire,3198.83,0.00,COMMERCIAL SUPPLIER 
 01-10-2023,oneSource Non-Shared LBH,Mistral Bus and Coach PLC,Vehicle Hire,3433.47,0.00,COMMERCIAL SUPPLIER 
 01-10-2023,oneSource Non-Shared LBH,Mistral Bus and Coach PLC,Vehicle Hire,2514.52,0.00,COMMERCIAL SUPPLIER 
 01-10-2023,oneSource Non-Shared LBH,Mistral Bus and Coach PLC,Vehicle Hire,2641.07,0.00,COMMERCIAL SUPPLIER 
 01-10-2023,oneSource Non-Shared LBH,Mistral Bus and Coach PLC,Vehicle Hire,3198.83,0.00,COMMERCIAL SUPPLIER 
 01-10-2023,oneSource Non-Shared LBH,Mistral Bus and Coach PLC,Vehicle Hire,4157.42,0.00,COMMERCIAL SUPPLIER 
 01-10-2023,oneSource Non-Shared LBH,Mistral Bus and Coach PLC,Vehicle Hire,2718.85,0.00,COMMERCIAL SUPPLIER 
 02-10-2023,oneSource Non-Shared LBH,South Park Heating Services Ltd,Building Alterations And Materials,743.60,0.00,CIS 
 02-10-2023,oneSource Non-Shared LBH,South Park Heating Services Ltd,Building Alterations And Materials,569.00,0.00,CIS 
 02-10-2023,oneSource Non-Shared LBH,South Park Heating Services Ltd,Building Alterations And Materials,1468.22,0.00,CIS 
 02-10-2023,oneSource Non-Shared LBH,Royal Mail Group Plc,Postage And Courier Services,701.23,0.00,COMMERCIAL SUPPLIER 
 02-10-2023,oneSource Non-Shared LBH,Sureserve Fire and Electrical Ltd,Health And Safety Works,9885.26,0.00,CIS 
 02-10-2023,oneSource Non-Shared LBH,Drainfix Services Ltd_a,Building Alterations And Materials,750.00,0.00,CIS 
 03-10-2023,oneSource Non-Shared LBH,Laker BMS Ltd,Maintenance - Equipment Furniture And Materials,720.00,0.00,COMMERCIAL SUPPLIER 
 03-10-2023,oneSource Non-Shared LBH,Romford Town Management Partnership Ltd,Consultancy Fees,10012.13,0.00,NON COMMERCIAL SUPPLIER 
 04-10-2023,oneSource Non-Shared LBH,Oracle Corporation UK Ltd,Ict Software,1500.00,0.00,COMMERCIAL SUPPLIER 
 04-10-2023,oneSource Non-Shared LBH,Oracle Corporation UK Ltd,Ict Software,8747.95,0.00,COMMERCIAL SUPPLIER 
 04-10-2023,oneSource Non-Shared LBH,Fisk Group,Catering And Vending Supplies,3465.00,0.00,COMMERCIAL SUPPLIER 
 04-10-2023,oneSource Non-Shared LBH,New Era Fuels Ltd,Purchase - Equipment Furniture And Materials,20568.54,0.00,COMMERCIAL SUPPLIER 
 04-10-2023,oneSource Non-Shared LBH,New Era Fuels Ltd,Purchase - Equipment Furniture And Materials,23011.20,0.00,COMMERCIAL SUPPLIER 
 04-10-2023,oneSource Non-Shared LBH,New Era Fuels Ltd,Purchase - Equipment Furniture And Materials,14048.34,0.00,COMMERCIAL SUPPLIER 
 04-10-2023,oneSource Non-Shared LBH,Matrix SCM Ltd,Agency Staff,538.15,0.00,COMMERCIAL SUPPLIER 
 04-10-2023,oneSource Non-Shared LBH,Matrix SCM Ltd,Agency Staff,624.35,0.00,COMMERCIAL SUPPLIER 
 04-10-2023,oneSource Non-Shared LBH,Matrix SCM Ltd,Agency Staff,1224.52,0.00,COMMERCIAL SUPPLIER 
 04-10-2023,oneSource Non-Shared LBH,Matrix SCM Ltd,Agency Staff,2217.00,0.00,COMMERCIAL SUPPLIER 
 04-10-2023,oneSource Non-Shared LBH,Matrix SCM Ltd,Agency Staff,1773.60,0.00,COMMERCIAL SUPPLIER 
 04-10-2023,oneSource Non-Shared LBH,Matrix SCM Ltd,Agency Staff,886.80,0.00,COMMERCIAL SUPPLIER 
 04-10-2023,oneSource Non-Shared LBH,Matrix SCM Ltd,Agency Staff,1174.80,0.00,COMMERCIAL SUPPLIER 
 04-10-2023,oneSource Non-Shared LBH,Matrix SCM Ltd,Agency Staff,3469.70,0.00,COMMERCIAL SUPPLIER 
 04-10-2023,oneSource Non-Shared LBH,Matrix SCM Ltd,Agency Staff,1153.14,0.00,COMMERCIAL SUPPLIER 
 04-10-2023,oneSource Non-Shared LBH,Matrix SCM Ltd,Agency Staff,530.15,0.00,COMMERCIAL SUPPLIER 
 04-10-2023,oneSource Non-Shared LBH,Matrix SCM Ltd,Agency Staff,841.51,0.00,COMMERCIAL SUPPLIER 
 04-10-2023,oneSource Non-Shared LBH,Matrix SCM Ltd,Agency Staff,679.00,0.00,COMMERCIAL SUPPLIER 
 04-10-2023,oneSource Non-Shared LBH,Matrix SCM Ltd,Agency Staff,559.60,0.00,COMMERCIAL SUPPLIER 
 04-10-2023,oneSource Non-Shared LBH,Matrix SCM Ltd,Agency Staff,547.88,0.00,COMMERCIAL SUPPLIER 
 04-10-2023,oneSource Non-Shared LBH,Matrix SCM Ltd,Agency Staff,656.54,0.00,COMMERCIAL SUPPLIER 
 04-10-2023,oneSource Non-Shared LBH,Matrix SCM Ltd,Agency Staff,521.73,0.00,COMMERCIAL SUPPLIER 
 04-10-2023,oneSource Non-Shared LBH,London Hire Ltd_a,Vehicle Hire,1054.96,0.00,COMMERCIAL SUPPLIER 
 05-10-2023,oneSource Non-Shared LBH,CPL Petroleum Ltd,Purchase - Equipment Furniture And Materials,3325.40,0.00,COMMERCIAL SUPPLIER 
 05-10-2023,oneSource Non-Shared LBH,Ezyglide Ltd,Building Alterations And Materials,965.00,0.00,CIS 
 06-10-2023,oneSource Non-Shared LBH,Allen & Hall Motor Engineers Ltd,Purchase - Equipment Furniture And Materials,1655.18,0.00,COMMERCIAL SUPPLIER 
 06-10-2023,oneSource Non-Shared LBH,Digitec Security Ltd,Security Services (Excluding Premises),4663.50,0.00,COMMERCIAL SUPPLIER 
 07-10-2023,oneSource Non-Shared LBH,Crosspath CCTV Ltd,Security Services (Excluding Premises),890.00,0.00,COMMERCIAL SUPPLIER 
 09-10-2023,oneSource Non-Shared LBH,Buildright Solutions Ltd,Maintenance - Equipment Furniture And Materials,1295.00,0.00,CIS 
 10-10-2023,oneSource Non-Shared LBH,Xylem Water Solutions UK Ltd,Professional Services - General,1396.03,0.00,COMMERCIAL SUPPLIER 
 10-10-2023,oneSource Non-Shared LBH,Xylem Water Solutions UK Ltd,Professional Services - General,2339.58,0.00,COMMERCIAL SUPPLIER 
 10-10-2023,oneSource Non-Shared LBH,D & B Motors & Sons,Purchase - Equipment Furniture And Materials,769.39,0.00,COMMERCIAL SUPPLIER 
 10-10-2023,oneSource Non-Shared LBH,London Hire Ltd_a,Vehicle Hire,1253.28,0.00,COMMERCIAL SUPPLIER 
 10-10-2023,oneSource Non-Shared LBH,London Hire Ltd_a,Vehicle Hire,726.56,0.00,COMMERCIAL SUPPLIER 
 11-10-2023,oneSource Non-Shared LBH,AT Technicians Ltd,Purchase - Equipment Furniture And Materials,677.25,0.00,COMMERCIAL SUPPLIER 
 11-10-2023,oneSource Non-Shared LBH,Governance Training and Consultancy Ltd,Consultancy Fees,1225.00,0.00,COMMERCIAL SUPPLIER 
 11-10-2023,oneSource Non-Shared LBH,Car & Commercial Components Ltd_a,Purchase - Equipment Furniture And Materials,749.99,0.00,COMMERCIAL SUPPLIER 
 11-10-2023,oneSource Non-Shared LBH,Anglian Water Business,Water And Sewerage,7597.42,0.00,COMMERCIAL SUPPLIER 
 11-10-2023,oneSource Non-Shared LBH,Matrix SCM Ltd,Agency Staff,637.16,0.00,COMMERCIAL SUPPLIER 
 11-10-2023,oneSource Non-Shared LBH,Matrix SCM Ltd,Agency Staff,655.90,0.00,COMMERCIAL SUPPLIER 
 11-10-2023,oneSource Non-Shared LBH,Matrix SCM Ltd,Agency Staff,645.40,0.00,COMMERCIAL SUPPLIER 
 11-10-2023,oneSource Non-Shared LBH,Matrix SCM Ltd,Agency Staff,521.73,0.00,COMMERCIAL SUPPLIER 
 11-10-2023,oneSource Non-Shared LBH,Matrix SCM Ltd,Agency Staff,841.51,0.00,COMMERCIAL SUPPLIER 
 11-10-2023,oneSource Non-Shared LBH,Matrix SCM Ltd,Agency Staff,580.64,0.00,COMMERCIAL SUPPLIER 
 11-10-2023,oneSource Non-Shared LBH,Matrix SCM Ltd,Agency Staff,574.54,0.00,COMMERCIAL SUPPLIER 
 11-10-2023,oneSource Non-Shared LBH,Matrix SCM Ltd,Agency Staff,500.70,0.00,COMMERCIAL SUPPLIER 
 11-10-2023,oneSource Non-Shared LBH,Matrix SCM Ltd,Agency Staff,656.54,0.00,COMMERCIAL SUPPLIER 
 11-10-2023,oneSource Non-Shared LBH,Matrix SCM Ltd,Agency Staff,1174.80,0.00,COMMERCIAL SUPPLIER 
 11-10-2023,oneSource Non-Shared LBH,Matrix SCM Ltd,Agency Staff,545.05,0.00,COMMERCIAL SUPPLIER 
 11-10-2023,oneSource Non-Shared LBH,Matrix SCM Ltd,Agency Staff,1729.71,0.00,COMMERCIAL SUPPLIER 
 11-10-2023,oneSource Non-Shared LBH,London Hire Ltd_a,Vehicle Hire,1209.11,0.00,COMMERCIAL SUPPLIER 
 11-10-2023,oneSource Non-Shared LBH,Kingdom Security Ltd,Security Services (Excluding Premises),5711.20,0.00,COMMERCIAL SUPPLIER 
 11-10-2023,oneSource Non-Shared LBH,Kingdom Security Ltd,Security Services (Excluding Premises),3997.50,0.00,COMMERCIAL SUPPLIER 
 11-10-2023,oneSource Non-Shared LBH,Computershare Voucher Services,Private Contractors Payment - Other,3458.00,0.00,COMMERCIAL SUPPLIER 
 12-10-2023,oneSource Non-Shared LBH,Havering Building Specialists Ltd,Maintenance - Equipment Furniture And Materials,1899.00,0.00,CIS 
 12-10-2023,oneSource Non-Shared LBH,Acorn Truck Sales Ltd,Purchase - Equipment Furniture And Materials,661.87,0.00,COMMERCIAL SUPPLIER 
 13-10-2023,oneSource Non-Shared LBH,Serco Ltd,Refuse Collection,1210.28,0.00,COMMERCIAL SUPPLIER 
 13-10-2023,oneSource Non-Shared LBH,Serco Ltd,Refuse Collection,830.44,0.00,COMMERCIAL SUPPLIER 
 13-10-2023,oneSource Non-Shared LBH,Serco Ltd,Refuse Collection,788.55,0.00,COMMERCIAL SUPPLIER 
 13-10-2023,oneSource Non-Shared LBH,Serco Ltd,Refuse Collection,629.33,0.00,COMMERCIAL SUPPLIER 
 13-10-2023,oneSource Non-Shared LBH,Evans & Shea Ltd,Facilities Management,689.74,0.00,COMMERCIAL SUPPLIER 
 13-10-2023,oneSource Non-Shared LBH,Evans & Shea Ltd,Facilities Management,922.70,0.00,COMMERCIAL SUPPLIER 
 13-10-2023,oneSource Non-Shared LBH,Kingdom Security Ltd,Security Services (Excluding Premises),600.48,0.00,COMMERCIAL SUPPLIER 
 13-10-2023,oneSource Non-Shared LBH,Velocity Transport Planning Ltd,Consultancy Fees,1000.00,0.00,COMMERCIAL SUPPLIER 
 15-10-2023,oneSource Non-Shared LBH,Allstar Business Solutions Ltd_a,Purchase - Equipment Furniture And Materials,1983.07,0.00,COMMERCIAL SUPPLIER 
 16-10-2023,oneSource Non-Shared LBH,South Park Heating Services Ltd,Building Alterations And Materials,533.00,0.00,CIS 
 16-10-2023,oneSource Non-Shared LBH,The Disablement Association of Barking and Dagenham t/as DABD (UK),Client Transport,90000.00,0.00,COMMERCIAL SUPPLIER 
 16-10-2023,oneSource Non-Shared LBH,Vamp Truck & Bus Wash Ltd,Purchase - Equipment Furniture And Materials,560.00,0.00,COMMERCIAL SUPPLIER 
 16-10-2023,oneSource Non-Shared LBH,Buildright Solutions Ltd,Maintenance - Equipment Furniture And Materials,505.00,0.00,CIS 
 16-10-2023,oneSource Non-Shared LBH,Deltascheme Ltd,Ict Maintenance And Support,1500.00,0.00,COMMERCIAL SUPPLIER 
 17-10-2023,oneSource Non-Shared LBH,Precision Lift Services Ltd_a,Cyclical/Planned Maintenance - Mechanical And Electrical,3195.00,0.00,CIS 
 17-10-2023,oneSource Non-Shared LBH,Tructyre Fleet Management Ltd,Purchase - Equipment Furniture And Materials,1991.10,0.00,COMMERCIAL SUPPLIER 
 17-10-2023,oneSource Non-Shared LBH,Powerwash Solutions Ltd,Purchase - Equipment Furniture And Materials,975.00,0.00,COMMERCIAL SUPPLIER 
 17-10-2023,oneSource Non-Shared LBH,Deltascheme Ltd,Ict Maintenance And Support,1000.00,0.00,COMMERCIAL SUPPLIER 
 17-10-2023,oneSource Non-Shared LBH,Digitec Security Ltd,Security Services (Excluding Premises),5135.62,0.00,COMMERCIAL SUPPLIER 
 17-10-2023,oneSource Non-Shared LBH,Bloom Procurement Services Ltd,Consultancy Fees,2000.00,0.00,COMMERCIAL SUPPLIER 
 18-10-2023,oneSource Non-Shared LBH,HSL Compliance Ltd,Professional Services - General,590.41,0.00,CIS 
 18-10-2023,oneSource Non-Shared LBH,HSL Compliance Ltd,Professional Services - General,548.37,0.00,CIS 
 18-10-2023,oneSource Non-Shared LBH,HSL Compliance Ltd,Professional Services - General,937.77,0.00,CIS 
 18-10-2023,oneSource Non-Shared LBH,Amazon Payments UK Ltd,Purchase - Equipment Furniture And Materials,567.92,0.00,COMMERCIAL SUPPLIER 
 18-10-2023,oneSource Non-Shared LBH,Amazon Payments UK Ltd,Purchase - Equipment Furniture And Materials,719.97,0.00,COMMERCIAL SUPPLIER 
 18-10-2023,oneSource Non-Shared LBH,Matrix SCM Ltd,Agency Staff,656.54,0.00,COMMERCIAL SUPPLIER 
 18-10-2023,oneSource Non-Shared LBH,Matrix SCM Ltd,Agency Staff,589.06,0.00,COMMERCIAL SUPPLIER 
 18-10-2023,oneSource Non-Shared LBH,Matrix SCM Ltd,Agency Staff,681.63,0.00,COMMERCIAL SUPPLIER 
 18-10-2023,oneSource Non-Shared LBH,Matrix SCM Ltd,Agency Staff,574.54,0.00,COMMERCIAL SUPPLIER 
 18-10-2023,oneSource Non-Shared LBH,Matrix SCM Ltd,Agency Staff,559.60,0.00,COMMERCIAL SUPPLIER 
 18-10-2023,oneSource Non-Shared LBH,Matrix SCM Ltd,Agency Staff,521.73,0.00,COMMERCIAL SUPPLIER 
 18-10-2023,oneSource Non-Shared LBH,Matrix SCM Ltd,Agency Staff,841.51,0.00,COMMERCIAL SUPPLIER 
 18-10-2023,oneSource Non-Shared LBH,Matrix SCM Ltd,Agency Staff,524.72,0.00,COMMERCIAL SUPPLIER 
 18-10-2023,oneSource Non-Shared LBH,Matrix SCM Ltd,Agency Staff,637.16,0.00,COMMERCIAL SUPPLIER 
 18-10-2023,oneSource Non-Shared LBH,Matrix SCM Ltd,Agency Staff,645.40,0.00,COMMERCIAL SUPPLIER 
 18-10-2023,oneSource Non-Shared LBH,Matrix SCM Ltd,Agency Staff,3469.70,0.00,COMMERCIAL SUPPLIER 
 18-10-2023,oneSource Non-Shared LBH,Matrix SCM Ltd,Agency Staff,1153.14,0.00,COMMERCIAL SUPPLIER 
 18-10-2023,oneSource Non-Shared LBH,Matrix SCM Ltd,Agency Staff,2775.76,0.00,COMMERCIAL SUPPLIER 
 18-10-2023,oneSource Non-Shared LBH,Matrix SCM Ltd,Agency Staff,1773.60,0.00,COMMERCIAL SUPPLIER 
 18-10-2023,oneSource Non-Shared LBH,Matrix SCM Ltd,Agency Staff,2217.00,0.00,COMMERCIAL SUPPLIER 
 18-10-2023,oneSource Non-Shared LBH,Matrix SCM Ltd,Agency Staff,1174.80,0.00,COMMERCIAL SUPPLIER 
 18-10-2023,oneSource Non-Shared LBH,Matrix SCM Ltd,Agency Staff,2101.95,0.00,COMMERCIAL SUPPLIER 
 18-10-2023,oneSource Non-Shared LBH,London Hire Ltd_a,Vehicle Hire,2264.21,0.00,COMMERCIAL SUPPLIER 
 19-10-2023,oneSource Non-Shared LBH,Consolidated Interior Services Ltd,Removal Services,2511.90,0.00,COMMERCIAL SUPPLIER 
 19-10-2023,oneSource Non-Shared LBH,Consolidated Interior Services Ltd,Removal Services,821.20,0.00,COMMERCIAL SUPPLIER 
 19-10-2023,oneSource Non-Shared LBH,P Tuckwell Ltd_a,Purchase - Equipment Furniture And Materials,824.58,0.00,COMMERCIAL SUPPLIER 
 19-10-2023,oneSource Non-Shared LBH,John Burke Associates,Surveys,850.00,0.00,COMMERCIAL SUPPLIER 
 20-10-2023,oneSource Non-Shared LBH,Fisk Group,Catering And Vending Supplies,643.96,0.00,COMMERCIAL SUPPLIER 
 20-10-2023,oneSource Non-Shared LBH,P Tuckwell Ltd_a,Purchase - Equipment Furniture And Materials,559.93,0.00,COMMERCIAL SUPPLIER 
 23-10-2023,oneSource Non-Shared LBH,D & B Motors & Sons,Purchase - Equipment Furniture And Materials,520.00,0.00,COMMERCIAL SUPPLIER 
 23-10-2023,oneSource Non-Shared LBH,London Riverside Bid Ltd,Consultancy Fees,3783.40,0.00,COMMERCIAL SUPPLIER 
 23-10-2023,oneSource Non-Shared LBH,Econ Engineering Group Ltd,Vehicle Hire,1478.00,0.00,COMMERCIAL SUPPLIER 
 23-10-2023,oneSource Non-Shared LBH,Reesink UK Ltd,Purchase - Equipment Furniture And Materials,675.88,0.00,COMMERCIAL SUPPLIER 
 24-10-2023,oneSource Non-Shared LBH,Romford Town Management Partnership Ltd,Consultancy Fees,7517.75,0.00,NON COMMERCIAL SUPPLIER 
 24-10-2023,oneSource Non-Shared LBH,London Hire Ltd_a,Vehicle Hire,1331.29,0.00,COMMERCIAL SUPPLIER 
 25-10-2023,oneSource Non-Shared LBH,South Park Heating Services Ltd,Building Alterations And Materials,607.25,0.00,CIS 
 25-10-2023,oneSource Non-Shared LBH,Alltype Fencing Specialists Ltd,Building Alterations And Materials,1642.00,0.00,CIS 
 25-10-2023,oneSource Non-Shared LBH,Alltype Fencing Specialists Ltd,Building Alterations And Materials,1642.00,0.00,CIS 
 25-10-2023,oneSource Non-Shared LBH,Precision Lift Services Ltd_a,Cyclical/Planned Maintenance - Mechanical And Electrical,600.00,0.00,CIS 
 25-10-2023,oneSource Non-Shared LBH,Matrix SCM Ltd,Agency Staff,521.37,0.00,COMMERCIAL SUPPLIER 
 25-10-2023,oneSource Non-Shared LBH,Matrix SCM Ltd,Agency Staff,580.64,0.00,COMMERCIAL SUPPLIER 
 25-10-2023,oneSource Non-Shared LBH,Matrix SCM Ltd,Agency Staff,574.54,0.00,COMMERCIAL SUPPLIER 
 25-10-2023,oneSource Non-Shared LBH,Matrix SCM Ltd,Agency Staff,500.70,0.00,COMMERCIAL SUPPLIER 
 25-10-2023,oneSource Non-Shared LBH,Matrix SCM Ltd,Agency Staff,515.35,0.00,COMMERCIAL SUPPLIER 
 25-10-2023,oneSource Non-Shared LBH,Matrix SCM Ltd,Agency Staff,645.40,0.00,COMMERCIAL SUPPLIER 
 25-10-2023,oneSource Non-Shared LBH,Matrix SCM Ltd,Agency Staff,521.73,0.00,COMMERCIAL SUPPLIER 
 25-10-2023,oneSource Non-Shared LBH,Matrix SCM Ltd,Agency Staff,841.51,0.00,COMMERCIAL SUPPLIER 
 25-10-2023,oneSource Non-Shared LBH,Matrix SCM Ltd,Agency Staff,569.30,0.00,COMMERCIAL SUPPLIER 
 25-10-2023,oneSource Non-Shared LBH,Matrix SCM Ltd,Agency Staff,713.54,0.00,COMMERCIAL SUPPLIER 
 25-10-2023,oneSource Non-Shared LBH,Matrix SCM Ltd,Agency Staff,1729.71,0.00,COMMERCIAL SUPPLIER 
 25-10-2023,oneSource Non-Shared LBH,Matrix SCM Ltd,Agency Staff,1174.80,0.00,COMMERCIAL SUPPLIER 
 25-10-2023,oneSource Non-Shared LBH,Matrix SCM Ltd,Agency Staff,2101.95,0.00,COMMERCIAL SUPPLIER 
 25-10-2023,oneSource Non-Shared LBH,Reesink UK Ltd,Purchase - Equipment Furniture And Materials,708.29,0.00,COMMERCIAL SUPPLIER 
 26-10-2023,oneSource Non-Shared LBH,EP Clean,Purchase - Equipment Furniture And Materials,1200.00,0.00,COMMERCIAL SUPPLIER 
 27-10-2023,oneSource Non-Shared LBH,South Park Heating Services Ltd,Building Alterations And Materials,1250.00,0.00,CIS 
 27-10-2023,oneSource Non-Shared LBH,South Park Heating Services Ltd,Building Alterations And Materials,2202.68,0.00,CIS 
 27-10-2023,oneSource Non-Shared LBH,Motus Truck & Van,Purchase - Equipment Furniture And Materials,743.00,0.00,COMMERCIAL SUPPLIER 
 27-10-2023,oneSource Non-Shared LBH,CPL Petroleum Ltd,Purchase - Equipment Furniture And Materials,1538.16,0.00,COMMERCIAL SUPPLIER 
 27-10-2023,oneSource Non-Shared LBH,New Era Fuels Ltd,Purchase - Equipment Furniture And Materials,31025.81,0.00,COMMERCIAL SUPPLIER 
 27-10-2023,oneSource Non-Shared LBH,New Era Fuels Ltd,Purchase - Equipment Furniture And Materials,19724.47,0.00,COMMERCIAL SUPPLIER 
 27-10-2023,oneSource Non-Shared LBH,New Era Fuels Ltd,Purchase - Equipment Furniture And Materials,26795.21,0.00,COMMERCIAL SUPPLIER 
 27-10-2023,oneSource Non-Shared LBH,Evans & Shea Ltd,Facilities Management,6000.00,0.00,COMMERCIAL SUPPLIER 
 27-10-2023,oneSource Non-Shared LBH,Evans & Shea Ltd,Facilities Management,1721.05,0.00,COMMERCIAL SUPPLIER 
 30-10-2023,oneSource Non-Shared LBH,Buildright Solutions Ltd,Maintenance - Equipment Furniture And Materials,4575.00,0.00,CIS 
 30-10-2023,oneSource Non-Shared LBH,Digitec Security Ltd,Security Services (Excluding Premises),538.00,0.00,COMMERCIAL SUPPLIER 
 30-10-2023,oneSource Non-Shared LBH,Digitec Security Ltd,Security Services (Excluding Premises),2218.90,0.00,COMMERCIAL SUPPLIER 
 30-10-2023,oneSource Non-Shared LBH,Reesink UK Ltd,Purchase - Equipment Furniture And Materials,2772.56,0.00,COMMERCIAL SUPPLIER 
 31-10-2023,oneSource Non-Shared LBH,Allstar Business Solutions Ltd_a,Purchase - Equipment Furniture And Materials,1209.19,0.00,COMMERCIAL SUPPLIER 
 31-10-2023,oneSource Non-Shared LBH,Serco Ltd,Refuse Collection,1013.04,0.00,COMMERCIAL SUPPLIER 
 31-10-2023,oneSource Non-Shared LBH,Serco Ltd,Refuse Collection,775.74,0.00,COMMERCIAL SUPPLIER 
 31-10-2023,oneSource Non-Shared LBH,PTSG_a Premier Technical Services Group t/a Access & Safety Ltd,Building Alterations And Materials,1080.00,0.00,CIS 
 02-10-2023,oneSource Shared,South Park Heating Services Ltd,Building Alterations And Materials,3104.17,0.00,CIS 
 02-10-2023,oneSource Shared,Canon (UK) Ltd,Printing,1043.20,0.00,COMMERCIAL SUPPLIER 
 04-10-2023,oneSource Shared,Matrix SCM Ltd,Agency Staff,716.81,0.00,COMMERCIAL SUPPLIER 
 04-10-2023,oneSource Shared,Matrix SCM Ltd,Agency Staff,658.32,0.00,COMMERCIAL SUPPLIER 
 04-10-2023,oneSource Shared,Matrix SCM Ltd,Agency Staff,500.06,0.00,COMMERCIAL SUPPLIER 
 04-10-2023,oneSource Shared,Matrix SCM Ltd,Agency Staff,1325.91,0.00,COMMERCIAL SUPPLIER 
 04-10-2023,oneSource Shared,Matrix SCM Ltd,Agency Staff,851.20,0.00,COMMERCIAL SUPPLIER 
 04-10-2023,oneSource Shared,Matrix SCM Ltd,Agency Staff,851.20,0.00,COMMERCIAL SUPPLIER 
 04-10-2023,oneSource Shared,Matrix SCM Ltd,Agency Staff,851.20,0.00,COMMERCIAL SUPPLIER 
 04-10-2023,oneSource Shared,Matrix SCM Ltd,Agency Staff,1241.11,0.00,COMMERCIAL SUPPLIER 
 04-10-2023,oneSource Shared,Matrix SCM Ltd,Agency Staff,2859.90,0.00,COMMERCIAL SUPPLIER 
 04-10-2023,oneSource Shared,Matrix SCM Ltd,Agency Staff,862.38,0.00,COMMERCIAL SUPPLIER 
 04-10-2023,oneSource Shared,Matrix SCM Ltd,Agency Staff,1717.56,0.00,COMMERCIAL SUPPLIER 
 04-10-2023,oneSource Shared,Matrix SCM Ltd,Agency Staff,1975.45,0.00,COMMERCIAL SUPPLIER 
 04-10-2023,oneSource Shared,Matrix SCM Ltd,Agency Staff,1189.81,0.00,COMMERCIAL SUPPLIER 
 04-10-2023,oneSource Shared,Matrix SCM Ltd,Agency Staff,1887.48,0.00,COMMERCIAL SUPPLIER 
 04-10-2023,oneSource Shared,Matrix SCM Ltd,Agency Staff,1707.49,0.00,COMMERCIAL SUPPLIER 
 04-10-2023,oneSource Shared,Matrix SCM Ltd,Agency Staff,1720.80,0.00,COMMERCIAL SUPPLIER 
 04-10-2023,oneSource Shared,Matrix SCM Ltd,Agency Staff,762.30,0.00,COMMERCIAL SUPPLIER 
 04-10-2023,oneSource Shared,Matrix SCM Ltd,Agency Staff,773.49,0.00,COMMERCIAL SUPPLIER 
 04-10-2023,oneSource Shared,Matrix SCM Ltd,Agency Staff,2493.95,0.00,COMMERCIAL SUPPLIER 
 04-10-2023,oneSource Shared,Matrix SCM Ltd,Agency Staff,3615.05,0.00,COMMERCIAL SUPPLIER 
 04-10-2023,oneSource Shared,Matrix SCM Ltd,Agency Staff,4058.05,0.00,COMMERCIAL SUPPLIER 
 04-10-2023,oneSource Shared,Matrix SCM Ltd,Agency Staff,4058.05,0.00,COMMERCIAL SUPPLIER 
 04-10-2023,oneSource Shared,Matrix SCM Ltd,Agency Staff,970.56,0.00,COMMERCIAL SUPPLIER 
 04-10-2023,oneSource Shared,Matrix SCM Ltd,Agency Staff,748.10,0.00,COMMERCIAL SUPPLIER 
 04-10-2023,oneSource Shared,Matrix SCM Ltd,Agency Staff,970.56,0.00,COMMERCIAL SUPPLIER 
 04-10-2023,oneSource Shared,Matrix SCM Ltd,Agency Staff,790.56,0.00,COMMERCIAL SUPPLIER 
 04-10-2023,oneSource Shared,Matrix SCM Ltd,Agency Staff,3627.10,0.00,COMMERCIAL SUPPLIER 
 04-10-2023,oneSource Shared,Matrix SCM Ltd,Agency Staff,4870.85,0.00,COMMERCIAL SUPPLIER 
 04-10-2023,oneSource Shared,Matrix SCM Ltd,Agency Staff,2546.00,0.00,COMMERCIAL SUPPLIER 
 04-10-2023,oneSource Shared,Matrix SCM Ltd,Agency Staff,1426.40,0.00,COMMERCIAL SUPPLIER 
 05-10-2023,oneSource Shared,Granicus Firmstep Ltd,Ict Maintenance And Support,30437.00,0.00,COMMERCIAL SUPPLIER 
 05-10-2023,oneSource Shared,Bloom Procurement Services Ltd,Consultancy Fees,62366.71,0.00,COMMERCIAL SUPPLIER 
 11-10-2023,oneSource Shared,Matrix SCM Ltd,Agency Staff,805.86,0.00,COMMERCIAL SUPPLIER 
 11-10-2023,oneSource Shared,Matrix SCM Ltd,Agency Staff,2493.95,0.00,COMMERCIAL SUPPLIER 
 11-10-2023,oneSource Shared,Matrix SCM Ltd,Agency Staff,3457.80,0.00,COMMERCIAL SUPPLIER 
 11-10-2023,oneSource Shared,Matrix SCM Ltd,Agency Staff,3457.80,0.00,COMMERCIAL SUPPLIER 
 11-10-2023,oneSource Shared,Matrix SCM Ltd,Agency Staff,3457.80,0.00,COMMERCIAL SUPPLIER 
 11-10-2023,oneSource Shared,Matrix SCM Ltd,Agency Staff,3457.80,0.00,COMMERCIAL SUPPLIER 
 11-10-2023,oneSource Shared,Matrix SCM Ltd,Agency Staff,4058.05,0.00,COMMERCIAL SUPPLIER 
 11-10-2023,oneSource Shared,Matrix SCM Ltd,Agency Staff,1446.02,0.00,COMMERCIAL SUPPLIER 
 11-10-2023,oneSource Shared,Matrix SCM Ltd,Agency Staff,970.56,0.00,COMMERCIAL SUPPLIER 
 11-10-2023,oneSource Shared,Matrix SCM Ltd,Agency Staff,970.56,0.00,COMMERCIAL SUPPLIER 
 11-10-2023,oneSource Shared,Matrix SCM Ltd,Agency Staff,748.10,0.00,COMMERCIAL SUPPLIER 
 11-10-2023,oneSource Shared,Matrix SCM Ltd,Agency Staff,801.01,0.00,COMMERCIAL SUPPLIER 
 11-10-2023,oneSource Shared,Matrix SCM Ltd,Agency Staff,790.56,0.00,COMMERCIAL SUPPLIER 
 11-10-2023,oneSource Shared,Matrix SCM Ltd,Agency Staff,3627.10,0.00,COMMERCIAL SUPPLIER 
 11-10-2023,oneSource Shared,Matrix SCM Ltd,Agency Staff,4870.85,0.00,COMMERCIAL SUPPLIER 
 11-10-2023,oneSource Shared,Matrix SCM Ltd,Agency Staff,2546.00,0.00,COMMERCIAL SUPPLIER 
 11-10-2023,oneSource Shared,Matrix SCM Ltd,Agency Staff,1426.39,0.00,COMMERCIAL SUPPLIER 
 11-10-2023,oneSource Shared,Matrix SCM Ltd,Agency Staff,1772.67,0.00,COMMERCIAL SUPPLIER 
 11-10-2023,oneSource Shared,Matrix SCM Ltd,Agency Staff,1707.49,0.00,COMMERCIAL SUPPLIER 
 11-10-2023,oneSource Shared,Matrix SCM Ltd,Agency Staff,958.46,0.00,COMMERCIAL SUPPLIER 
 11-10-2023,oneSource Shared,Matrix SCM Ltd,Agency Staff,1720.80,0.00,COMMERCIAL SUPPLIER 
 11-10-2023,oneSource Shared,Matrix SCM Ltd,Agency Staff,1717.57,0.00,COMMERCIAL SUPPLIER 
 11-10-2023,oneSource Shared,Matrix SCM Ltd,Agency Staff,1815.48,0.00,COMMERCIAL SUPPLIER 
 11-10-2023,oneSource Shared,Matrix SCM Ltd,Agency Staff,1815.49,0.00,COMMERCIAL SUPPLIER 
 11-10-2023,oneSource Shared,Matrix SCM Ltd,Agency Staff,1887.48,0.00,COMMERCIAL SUPPLIER 
 11-10-2023,oneSource Shared,Matrix SCM Ltd,Agency Staff,2927.61,0.00,COMMERCIAL SUPPLIER 
 11-10-2023,oneSource Shared,Matrix SCM Ltd,Agency Staff,1975.45,0.00,COMMERCIAL SUPPLIER 
 11-10-2023,oneSource Shared,Matrix SCM Ltd,Agency Staff,851.20,0.00,COMMERCIAL SUPPLIER 
 11-10-2023,oneSource Shared,Matrix SCM Ltd,Agency Staff,851.20,0.00,COMMERCIAL SUPPLIER 
 11-10-2023,oneSource Shared,Matrix SCM Ltd,Agency Staff,851.20,0.00,COMMERCIAL SUPPLIER 
 11-10-2023,oneSource Shared,Matrix SCM Ltd,Agency Staff,1325.91,0.00,COMMERCIAL SUPPLIER 
 11-10-2023,oneSource Shared,Matrix SCM Ltd,Agency Staff,801.14,0.00,COMMERCIAL SUPPLIER 
 11-10-2023,oneSource Shared,Matrix SCM Ltd,Agency Staff,817.22,0.00,COMMERCIAL SUPPLIER 
 11-10-2023,oneSource Shared,Matrix SCM Ltd,Agency Staff,818.28,0.00,COMMERCIAL SUPPLIER 
 11-10-2023,oneSource Shared,The Law Society.,Staff Development And Training,3033.00,0.00,COMMERCIAL SUPPLIER 
 12-10-2023,oneSource Shared,Bloom Procurement Services Ltd,Consultancy Fees,15572.96,0.00,COMMERCIAL SUPPLIER 
 13-10-2023,oneSource Shared,Experian Ltd,Ict Software,2367.88,0.00,COMMERCIAL SUPPLIER 
 16-10-2023,oneSource Shared,NEC Software Solutions UK Ltd ,Ict Maintenance And Support,26000.00,0.00,COMMERCIAL SUPPLIER 
 18-10-2023,oneSource Shared,Matrix SCM Ltd,Agency Staff,2493.95,0.00,COMMERCIAL SUPPLIER 
 18-10-2023,oneSource Shared,Matrix SCM Ltd,Agency Staff,2169.03,0.00,COMMERCIAL SUPPLIER 
 18-10-2023,oneSource Shared,Matrix SCM Ltd,Agency Staff,4058.05,0.00,COMMERCIAL SUPPLIER 
 18-10-2023,oneSource Shared,Matrix SCM Ltd,Agency Staff,2217.00,0.00,COMMERCIAL SUPPLIER 
 18-10-2023,oneSource Shared,Matrix SCM Ltd,Agency Staff,2217.00,0.00,COMMERCIAL SUPPLIER 
 18-10-2023,oneSource Shared,Matrix SCM Ltd,Agency Staff,2217.00,0.00,COMMERCIAL SUPPLIER 
 18-10-2023,oneSource Shared,Matrix SCM Ltd,Agency Staff,970.56,0.00,COMMERCIAL SUPPLIER 
 18-10-2023,oneSource Shared,Matrix SCM Ltd,Agency Staff,748.10,0.00,COMMERCIAL SUPPLIER 
 18-10-2023,oneSource Shared,Matrix SCM Ltd,Agency Staff,970.56,0.00,COMMERCIAL SUPPLIER 
 18-10-2023,oneSource Shared,Matrix SCM Ltd,Agency Staff,801.01,0.00,COMMERCIAL SUPPLIER 
 18-10-2023,oneSource Shared,Matrix SCM Ltd,Agency Staff,790.56,0.00,COMMERCIAL SUPPLIER 
 18-10-2023,oneSource Shared,Matrix SCM Ltd,Agency Staff,3627.10,0.00,COMMERCIAL SUPPLIER 
 18-10-2023,oneSource Shared,Matrix SCM Ltd,Agency Staff,4870.85,0.00,COMMERCIAL SUPPLIER 
 18-10-2023,oneSource Shared,Matrix SCM Ltd,Agency Staff,2546.00,0.00,COMMERCIAL SUPPLIER 
 18-10-2023,oneSource Shared,Matrix SCM Ltd,Agency Staff,1426.40,0.00,COMMERCIAL SUPPLIER 
 18-10-2023,oneSource Shared,Matrix SCM Ltd,Agency Staff,762.30,0.00,COMMERCIAL SUPPLIER 
 18-10-2023,oneSource Shared,Matrix SCM Ltd,Agency Staff,1189.80,0.00,COMMERCIAL SUPPLIER 
 18-10-2023,oneSource Shared,Matrix SCM Ltd,Agency Staff,1717.57,0.00,COMMERCIAL SUPPLIER 
 18-10-2023,oneSource Shared,Matrix SCM Ltd,Agency Staff,2961.45,0.00,COMMERCIAL SUPPLIER 
 18-10-2023,oneSource Shared,Matrix SCM Ltd,Agency Staff,1975.45,0.00,COMMERCIAL SUPPLIER 
 18-10-2023,oneSource Shared,Matrix SCM Ltd,Agency Staff,1707.49,0.00,COMMERCIAL SUPPLIER 
 18-10-2023,oneSource Shared,Matrix SCM Ltd,Agency Staff,1865.90,0.00,COMMERCIAL SUPPLIER 
 18-10-2023,oneSource Shared,Matrix SCM Ltd,Agency Staff,1887.48,0.00,COMMERCIAL SUPPLIER 
 18-10-2023,oneSource Shared,Matrix SCM Ltd,Agency Staff,1815.47,0.00,COMMERCIAL SUPPLIER 
 18-10-2023,oneSource Shared,Matrix SCM Ltd,Agency Staff,851.20,0.00,COMMERCIAL SUPPLIER 
 18-10-2023,oneSource Shared,Matrix SCM Ltd,Agency Staff,1325.91,0.00,COMMERCIAL SUPPLIER 
 18-10-2023,oneSource Shared,Matrix SCM Ltd,Agency Staff,818.28,0.00,COMMERCIAL SUPPLIER 
 18-10-2023,oneSource Shared,Matrix SCM Ltd,Agency Staff,817.22,0.00,COMMERCIAL SUPPLIER 
 18-10-2023,oneSource Shared,Matrix SCM Ltd,Agency Staff,754.30,0.00,COMMERCIAL SUPPLIER 
 25-10-2023,oneSource Shared,Civica UK Ltd_a,Ict Software,86774.90,0.00,COMMERCIAL SUPPLIER 
 25-10-2023,oneSource Shared,Matrix SCM Ltd,Agency Staff,762.30,0.00,COMMERCIAL SUPPLIER 
 25-10-2023,oneSource Shared,Matrix SCM Ltd,Agency Staff,4058.05,0.00,COMMERCIAL SUPPLIER 
 25-10-2023,oneSource Shared,Matrix SCM Ltd,Agency Staff,2892.04,0.00,COMMERCIAL SUPPLIER 
 25-10-2023,oneSource Shared,Matrix SCM Ltd,Agency Staff,2493.95,0.00,COMMERCIAL SUPPLIER 
 25-10-2023,oneSource Shared,Matrix SCM Ltd,Agency Staff,748.10,0.00,COMMERCIAL SUPPLIER 
 25-10-2023,oneSource Shared,Matrix SCM Ltd,Agency Staff,970.56,0.00,COMMERCIAL SUPPLIER 
 25-10-2023,oneSource Shared,Matrix SCM Ltd,Agency Staff,645.24,0.00,COMMERCIAL SUPPLIER 
 25-10-2023,oneSource Shared,Matrix SCM Ltd,Agency Staff,790.56,0.00,COMMERCIAL SUPPLIER 
 25-10-2023,oneSource Shared,Matrix SCM Ltd,Agency Staff,3627.10,0.00,COMMERCIAL SUPPLIER 
 25-10-2023,oneSource Shared,Matrix SCM Ltd,Agency Staff,4870.85,0.00,COMMERCIAL SUPPLIER 
 25-10-2023,oneSource Shared,Matrix SCM Ltd,Agency Staff,2546.00,0.00,COMMERCIAL SUPPLIER 
 25-10-2023,oneSource Shared,Matrix SCM Ltd,Agency Staff,1426.39,0.00,COMMERCIAL SUPPLIER 
 25-10-2023,oneSource Shared,Matrix SCM Ltd,Agency Staff,1975.45,0.00,COMMERCIAL SUPPLIER 
 25-10-2023,oneSource Shared,Matrix SCM Ltd,Agency Staff,1538.65,0.00,COMMERCIAL SUPPLIER 
 25-10-2023,oneSource Shared,Matrix SCM Ltd,Agency Staff,1887.48,0.00,COMMERCIAL SUPPLIER 
 25-10-2023,oneSource Shared,Matrix SCM Ltd,Agency Staff,1865.91,0.00,COMMERCIAL SUPPLIER 
 25-10-2023,oneSource Shared,Matrix SCM Ltd,Agency Staff,851.20,0.00,COMMERCIAL SUPPLIER 
 25-10-2023,oneSource Shared,Matrix SCM Ltd,Agency Staff,851.20,0.00,COMMERCIAL SUPPLIER 
 25-10-2023,oneSource Shared,Matrix SCM Ltd,Agency Staff,620.56,0.00,COMMERCIAL SUPPLIER 
 25-10-2023,oneSource Shared,Matrix SCM Ltd,Agency Staff,1329.77,0.00,COMMERCIAL SUPPLIER 
 25-10-2023,oneSource Shared,Matrix SCM Ltd,Agency Staff,827.41,0.00,COMMERCIAL SUPPLIER 
 25-10-2023,oneSource Shared,Matrix SCM Ltd,Agency Staff,871.41,0.00,COMMERCIAL SUPPLIER 
 25-10-2023,oneSource Shared,Matrix SCM Ltd,Agency Staff,817.22,0.00,COMMERCIAL SUPPLIER 
 25-10-2023,oneSource Shared,Matrix SCM Ltd,Agency Staff,818.28,0.00,COMMERCIAL SUPPLIER 
 25-10-2023,oneSource Shared,Matrix SCM Ltd,Agency Staff,883.94,0.00,COMMERCIAL SUPPLIER 
 26-10-2023,oneSource Shared,Grant Thornton UK LLP,Audit Fees,7500.00,0.00,COMMERCIAL SUPPLIER 
 26-10-2023,oneSource Shared,Version 1 Solutions Limited,Ict Maintenance And Support,59615.00,0.00,COMMERCIAL SUPPLIER 
 30-10-2023,oneSource Shared,EBB Office Ltd,Stationery,670.00,0.00,COMMERCIAL SUPPLIER 
 30-10-2023,oneSource Shared,EBB Office Ltd,Stationery,1219.84,0.00,COMMERCIAL SUPPLIER 
 01-10-2023,People - Ageing Well,Marlow,Residential Placements - Private Contractors Payment,7109.84,0.00,COMMERCIAL SUPPLIER 
 01-10-2023,People - Ageing Well,Marlow,Residential Placements - Private Contractors Payment,2256.24,0.00,COMMERCIAL SUPPLIER 
 02-10-2023,People - Ageing Well,South Park Heating Services Ltd,Building Alterations And Materials,508.50,0.00,CIS 
 02-10-2023,People - Ageing Well,Amachyck Care Solution Ltd.,Home Care - Private Contractors Payment,1135.70,0.00,COMMERCIAL SUPPLIER 
 02-10-2023,People - Ageing Well,Headway East London,Daycare - Private Contractors Payment,944.00,0.00,COMMERCIAL SUPPLIER 
 02-10-2023,People - Ageing Well,Headway East London,Daycare - Private Contractors Payment,525.00,0.00,COMMERCIAL SUPPLIER 
 02-10-2023,People - Ageing Well,All Therapy Solutions Ltd,Occupational Health,5130.00,0.00,COMMERCIAL SUPPLIER 
 03-10-2023,People - Ageing Well,Romford Private Hire Ltd,Client Transport,620.00,0.00,COMMERCIAL SUPPLIER 
 03-10-2023,People - Ageing Well,Protecthand Care Ltd ,Supported Other Accommodation - Private Contractors Payment,16405.20,0.00,COMMERCIAL SUPPLIER 
 03-10-2023,People - Ageing Well,Agracare Ltd t/a Home Instead Senior Care,Home Care - Private Contractors Payment,2792.00,0.00,COMMERCIAL SUPPLIER 
 04-10-2023,People - Ageing Well,Spring Consult UK Ltd,Home Care - Private Contractors Payment,13320.00,0.00,COMMERCIAL SUPPLIER 
 04-10-2023,People - Ageing Well,Romford Private Hire Ltd,Client Transport,3255.00,0.00,COMMERCIAL SUPPLIER 
 04-10-2023,People - Ageing Well,Gims Care Solution Ltd_a,Home Care - Private Contractors Payment,4142.80,0.00,NON COMMERCIAL SUPPLIER 
 04-10-2023,People - Ageing Well,Gims Care Solution Ltd_a,Home Care - Private Contractors Payment,2446.09,0.00,NON COMMERCIAL SUPPLIER 
 04-10-2023,People - Ageing Well,Gims Care Solution Ltd_a,Home Care - Private Contractors Payment,1000.32,0.00,NON COMMERCIAL SUPPLIER 
 04-10-2023,People - Ageing Well,Gims Care Solution Ltd_a,Home Care - Private Contractors Payment,3669.13,0.00,NON COMMERCIAL SUPPLIER 
 04-10-2023,People - Ageing Well,Gims Care Solution Ltd_a,Home Care - Private Contractors Payment,8109.60,0.00,NON COMMERCIAL SUPPLIER 
 04-10-2023,People - Ageing Well,Gims Care Solution Ltd_a,Home Care - Private Contractors Payment,751.00,0.00,NON COMMERCIAL SUPPLIER 
 04-10-2023,People - Ageing Well,Action First Assessments Ltd,Private Contractors Payment - Other,620.00,0.00,COMMERCIAL SUPPLIER 
 04-10-2023,People - Ageing Well,Action First Assessments Ltd,Private Contractors Payment - Other,930.00,0.00,COMMERCIAL SUPPLIER 
 04-10-2023,People - Ageing Well,Action First Assessments Ltd,Private Contractors Payment - Other,1550.00,0.00,COMMERCIAL SUPPLIER 
 04-10-2023,People - Ageing Well,Matrix SCM Ltd,Agency Staff,1574.16,0.00,COMMERCIAL SUPPLIER 
 04-10-2023,People - Ageing Well,Matrix SCM Ltd,Agency Staff,1241.28,0.00,COMMERCIAL SUPPLIER 
 04-10-2023,People - Ageing Well,Matrix SCM Ltd,Agency Staff,1241.28,0.00,COMMERCIAL SUPPLIER 
 04-10-2023,People - Ageing Well,Matrix SCM Ltd,Agency Staff,1384.58,0.00,COMMERCIAL SUPPLIER 
 04-10-2023,People - Ageing Well,Matrix SCM Ltd,Agency Staff,1436.42,0.00,COMMERCIAL SUPPLIER 
 04-10-2023,People - Ageing Well,Matrix SCM Ltd,Agency Staff,1241.28,0.00,COMMERCIAL SUPPLIER 
 04-10-2023,People - Ageing Well,Matrix SCM Ltd,Agency Staff,504.90,0.00,COMMERCIAL SUPPLIER 
 04-10-2023,People - Ageing Well,Matrix SCM Ltd,Agency Staff,1273.31,0.00,COMMERCIAL SUPPLIER 
 04-10-2023,People - Ageing Well,Matrix SCM Ltd,Agency Staff,1252.11,0.00,COMMERCIAL SUPPLIER 
 04-10-2023,People - Ageing Well,Matrix SCM Ltd,Agency Staff,1274.05,0.00,COMMERCIAL SUPPLIER 
 04-10-2023,People - Ageing Well,Matrix SCM Ltd,Agency Staff,758.56,0.00,COMMERCIAL SUPPLIER 
 04-10-2023,People - Ageing Well,Matrix SCM Ltd,Agency Staff,671.03,0.00,COMMERCIAL SUPPLIER 
 04-10-2023,People - Ageing Well,Matrix SCM Ltd,Agency Staff,738.00,0.00,COMMERCIAL SUPPLIER 
 04-10-2023,People - Ageing Well,Matrix SCM Ltd,Agency Staff,1395.73,0.00,COMMERCIAL SUPPLIER 
 04-10-2023,People - Ageing Well,Matrix SCM Ltd,Agency Staff,1277.28,0.00,COMMERCIAL SUPPLIER 
 04-10-2023,People - Ageing Well,Matrix SCM Ltd,Agency Staff,790.93,0.00,COMMERCIAL SUPPLIER 
 04-10-2023,People - Ageing Well,Matrix SCM Ltd,Agency Staff,839.55,0.00,COMMERCIAL SUPPLIER 
 04-10-2023,People - Ageing Well,Matrix SCM Ltd,Agency Staff,1283.04,0.00,COMMERCIAL SUPPLIER 
 04-10-2023,People - Ageing Well,Matrix SCM Ltd,Agency Staff,726.85,0.00,COMMERCIAL SUPPLIER 
 04-10-2023,People - Ageing Well,Matrix SCM Ltd,Agency Staff,1169.28,0.00,COMMERCIAL SUPPLIER 
 04-10-2023,People - Ageing Well,Matrix SCM Ltd,Agency Staff,1241.28,0.00,COMMERCIAL SUPPLIER 
 04-10-2023,People - Ageing Well,Matrix SCM Ltd,Agency Staff,1169.28,0.00,COMMERCIAL SUPPLIER 
 04-10-2023,People - Ageing Well,Matrix SCM Ltd,Agency Staff,1241.28,0.00,COMMERCIAL SUPPLIER 
 04-10-2023,People - Ageing Well,Matrix SCM Ltd,Agency Staff,1253.54,0.00,COMMERCIAL SUPPLIER 
 04-10-2023,People - Ageing Well,Matrix SCM Ltd,Agency Staff,1006.88,0.00,COMMERCIAL SUPPLIER 
 04-10-2023,People - Ageing Well,Matrix SCM Ltd,Agency Staff,1027.48,0.00,COMMERCIAL SUPPLIER 
 04-10-2023,People - Ageing Well,Matrix SCM Ltd,Agency Staff,637.12,0.00,COMMERCIAL SUPPLIER 
 04-10-2023,People - Ageing Well,Matrix SCM Ltd,Agency Staff,1385.28,0.00,COMMERCIAL SUPPLIER 
 04-10-2023,People - Ageing Well,Matrix SCM Ltd,Agency Staff,1066.04,0.00,COMMERCIAL SUPPLIER 
 04-10-2023,People - Ageing Well,Matrix SCM Ltd,Agency Staff,1241.28,0.00,COMMERCIAL SUPPLIER 
 04-10-2023,People - Ageing Well,Matrix SCM Ltd,Agency Staff,1288.10,0.00,COMMERCIAL SUPPLIER 
 04-10-2023,People - Ageing Well,Matrix SCM Ltd,Agency Staff,1209.60,0.00,COMMERCIAL SUPPLIER 
 04-10-2023,People - Ageing Well,Matrix SCM Ltd,Agency Staff,607.20,0.00,COMMERCIAL SUPPLIER 
 04-10-2023,People - Ageing Well,Matrix SCM Ltd,Agency Staff,1261.74,0.00,COMMERCIAL SUPPLIER 
 04-10-2023,People - Ageing Well,Matrix SCM Ltd,Agency Staff,969.17,0.00,COMMERCIAL SUPPLIER 
 04-10-2023,People - Ageing Well,Matrix SCM Ltd,Agency Staff,1288.45,0.00,COMMERCIAL SUPPLIER 
 04-10-2023,People - Ageing Well,Millbrook Healthcare Group ,Purchase - Equipment Furniture And Materials,7569.85,0.00,COMMERCIAL SUPPLIER 
 05-10-2023,People - Ageing Well,Treal Care Limited,Home Care - Private Contractors Payment,1163.25,0.00,COMMERCIAL SUPPLIER 
 05-10-2023,People - Ageing Well,Treal Care Limited,Home Care - Private Contractors Payment,1140.00,0.00,COMMERCIAL SUPPLIER 
 05-10-2023,People - Ageing Well,Treal Care Limited,Home Care - Private Contractors Payment,1140.00,0.00,COMMERCIAL SUPPLIER 
 05-10-2023,People - Ageing Well,R G Care Ltd ,Daycare - Private Contractors Payment,900.00,0.00,COMMERCIAL SUPPLIER 
 05-10-2023,People - Ageing Well,R G Care Ltd ,Daycare - Private Contractors Payment,840.00,0.00,COMMERCIAL SUPPLIER 
 05-10-2023,People - Ageing Well,Cakeybakeydoodaa Ltd,Daycare - Private Contractors Payment,624.00,0.00,COMMERCIAL SUPPLIER 
 05-10-2023,People - Ageing Well,Personal Information � Redacted ,Home Care - Private Contractors Payment,1070.18,0.00,INDIVIDUALS 
 05-10-2023,People - Ageing Well,Personal Information � Redacted ,Home Care - Private Contractors Payment,917.88,0.00,INDIVIDUALS 
 05-10-2023,People - Ageing Well,Personal Information � Redacted ,Home Care - Private Contractors Payment,834.40,0.00,INDIVIDUALS 
 05-10-2023,People - Ageing Well,Personal Information � Redacted ,Home Care - Private Contractors Payment,4717.45,0.00,INDIVIDUALS 
 05-10-2023,People - Ageing Well,Personal Information � Redacted ,Home Care - Private Contractors Payment,611.54,0.00,INDIVIDUALS 
 05-10-2023,People - Ageing Well,Personal Information � Redacted ,Home Care - Private Contractors Payment,1223.08,0.00,INDIVIDUALS 
 05-10-2023,People - Ageing Well,Personal Information � Redacted ,Home Care - Private Contractors Payment,1987.48,0.00,INDIVIDUALS 
 05-10-2023,People - Ageing Well,Personal Information � Redacted ,Home Care - Private Contractors Payment,2162.21,0.00,INDIVIDUALS 
 05-10-2023,People - Ageing Well,Personal Information � Redacted ,Home Care - Private Contractors Payment,524.17,0.00,INDIVIDUALS 
 05-10-2023,People - Ageing Well,Personal Information � Redacted ,Home Care - Private Contractors Payment,1550.69,0.00,INDIVIDUALS 
 05-10-2023,People - Ageing Well,Personal Information � Redacted ,Home Care - Private Contractors Payment,5256.92,0.00,INDIVIDUALS 
 05-10-2023,People - Ageing Well,Personal Information � Redacted ,Home Care - Private Contractors Payment,1004.68,0.00,INDIVIDUALS 
 05-10-2023,People - Ageing Well,Personal Information � Redacted ,Home Care - Private Contractors Payment,1747.24,0.00,INDIVIDUALS 
 05-10-2023,People - Ageing Well,Personal Information � Redacted ,Home Care - Private Contractors Payment,698.91,0.00,INDIVIDUALS 
 05-10-2023,People - Ageing Well,Personal Information � Redacted ,Home Care - Private Contractors Payment,1397.81,0.00,INDIVIDUALS 
 05-10-2023,People - Ageing Well,Personal Information � Redacted ,Home Care - Private Contractors Payment,1528.84,0.00,INDIVIDUALS 
 05-10-2023,People - Ageing Well,Personal Information � Redacted ,Home Care - Private Contractors Payment,3414.60,0.00,INDIVIDUALS 
 05-10-2023,People - Ageing Well,Personal Information � Redacted ,Home Care - Private Contractors Payment,9172.81,0.00,INDIVIDUALS 
 05-10-2023,People - Ageing Well,Personal Information � Redacted ,Home Care - Private Contractors Payment,524.16,0.00,INDIVIDUALS 
 05-10-2023,People - Ageing Well,Personal Information � Redacted ,Home Care - Private Contractors Payment,1375.96,0.00,INDIVIDUALS 
 05-10-2023,People - Ageing Well,Personal Information � Redacted ,Home Care - Private Contractors Payment,1223.08,0.00,INDIVIDUALS 
 05-10-2023,People - Ageing Well,Personal Information � Redacted ,Home Care - Private Contractors Payment,2009.32,0.00,INDIVIDUALS 
 05-10-2023,People - Ageing Well,Personal Information � Redacted ,Home Care - Private Contractors Payment,611.53,0.00,INDIVIDUALS 
 05-10-2023,People - Ageing Well,Personal Information � Redacted ,Home Care - Private Contractors Payment,611.53,0.00,INDIVIDUALS 
 05-10-2023,People - Ageing Well,Personal Information � Redacted ,Home Care - Private Contractors Payment,1223.05,0.00,INDIVIDUALS 
 05-10-2023,People - Ageing Well,Personal Information � Redacted ,Home Care - Private Contractors Payment,1528.84,0.00,INDIVIDUALS 
 05-10-2023,People - Ageing Well,Personal Information � Redacted ,Home Care - Private Contractors Payment,6102.16,0.00,INDIVIDUALS 
 05-10-2023,People - Ageing Well,Personal Information � Redacted ,Home Care - Private Contractors Payment,611.54,0.00,INDIVIDUALS 
 05-10-2023,People - Ageing Well,Personal Information � Redacted ,Home Care - Private Contractors Payment,917.31,0.00,INDIVIDUALS 
 05-10-2023,People - Ageing Well,Personal Information � Redacted ,Home Care - Private Contractors Payment,1223.08,0.00,INDIVIDUALS 
 05-10-2023,People - Ageing Well,Personal Information � Redacted ,Home Care - Private Contractors Payment,917.31,0.00,INDIVIDUALS 
 05-10-2023,People - Ageing Well,"Age Uk Redbridge, Barking and Havering Limited",Payments To Voluntary Sector,3270.42,0.00,COMMERCIAL SUPPLIER 
 05-10-2023,People - Ageing Well,"Age Uk Redbridge, Barking and Havering Limited",Payments To Voluntary Sector,3270.42,0.00,COMMERCIAL SUPPLIER 
 06-10-2023,People - Ageing Well,Gordon Care Services Limited,Home Care - Private Contractors Payment,3232.36,0.00,NON COMMERCIAL SUPPLIER 
 06-10-2023,People - Ageing Well,HR AMBER CARS Ltd,Client Transport,1600.00,0.00,COMMERCIAL SUPPLIER 
 08-10-2023,People - Ageing Well,Bloomscare Ltd,Home Care - Private Contractors Payment,1834.59,0.00,COMMERCIAL SUPPLIER 
 08-10-2023,People - Ageing Well,Bloomscare Ltd,Home Care - Private Contractors Payment,1834.59,0.00,COMMERCIAL SUPPLIER 
 08-10-2023,People - Ageing Well,Com Safer Care Ltd,Supported Other Accommodation - Private Contractors Payment,3570.00,0.00,COMMERCIAL SUPPLIER 
 08-10-2023,People - Ageing Well,Westminster Homecare Ltd_a,Home Care - Private Contractors Payment,1291.15,0.00,COMMERCIAL SUPPLIER 
 08-10-2023,People - Ageing Well,Westminster Homecare Ltd_a,Home Care - Private Contractors Payment,1435.66,0.00,COMMERCIAL SUPPLIER 
 08-10-2023,People - Ageing Well,Westminster Homecare Ltd_a,Home Care - Private Contractors Payment,1061.83,0.00,COMMERCIAL SUPPLIER 
 08-10-2023,People - Ageing Well,Westminster Homecare Ltd_a,Home Care - Private Contractors Payment,1440.03,0.00,COMMERCIAL SUPPLIER 
 08-10-2023,People - Ageing Well,Westminster Homecare Ltd_a,Home Care - Private Contractors Payment,1440.39,0.00,COMMERCIAL SUPPLIER 
 08-10-2023,People - Ageing Well,Westminster Homecare Ltd_a,Home Care - Private Contractors Payment,1264.94,0.00,COMMERCIAL SUPPLIER 
 08-10-2023,People - Ageing Well,Westminster Homecare Ltd_a,Home Care - Private Contractors Payment,915.12,0.00,COMMERCIAL SUPPLIER 
 08-10-2023,People - Ageing Well,Westminster Homecare Ltd_a,Home Care - Private Contractors Payment,1316.62,0.00,COMMERCIAL SUPPLIER 
 08-10-2023,People - Ageing Well,Westminster Homecare Ltd_a,Home Care - Private Contractors Payment,1615.82,0.00,COMMERCIAL SUPPLIER 
 08-10-2023,People - Ageing Well,Westminster Homecare Ltd_a,Home Care - Private Contractors Payment,960.27,0.00,COMMERCIAL SUPPLIER 
 08-10-2023,People - Ageing Well,Westminster Homecare Ltd_a,Home Care - Private Contractors Payment,1559.06,0.00,COMMERCIAL SUPPLIER 
 08-10-2023,People - Ageing Well,Westminster Homecare Ltd_a,Home Care - Private Contractors Payment,1559.06,0.00,COMMERCIAL SUPPLIER 
 08-10-2023,People - Ageing Well,Westminster Homecare Ltd_a,Home Care - Private Contractors Payment,520.17,0.00,COMMERCIAL SUPPLIER 
 09-10-2023,People - Ageing Well,Independent People Homecare Services,Home Care - Private Contractors Payment,5169.88,0.00,NON COMMERCIAL SUPPLIER 
 09-10-2023,People - Ageing Well,Bluebird Care Havering,Home Care - Private Contractors Payment,2670.50,0.00,COMMERCIAL SUPPLIER 
 09-10-2023,People - Ageing Well,Bluebird Care Havering,Home Care - Private Contractors Payment,2670.50,0.00,COMMERCIAL SUPPLIER 
 09-10-2023,People - Ageing Well,Bluebird Care Havering,Home Care - Private Contractors Payment,831.36,0.00,COMMERCIAL SUPPLIER 
 09-10-2023,People - Ageing Well,Bluebird Care Havering,Home Care - Private Contractors Payment,1357.52,0.00,COMMERCIAL SUPPLIER 
 09-10-2023,People - Ageing Well,Radfield Home Care Havering & Brentwood,Home Care - Private Contractors Payment,1186.00,0.00,COMMERCIAL SUPPLIER 
 09-10-2023,People - Ageing Well,Radfield Home Care Havering & Brentwood,Home Care - Private Contractors Payment,756.08,0.00,COMMERCIAL SUPPLIER 
 09-10-2023,People - Ageing Well,Radfield Home Care Havering & Brentwood,Home Care - Private Contractors Payment,502.33,0.00,COMMERCIAL SUPPLIER 
 09-10-2023,People - Ageing Well,The Sycamore Trust,Payments To Voluntary Sector,3333.33,0.00,COMMERCIAL SUPPLIER 
 09-10-2023,People - Ageing Well,The Sycamore Trust,Payments To Voluntary Sector,3333.34,0.00,COMMERCIAL SUPPLIER 
 09-10-2023,People - Ageing Well,All Therapy Solutions Ltd,Occupational Health,2700.00,0.00,COMMERCIAL SUPPLIER 
 09-10-2023,People - Ageing Well,Tapestry_a.,Daycare - Private Contractors Payment,549.00,0.00,COMMERCIAL SUPPLIER 
 09-10-2023,People - Ageing Well,Tapestry_a.,Daycare - Private Contractors Payment,732.00,0.00,COMMERCIAL SUPPLIER 
 09-10-2023,People - Ageing Well,Tapestry_a.,Daycare - Private Contractors Payment,976.00,0.00,COMMERCIAL SUPPLIER 
 09-10-2023,People - Ageing Well,Tapestry_a.,Daycare - Private Contractors Payment,976.00,0.00,COMMERCIAL SUPPLIER 
 09-10-2023,People - Ageing Well,Tapestry_a.,Daycare - Private Contractors Payment,732.00,0.00,COMMERCIAL SUPPLIER 
 09-10-2023,People - Ageing Well,Tapestry_a.,Daycare - Private Contractors Payment,732.00,0.00,COMMERCIAL SUPPLIER 
 09-10-2023,People - Ageing Well,Tapestry_a.,Daycare - Private Contractors Payment,732.00,0.00,COMMERCIAL SUPPLIER 
 09-10-2023,People - Ageing Well,Tapestry_a.,Daycare - Private Contractors Payment,732.00,0.00,COMMERCIAL SUPPLIER 
 09-10-2023,People - Ageing Well,Tapestry_a.,Daycare - Private Contractors Payment,732.00,0.00,COMMERCIAL SUPPLIER 
 09-10-2023,People - Ageing Well,Tapestry_a.,Daycare - Private Contractors Payment,610.00,0.00,COMMERCIAL SUPPLIER 
 09-10-2023,People - Ageing Well,Tapestry_a.,Daycare - Private Contractors Payment,732.00,0.00,COMMERCIAL SUPPLIER 
 09-10-2023,People - Ageing Well,Tapestry_a.,Daycare - Private Contractors Payment,976.00,0.00,COMMERCIAL SUPPLIER 
 09-10-2023,People - Ageing Well,Tapestry_a.,Daycare - Private Contractors Payment,732.00,0.00,COMMERCIAL SUPPLIER 
 09-10-2023,People - Ageing Well,Tapestry_a.,Daycare - Private Contractors Payment,732.00,0.00,COMMERCIAL SUPPLIER 
 09-10-2023,People - Ageing Well,Tapestry_a.,Daycare - Private Contractors Payment,732.00,0.00,COMMERCIAL SUPPLIER 
 09-10-2023,People - Ageing Well,Tapestry_a.,Daycare - Private Contractors Payment,793.00,0.00,COMMERCIAL SUPPLIER 
 09-10-2023,People - Ageing Well,Tapestry_a.,Daycare - Private Contractors Payment,1220.00,0.00,COMMERCIAL SUPPLIER 
 09-10-2023,People - Ageing Well,Tapestry_a.,Daycare - Private Contractors Payment,1220.00,0.00,COMMERCIAL SUPPLIER 
 09-10-2023,People - Ageing Well,Tapestry_a.,Daycare - Private Contractors Payment,976.00,0.00,COMMERCIAL SUPPLIER 
 09-10-2023,People - Ageing Well,Tapestry_a.,Daycare - Private Contractors Payment,732.00,0.00,COMMERCIAL SUPPLIER 
 09-10-2023,People - Ageing Well,Tapestry_a.,Daycare - Private Contractors Payment,732.00,0.00,COMMERCIAL SUPPLIER 
 09-10-2023,People - Ageing Well,Tapestry_a.,Daycare - Private Contractors Payment,1220.00,0.00,COMMERCIAL SUPPLIER 
 09-10-2023,People - Ageing Well,Tapestry_a.,Daycare - Private Contractors Payment,732.00,0.00,COMMERCIAL SUPPLIER 
 09-10-2023,People - Ageing Well,Tapestry_a.,Daycare - Private Contractors Payment,976.00,0.00,COMMERCIAL SUPPLIER 
 09-10-2023,People - Ageing Well,Bluebird Care Havering,Home Care - Private Contractors Payment,4704.00,0.00,COMMERCIAL SUPPLIER 
 09-10-2023,People - Ageing Well,Certified Healthcare Solutions Ltd t/a In Home Care Havering,Home Care - Private Contractors Payment,1528.84,0.00,COMMERCIAL SUPPLIER 
 09-10-2023,People - Ageing Well,Certified Healthcare Solutions Ltd t/a In Home Care Havering,Home Care - Private Contractors Payment,1528.84,0.00,COMMERCIAL SUPPLIER 
 09-10-2023,People - Ageing Well,Personal Information � Redacted ,Miscellaneous Expenses,3000.00,0.00,INDIVIDUALS 
 09-10-2023,People - Ageing Well,London Homecare Ltd,Home Care - Private Contractors Payment,1375.96,0.00,COMMERCIAL SUPPLIER 
 09-10-2023,People - Ageing Well,London Homecare Ltd,Home Care - Private Contractors Payment,1375.96,0.00,COMMERCIAL SUPPLIER 
 09-10-2023,People - Ageing Well,London Homecare Ltd,Home Care - Private Contractors Payment,1375.96,0.00,COMMERCIAL SUPPLIER 
 09-10-2023,People - Ageing Well,London Homecare Ltd,Home Care - Private Contractors Payment,764.42,0.00,COMMERCIAL SUPPLIER 
 09-10-2023,People - Ageing Well,London Homecare Ltd,Home Care - Private Contractors Payment,1534.31,0.00,COMMERCIAL SUPPLIER 
 09-10-2023,People - Ageing Well,London Homecare Ltd,Home Care - Private Contractors Payment,611.54,0.00,COMMERCIAL SUPPLIER 
 09-10-2023,People - Ageing Well,London Homecare Ltd,Home Care - Private Contractors Payment,655.21,0.00,COMMERCIAL SUPPLIER 
 09-10-2023,People - Ageing Well,London Homecare Ltd,Home Care - Private Contractors Payment,1419.63,0.00,COMMERCIAL SUPPLIER 
 09-10-2023,People - Ageing Well,London Homecare Ltd,Home Care - Private Contractors Payment,764.42,0.00,COMMERCIAL SUPPLIER 
 09-10-2023,People - Ageing Well,London Homecare Ltd,Home Care - Private Contractors Payment,1223.08,0.00,COMMERCIAL SUPPLIER 
 09-10-2023,People - Ageing Well,London Homecare Ltd,Home Care - Private Contractors Payment,1223.08,0.00,COMMERCIAL SUPPLIER 
 09-10-2023,People - Ageing Well,London Homecare Ltd,Home Care - Private Contractors Payment,2533.45,0.00,COMMERCIAL SUPPLIER 
 09-10-2023,People - Ageing Well,London Homecare Ltd,Home Care - Private Contractors Payment,1375.95,0.00,COMMERCIAL SUPPLIER 
 09-10-2023,People - Ageing Well,London Homecare Ltd,Home Care - Private Contractors Payment,1375.96,0.00,COMMERCIAL SUPPLIER 
 09-10-2023,People - Ageing Well,London Homecare Ltd,Home Care - Private Contractors Payment,1223.07,0.00,COMMERCIAL SUPPLIER 
 09-10-2023,People - Ageing Well,London Homecare Ltd,Home Care - Private Contractors Payment,1375.96,0.00,COMMERCIAL SUPPLIER 
 09-10-2023,People - Ageing Well,London Homecare Ltd,Home Care - Private Contractors Payment,1223.08,0.00,COMMERCIAL SUPPLIER 
 09-10-2023,People - Ageing Well,Premier Carewaiting Ltd,Home Care - Private Contractors Payment,1572.52,0.00,COMMERCIAL SUPPLIER 
 09-10-2023,People - Ageing Well,Premier Carewaiting Ltd,Home Care - Private Contractors Payment,2096.69,0.00,COMMERCIAL SUPPLIER 
 09-10-2023,People - Ageing Well,Premier Carewaiting Ltd,Home Care - Private Contractors Payment,611.54,0.00,COMMERCIAL SUPPLIER 
 09-10-2023,People - Ageing Well,Premier Carewaiting Ltd,Home Care - Private Contractors Payment,1223.08,0.00,COMMERCIAL SUPPLIER 
 09-10-2023,People - Ageing Well,Premier Carewaiting Ltd,Home Care - Private Contractors Payment,611.54,0.00,COMMERCIAL SUPPLIER 
 09-10-2023,People - Ageing Well,Premier Carewaiting Ltd,Home Care - Private Contractors Payment,611.54,0.00,COMMERCIAL SUPPLIER 
 09-10-2023,People - Ageing Well,Premier Carewaiting Ltd,Home Care - Private Contractors Payment,1834.60,0.00,COMMERCIAL SUPPLIER 
 09-10-2023,People - Ageing Well,Premier Carewaiting Ltd,Home Care - Private Contractors Payment,1310.44,0.00,COMMERCIAL SUPPLIER 
 09-10-2023,People - Ageing Well,Premier Carewaiting Ltd,Home Care - Private Contractors Payment,1528.84,0.00,COMMERCIAL SUPPLIER 
 09-10-2023,People - Ageing Well,Premier Carewaiting Ltd,Home Care - Private Contractors Payment,917.31,0.00,COMMERCIAL SUPPLIER 
 09-10-2023,People - Ageing Well,Premier Carewaiting Ltd,Home Care - Private Contractors Payment,884.54,0.00,COMMERCIAL SUPPLIER 
 09-10-2023,People - Ageing Well,Premier Carewaiting Ltd,Home Care - Private Contractors Payment,611.54,0.00,COMMERCIAL SUPPLIER 
 09-10-2023,People - Ageing Well,Premier Carewaiting Ltd,Home Care - Private Contractors Payment,611.54,0.00,COMMERCIAL SUPPLIER 
 09-10-2023,People - Ageing Well,Ronti Care Solutions,Home Care - Private Contractors Payment,2024.00,0.00,LOCAL AUTHORITY SERVICES 
 09-10-2023,People - Ageing Well,Ronti Care Solutions,Home Care - Private Contractors Payment,2156.00,0.00,LOCAL AUTHORITY SERVICES 
 09-10-2023,People - Ageing Well,Ace Outreach Ltd,Home Care - Private Contractors Payment,1188.00,0.00,COMMERCIAL SUPPLIER 
 10-10-2023,People - Ageing Well,IJB Healthcare Ltd,Home Care - Private Contractors Payment,567.85,0.00,COMMERCIAL SUPPLIER 
 10-10-2023,People - Ageing Well,IJB Healthcare Ltd,Home Care - Private Contractors Payment,567.86,0.00,COMMERCIAL SUPPLIER 
 10-10-2023,People - Ageing Well,IJB Healthcare Ltd,Home Care - Private Contractors Payment,1223.06,0.00,COMMERCIAL SUPPLIER 
 10-10-2023,People - Ageing Well,IJB Healthcare Ltd,Home Care - Private Contractors Payment,1092.02,0.00,COMMERCIAL SUPPLIER 
 10-10-2023,People - Ageing Well,IJB Healthcare Ltd,Home Care - Private Contractors Payment,764.42,0.00,COMMERCIAL SUPPLIER 
 10-10-2023,People - Ageing Well,IJB Healthcare Ltd,Home Care - Private Contractors Payment,589.69,0.00,COMMERCIAL SUPPLIER 
 10-10-2023,People - Ageing Well,IJB Healthcare Ltd,Home Care - Private Contractors Payment,1878.28,0.00,COMMERCIAL SUPPLIER 
 10-10-2023,People - Ageing Well,Hospiva Care & Associates Agency Ltd_a,Home Care - Private Contractors Payment,549.66,0.00,COMMERCIAL SUPPLIER 
 10-10-2023,People - Ageing Well,Hospiva Care & Associates Agency Ltd_a,Home Care - Private Contractors Payment,612.63,0.00,COMMERCIAL SUPPLIER 
 10-10-2023,People - Ageing Well,Hospiva Care & Associates Agency Ltd_a,Home Care - Private Contractors Payment,938.42,0.00,COMMERCIAL SUPPLIER 
 10-10-2023,People - Ageing Well,Hospiva Care & Associates Agency Ltd_a,Home Care - Private Contractors Payment,938.79,0.00,COMMERCIAL SUPPLIER 
 10-10-2023,People - Ageing Well,Hospiva Care & Associates Agency Ltd_a,Home Care - Private Contractors Payment,1272.22,0.00,COMMERCIAL SUPPLIER 
 10-10-2023,People - Ageing Well,Hospiva Care & Associates Agency Ltd_a,Home Care - Private Contractors Payment,1272.22,0.00,COMMERCIAL SUPPLIER 
 10-10-2023,People - Ageing Well,Hospiva Care & Associates Agency Ltd_a,Home Care - Private Contractors Payment,919.13,0.00,COMMERCIAL SUPPLIER 
 10-10-2023,People - Ageing Well,Hospiva Care & Associates Agency Ltd_a,Home Care - Private Contractors Payment,919.13,0.00,COMMERCIAL SUPPLIER 
 10-10-2023,People - Ageing Well,Hospiva Care & Associates Agency Ltd_a,Home Care - Private Contractors Payment,1223.45,0.00,COMMERCIAL SUPPLIER 
 10-10-2023,People - Ageing Well,Hospiva Care & Associates Agency Ltd_a,Home Care - Private Contractors Payment,611.54,0.00,COMMERCIAL SUPPLIER 
 10-10-2023,People - Ageing Well,Hospiva Care & Associates Agency Ltd_a,Home Care - Private Contractors Payment,1392.34,0.00,COMMERCIAL SUPPLIER 
 10-10-2023,People - Ageing Well,Hospiva Care & Associates Agency Ltd_a,Home Care - Private Contractors Payment,1394.16,0.00,COMMERCIAL SUPPLIER 
 10-10-2023,People - Ageing Well,Hospiva Care & Associates Agency Ltd_a,Home Care - Private Contractors Payment,1530.66,0.00,COMMERCIAL SUPPLIER 
 10-10-2023,People - Ageing Well,Hospiva Care & Associates Agency Ltd_a,Home Care - Private Contractors Payment,1530.66,0.00,COMMERCIAL SUPPLIER 
 10-10-2023,People - Ageing Well,Hospiva Care & Associates Agency Ltd_a,Home Care - Private Contractors Payment,628.29,0.00,COMMERCIAL SUPPLIER 
 10-10-2023,People - Ageing Well,Hospiva Care & Associates Agency Ltd_a,Home Care - Private Contractors Payment,1151.74,0.00,COMMERCIAL SUPPLIER 
 10-10-2023,People - Ageing Well,Hospiva Care & Associates Agency Ltd_a,Home Care - Private Contractors Payment,1154.65,0.00,COMMERCIAL SUPPLIER 
 10-10-2023,People - Ageing Well,Hospiva Care & Associates Agency Ltd_a,Home Care - Private Contractors Payment,6600.00,0.00,COMMERCIAL SUPPLIER 
 10-10-2023,People - Ageing Well,Hospiva Care & Associates Agency Ltd_a,Home Care - Private Contractors Payment,1551.41,0.00,COMMERCIAL SUPPLIER 
 10-10-2023,People - Ageing Well,Hospiva Care & Associates Agency Ltd_a,Home Care - Private Contractors Payment,1053.09,0.00,COMMERCIAL SUPPLIER 
 10-10-2023,People - Ageing Well,Hospiva Care & Associates Agency Ltd_a,Home Care - Private Contractors Payment,1258.39,0.00,COMMERCIAL SUPPLIER 
 10-10-2023,People - Ageing Well,Hospiva Care & Associates Agency Ltd_a,Home Care - Private Contractors Payment,1725.40,0.00,COMMERCIAL SUPPLIER 
 10-10-2023,People - Ageing Well,Hospiva Care & Associates Agency Ltd_a,Home Care - Private Contractors Payment,2289.98,0.00,COMMERCIAL SUPPLIER 
 10-10-2023,People - Ageing Well,Hospiva Care & Associates Agency Ltd_a,Home Care - Private Contractors Payment,1379.97,0.00,COMMERCIAL SUPPLIER 
 10-10-2023,People - Ageing Well,Hospiva Care & Associates Agency Ltd_a,Home Care - Private Contractors Payment,1379.97,0.00,COMMERCIAL SUPPLIER 
 10-10-2023,People - Ageing Well,Hospiva Care & Associates Agency Ltd_a,Home Care - Private Contractors Payment,611.54,0.00,COMMERCIAL SUPPLIER 
 10-10-2023,People - Ageing Well,Hospiva Care & Associates Agency Ltd_a,Home Care - Private Contractors Payment,972.27,0.00,COMMERCIAL SUPPLIER 
 10-10-2023,People - Ageing Well,Hospiva Care & Associates Agency Ltd_a,Home Care - Private Contractors Payment,549.66,0.00,COMMERCIAL SUPPLIER 
 10-10-2023,People - Ageing Well,Haven Care Ltd.,Home Care - Private Contractors Payment,524.16,0.00,COMMERCIAL SUPPLIER 
 10-10-2023,People - Ageing Well,Haven Care Ltd.,Home Care - Private Contractors Payment,764.42,0.00,COMMERCIAL SUPPLIER 
 10-10-2023,People - Ageing Well,Carers Trust East Midlands,Home Care - Private Contractors Payment,982.80,0.00,COMMERCIAL SUPPLIER 
 10-10-2023,People - Ageing Well,Carers Trust East Midlands,Home Care - Private Contractors Payment,1310.41,0.00,COMMERCIAL SUPPLIER 
 10-10-2023,People - Ageing Well,Carers Trust East Midlands,Home Care - Private Contractors Payment,873.61,0.00,COMMERCIAL SUPPLIER 
 10-10-2023,People - Ageing Well,Care-Away Ltd T/A Care Support,Home Care - Private Contractors Payment,513.52,0.00,COMMERCIAL SUPPLIER 
 10-10-2023,People - Ageing Well,Care-Away Ltd T/A Care Support,Home Care - Private Contractors Payment,513.52,0.00,COMMERCIAL SUPPLIER 
 10-10-2023,People - Ageing Well,Care-Away Ltd T/A Care Support,Home Care - Private Contractors Payment,2127.44,0.00,COMMERCIAL SUPPLIER 
 10-10-2023,People - Ageing Well,Care-Away Ltd T/A Care Support,Home Care - Private Contractors Payment,1027.04,0.00,COMMERCIAL SUPPLIER 
 10-10-2023,People - Ageing Well,Care-Away Ltd T/A Care Support,Home Care - Private Contractors Payment,917.00,0.00,COMMERCIAL SUPPLIER 
 10-10-2023,People - Ageing Well,Care-Away Ltd T/A Care Support,Home Care - Private Contractors Payment,513.52,0.00,COMMERCIAL SUPPLIER 
 10-10-2023,People - Ageing Well,Care-Away Ltd T/A Care Support,Home Care - Private Contractors Payment,999.53,0.00,COMMERCIAL SUPPLIER 
 10-10-2023,People - Ageing Well,Care-Away Ltd T/A Care Support,Home Care - Private Contractors Payment,962.85,0.00,COMMERCIAL SUPPLIER 
 10-10-2023,People - Ageing Well,Care-Away Ltd T/A Care Support,Home Care - Private Contractors Payment,889.49,0.00,COMMERCIAL SUPPLIER 
 10-10-2023,People - Ageing Well,Care-Away Ltd T/A Care Support,Home Care - Private Contractors Payment,513.52,0.00,COMMERCIAL SUPPLIER 
 10-10-2023,People - Ageing Well,Care-Away Ltd T/A Care Support,Home Care - Private Contractors Payment,1027.04,0.00,COMMERCIAL SUPPLIER 
 10-10-2023,People - Ageing Well,Care-Away Ltd T/A Care Support,Home Care - Private Contractors Payment,2054.08,0.00,COMMERCIAL SUPPLIER 
 10-10-2023,People - Ageing Well,Care-Away Ltd T/A Care Support,Home Care - Private Contractors Payment,513.52,0.00,COMMERCIAL SUPPLIER 
 10-10-2023,People - Ageing Well,Home Support Services (Havering & Essex) Ltd,Home Care - Private Contractors Payment,5456.00,0.00,COMMERCIAL SUPPLIER 
 10-10-2023,People - Ageing Well,Home Support Services (Havering & Essex) Ltd,Home Care - Private Contractors Payment,14666.30,0.00,COMMERCIAL SUPPLIER 
 10-10-2023,People - Ageing Well,Harrich Builders Ltd,Maintenance - Equipment Furniture And Materials,500.00,0.00,CIS 
 10-10-2023,People - Ageing Well,Harrich Builders Ltd,Maintenance - Equipment Furniture And Materials,510.00,0.00,CIS 
 10-10-2023,People - Ageing Well,Havering Women's Aid,Payments To Voluntary Sector,21904.17,0.00,NON COMMERCIAL SUPPLIER 
 10-10-2023,People - Ageing Well,Personal Information � Redacted ,Miscellaneous Expenses,500.00,0.00,INDIVIDUALS 
 10-10-2023,People - Ageing Well,Havering Association for People with Disabilities (H.A.D.),Payments To Voluntary Sector,3332.35,0.00,NON COMMERCIAL SUPPLIER 
 10-10-2023,People - Ageing Well,Havering Association for People with Disabilities (H.A.D.),Payments To Voluntary Sector,3332.35,0.00,NON COMMERCIAL SUPPLIER 
 10-10-2023,People - Ageing Well,Havering Mind,Payments To Voluntary Sector,3147.56,0.00,NON COMMERCIAL SUPPLIER 
 10-10-2023,People - Ageing Well,Havering Mind,Payments To Voluntary Sector,3147.56,0.00,NON COMMERCIAL SUPPLIER 
 11-10-2023,People - Ageing Well,Prestige Care & Support Ltd,Home Care - Private Contractors Payment,932.97,0.00,COMMERCIAL SUPPLIER 
 11-10-2023,People - Ageing Well,Prestige Care & Support Ltd,Home Care - Private Contractors Payment,1335.20,0.00,COMMERCIAL SUPPLIER 
 11-10-2023,People - Ageing Well,Prestige Care & Support Ltd,Home Care - Private Contractors Payment,860.88,0.00,COMMERCIAL SUPPLIER 
 11-10-2023,People - Ageing Well,Prestige Care & Support Ltd,Home Care - Private Contractors Payment,2489.85,0.00,COMMERCIAL SUPPLIER 
 11-10-2023,People - Ageing Well,Prestige Care & Support Ltd,Home Care - Private Contractors Payment,1226.00,0.00,COMMERCIAL SUPPLIER 
 11-10-2023,People - Ageing Well,Prestige Care & Support Ltd,Home Care - Private Contractors Payment,828.13,0.00,COMMERCIAL SUPPLIER 
 11-10-2023,People - Ageing Well,Prestige Care & Support Ltd,Home Care - Private Contractors Payment,2446.90,0.00,COMMERCIAL SUPPLIER 
 11-10-2023,People - Ageing Well,Prestige Care & Support Ltd,Home Care - Private Contractors Payment,511.07,0.00,COMMERCIAL SUPPLIER 
 11-10-2023,People - Ageing Well,Prestige Care & Support Ltd,Home Care - Private Contractors Payment,2774.86,0.00,COMMERCIAL SUPPLIER 
 11-10-2023,People - Ageing Well,Prestige Care & Support Ltd,Home Care - Private Contractors Payment,1269.68,0.00,COMMERCIAL SUPPLIER 
 11-10-2023,People - Ageing Well,Prestige Care & Support Ltd,Home Care - Private Contractors Payment,1306.08,0.00,COMMERCIAL SUPPLIER 
 11-10-2023,People - Ageing Well,Prestige Care & Support Ltd,Home Care - Private Contractors Payment,619.19,0.00,COMMERCIAL SUPPLIER 
 11-10-2023,People - Ageing Well,Prestige Care & Support Ltd,Home Care - Private Contractors Payment,2523.70,0.00,COMMERCIAL SUPPLIER 
 11-10-2023,People - Ageing Well,Prestige Care & Support Ltd,Home Care - Private Contractors Payment,2337.33,0.00,COMMERCIAL SUPPLIER 
 11-10-2023,People - Ageing Well,Prestige Care & Support Ltd,Home Care - Private Contractors Payment,1223.81,0.00,COMMERCIAL SUPPLIER 
 11-10-2023,People - Ageing Well,Prestige Care & Support Ltd,Home Care - Private Contractors Payment,975.55,0.00,COMMERCIAL SUPPLIER 
 11-10-2023,People - Ageing Well,Prestige Care & Support Ltd,Home Care - Private Contractors Payment,2164.06,0.00,COMMERCIAL SUPPLIER 
 11-10-2023,People - Ageing Well,Prestige Care & Support Ltd,Home Care - Private Contractors Payment,2245.96,0.00,COMMERCIAL SUPPLIER 
 11-10-2023,People - Ageing Well,Prestige Care & Support Ltd,Home Care - Private Contractors Payment,2460.73,0.00,COMMERCIAL SUPPLIER 
 11-10-2023,People - Ageing Well,Prestige Care & Support Ltd,Home Care - Private Contractors Payment,1887.77,0.00,COMMERCIAL SUPPLIER 
 11-10-2023,People - Ageing Well,Prestige Care & Support Ltd,Home Care - Private Contractors Payment,683.25,0.00,COMMERCIAL SUPPLIER 
 11-10-2023,People - Ageing Well,Prestige Care & Support Ltd,Home Care - Private Contractors Payment,1235.10,0.00,COMMERCIAL SUPPLIER 
 11-10-2023,People - Ageing Well,Prestige Care & Support Ltd,Home Care - Private Contractors Payment,612.27,0.00,COMMERCIAL SUPPLIER 
 11-10-2023,People - Ageing Well,Prestige Care & Support Ltd,Home Care - Private Contractors Payment,975.19,0.00,COMMERCIAL SUPPLIER 
 11-10-2023,People - Ageing Well,Prestige Care & Support Ltd,Home Care - Private Contractors Payment,2439.98,0.00,COMMERCIAL SUPPLIER 
 11-10-2023,People - Ageing Well,Prestige Care & Support Ltd,Home Care - Private Contractors Payment,1223.08,0.00,COMMERCIAL SUPPLIER 
 11-10-2023,People - Ageing Well,Prestige Care & Support Ltd,Home Care - Private Contractors Payment,582.05,0.00,COMMERCIAL SUPPLIER 
 11-10-2023,People - Ageing Well,Prestige Care & Support Ltd,Home Care - Private Contractors Payment,2487.30,0.00,COMMERCIAL SUPPLIER 
 11-10-2023,People - Ageing Well,Prestige Care & Support Ltd,Home Care - Private Contractors Payment,2449.08,0.00,COMMERCIAL SUPPLIER 
 11-10-2023,People - Ageing Well,Prestige Care & Support Ltd,Home Care - Private Contractors Payment,622.46,0.00,COMMERCIAL SUPPLIER 
 11-10-2023,People - Ageing Well,Prestige Care & Support Ltd,Home Care - Private Contractors Payment,917.31,0.00,COMMERCIAL SUPPLIER 
 11-10-2023,People - Ageing Well,Prestige Care & Support Ltd,Home Care - Private Contractors Payment,2446.53,0.00,COMMERCIAL SUPPLIER 
 11-10-2023,People - Ageing Well,Prestige Care & Support Ltd,Home Care - Private Contractors Payment,920.95,0.00,COMMERCIAL SUPPLIER 
 11-10-2023,People - Ageing Well,Prestige Care & Support Ltd,Home Care - Private Contractors Payment,2451.63,0.00,COMMERCIAL SUPPLIER 
 11-10-2023,People - Ageing Well,Prestige Care & Support Ltd,Home Care - Private Contractors Payment,611.54,0.00,COMMERCIAL SUPPLIER 
 11-10-2023,People - Ageing Well,Prestige Care & Support Ltd,Home Care - Private Contractors Payment,1153.19,0.00,COMMERCIAL SUPPLIER 
 11-10-2023,People - Ageing Well,Prestige Care & Support Ltd,Home Care - Private Contractors Payment,596.98,0.00,COMMERCIAL SUPPLIER 
 11-10-2023,People - Ageing Well,Prestige Care & Support Ltd,Home Care - Private Contractors Payment,1159.75,0.00,COMMERCIAL SUPPLIER 
 11-10-2023,People - Ageing Well,Prestige Care & Support Ltd,Home Care - Private Contractors Payment,2465.46,0.00,COMMERCIAL SUPPLIER 
 11-10-2023,People - Ageing Well,Prestige Care & Support Ltd,Home Care - Private Contractors Payment,611.54,0.00,COMMERCIAL SUPPLIER 
 11-10-2023,People - Ageing Well,Prestige Care & Support Ltd,Home Care - Private Contractors Payment,551.48,0.00,COMMERCIAL SUPPLIER 
 11-10-2023,People - Ageing Well,Prestige Care & Support Ltd,Home Care - Private Contractors Payment,1223.08,0.00,COMMERCIAL SUPPLIER 
 11-10-2023,People - Ageing Well,Prestige Care & Support Ltd,Home Care - Private Contractors Payment,923.50,0.00,COMMERCIAL SUPPLIER 
 11-10-2023,People - Ageing Well,Prestige Care & Support Ltd,Home Care - Private Contractors Payment,1175.03,0.00,COMMERCIAL SUPPLIER 
 11-10-2023,People - Ageing Well,Prestige Care & Support Ltd,Home Care - Private Contractors Payment,612.27,0.00,COMMERCIAL SUPPLIER 
 11-10-2023,People - Ageing Well,Prestige Care & Support Ltd,Home Care - Private Contractors Payment,611.54,0.00,COMMERCIAL SUPPLIER 
 11-10-2023,People - Ageing Well,Prestige Care & Support Ltd,Home Care - Private Contractors Payment,715.65,0.00,COMMERCIAL SUPPLIER 
 11-10-2023,People - Ageing Well,Prestige Care & Support Ltd,Home Care - Private Contractors Payment,1242.74,0.00,COMMERCIAL SUPPLIER 
 11-10-2023,People - Ageing Well,Prestige Care & Support Ltd,Home Care - Private Contractors Payment,886.01,0.00,COMMERCIAL SUPPLIER 
 11-10-2023,People - Ageing Well,Prestige Care & Support Ltd,Home Care - Private Contractors Payment,524.18,0.00,COMMERCIAL SUPPLIER 
 11-10-2023,People - Ageing Well,Prestige Care & Support Ltd,Home Care - Private Contractors Payment,2591.41,0.00,COMMERCIAL SUPPLIER 
 11-10-2023,People - Ageing Well,Prestige Care & Support Ltd,Home Care - Private Contractors Payment,584.96,0.00,COMMERCIAL SUPPLIER 
 11-10-2023,People - Ageing Well,Prestige Care & Support Ltd,Home Care - Private Contractors Payment,613.00,0.00,COMMERCIAL SUPPLIER 
 11-10-2023,People - Ageing Well,Independant Community Support Ltd T/A Heaton Lodge,Home Care - Private Contractors Payment,1928.55,0.00,COMMERCIAL SUPPLIER 
 11-10-2023,People - Ageing Well,Recruitcare Professionals Ltd ,Home Care - Private Contractors Payment,1223.08,0.00,COMMERCIAL SUPPLIER 
 11-10-2023,People - Ageing Well,ETAC Ltd ,Purchase - Equipment Furniture And Materials,1742.00,0.00,COMMERCIAL SUPPLIER 
 11-10-2023,People - Ageing Well,Flex360 Limited,Private Contractors Payment - Other,1750.00,0.00,COMMERCIAL SUPPLIER 
 11-10-2023,People - Ageing Well,Cera Care Operations Ltd,Home Care - Private Contractors Payment,1744.34,0.00,COMMERCIAL SUPPLIER 
 11-10-2023,People - Ageing Well,Cera Care Operations Ltd,Home Care - Private Contractors Payment,1047.26,0.00,COMMERCIAL SUPPLIER 
 11-10-2023,People - Ageing Well,Cera Care Operations Ltd,Home Care - Private Contractors Payment,1279.14,0.00,COMMERCIAL SUPPLIER 
 11-10-2023,People - Ageing Well,Cera Care Operations Ltd,Home Care - Private Contractors Payment,658.14,0.00,COMMERCIAL SUPPLIER 
 11-10-2023,People - Ageing Well,Cera Care Operations Ltd,Home Care - Private Contractors Payment,659.59,0.00,COMMERCIAL SUPPLIER 
 11-10-2023,People - Ageing Well,Cera Care Operations Ltd,Home Care - Private Contractors Payment,730.93,0.00,COMMERCIAL SUPPLIER 
 11-10-2023,People - Ageing Well,Cera Care Operations Ltd,Home Care - Private Contractors Payment,952.62,0.00,COMMERCIAL SUPPLIER 
 11-10-2023,People - Ageing Well,Cera Care Operations Ltd,Home Care - Private Contractors Payment,849.97,0.00,COMMERCIAL SUPPLIER 
 11-10-2023,People - Ageing Well,Cera Care Operations Ltd,Home Care - Private Contractors Payment,1232.55,0.00,COMMERCIAL SUPPLIER 
 11-10-2023,People - Ageing Well,Cera Care Operations Ltd,Home Care - Private Contractors Payment,1238.74,0.00,COMMERCIAL SUPPLIER 
 11-10-2023,People - Ageing Well,Cera Care Operations Ltd,Home Care - Private Contractors Payment,967.18,0.00,COMMERCIAL SUPPLIER 
 11-10-2023,People - Ageing Well,Cera Care Operations Ltd,Home Care - Private Contractors Payment,945.71,0.00,COMMERCIAL SUPPLIER 
 11-10-2023,People - Ageing Well,Cera Care Operations Ltd,Home Care - Private Contractors Payment,1234.73,0.00,COMMERCIAL SUPPLIER 
 11-10-2023,People - Ageing Well,Cera Care Operations Ltd,Home Care - Private Contractors Payment,1202.33,0.00,COMMERCIAL SUPPLIER 
 11-10-2023,People - Ageing Well,Cera Care Operations Ltd,Home Care - Private Contractors Payment,1067.65,0.00,COMMERCIAL SUPPLIER 
 11-10-2023,People - Ageing Well,Cera Care Operations Ltd,Home Care - Private Contractors Payment,984.66,0.00,COMMERCIAL SUPPLIER 
 11-10-2023,People - Ageing Well,Cera Care Operations Ltd,Home Care - Private Contractors Payment,614.45,0.00,COMMERCIAL SUPPLIER 
 11-10-2023,People - Ageing Well,Cera Care Operations Ltd,Home Care - Private Contractors Payment,550.75,0.00,COMMERCIAL SUPPLIER 
 11-10-2023,People - Ageing Well,Cera Care Operations Ltd,Home Care - Private Contractors Payment,1220.90,0.00,COMMERCIAL SUPPLIER 
 11-10-2023,People - Ageing Well,Cera Care Operations Ltd,Home Care - Private Contractors Payment,1244.20,0.00,COMMERCIAL SUPPLIER 
 11-10-2023,People - Ageing Well,Cera Care Operations Ltd,Home Care - Private Contractors Payment,1309.35,0.00,COMMERCIAL SUPPLIER 
 11-10-2023,People - Ageing Well,Cera Care Operations Ltd,Home Care - Private Contractors Payment,614.45,0.00,COMMERCIAL SUPPLIER 
 11-10-2023,People - Ageing Well,Cera Care Operations Ltd,Home Care - Private Contractors Payment,611.54,0.00,COMMERCIAL SUPPLIER 
 11-10-2023,People - Ageing Well,Cera Care Operations Ltd,Home Care - Private Contractors Payment,824.13,0.00,COMMERCIAL SUPPLIER 
 11-10-2023,People - Ageing Well,Cera Care Operations Ltd,Home Care - Private Contractors Payment,916.58,0.00,COMMERCIAL SUPPLIER 
 11-10-2023,People - Ageing Well,Cera Care Operations Ltd,Home Care - Private Contractors Payment,744.76,0.00,COMMERCIAL SUPPLIER 
 11-10-2023,People - Ageing Well,Cera Care Operations Ltd,Home Care - Private Contractors Payment,920.95,0.00,COMMERCIAL SUPPLIER 
 11-10-2023,People - Ageing Well,Cera Care Operations Ltd,Home Care - Private Contractors Payment,653.04,0.00,COMMERCIAL SUPPLIER 
 11-10-2023,People - Ageing Well,Cera Care Operations Ltd,Home Care - Private Contractors Payment,1323.55,0.00,COMMERCIAL SUPPLIER 
 11-10-2023,People - Ageing Well,Cera Care Operations Ltd,Home Care - Private Contractors Payment,1378.51,0.00,COMMERCIAL SUPPLIER 
 11-10-2023,People - Ageing Well,Cera Care Operations Ltd,Home Care - Private Contractors Payment,6572.80,0.00,COMMERCIAL SUPPLIER 
 11-10-2023,People - Ageing Well,Cera Care Operations Ltd,Home Care - Private Contractors Payment,1242.74,0.00,COMMERCIAL SUPPLIER 
 11-10-2023,People - Ageing Well,Cera Care Operations Ltd,Home Care - Private Contractors Payment,1076.38,0.00,COMMERCIAL SUPPLIER 
 11-10-2023,People - Ageing Well,Cera Care Operations Ltd,Home Care - Private Contractors Payment,908.58,0.00,COMMERCIAL SUPPLIER 
 11-10-2023,People - Ageing Well,Cera Care Operations Ltd,Home Care - Private Contractors Payment,1381.06,0.00,COMMERCIAL SUPPLIER 
 11-10-2023,People - Ageing Well,Cera Care Operations Ltd,Home Care - Private Contractors Payment,1533.58,0.00,COMMERCIAL SUPPLIER 
 11-10-2023,People - Ageing Well,Cera Care Operations Ltd,Home Care - Private Contractors Payment,1235.82,0.00,COMMERCIAL SUPPLIER 
 11-10-2023,People - Ageing Well,Cera Care Operations Ltd,Home Care - Private Contractors Payment,631.20,0.00,COMMERCIAL SUPPLIER 
 11-10-2023,People - Ageing Well,Cera Care Operations Ltd,Home Care - Private Contractors Payment,820.48,0.00,COMMERCIAL SUPPLIER 
 11-10-2023,People - Ageing Well,Cera Care Operations Ltd,Home Care - Private Contractors Payment,1021.78,0.00,COMMERCIAL SUPPLIER 
 11-10-2023,People - Ageing Well,Cera Care Operations Ltd,Home Care - Private Contractors Payment,1268.58,0.00,COMMERCIAL SUPPLIER 
 11-10-2023,People - Ageing Well,Matrix SCM Ltd,Agency Staff,1209.60,0.00,COMMERCIAL SUPPLIER 
 11-10-2023,People - Ageing Well,Matrix SCM Ltd,Agency Staff,607.20,0.00,COMMERCIAL SUPPLIER 
 11-10-2023,People - Ageing Well,Matrix SCM Ltd,Agency Staff,1297.79,0.00,COMMERCIAL SUPPLIER 
 11-10-2023,People - Ageing Well,Matrix SCM Ltd,Agency Staff,1213.57,0.00,COMMERCIAL SUPPLIER 
 11-10-2023,People - Ageing Well,Matrix SCM Ltd,Agency Staff,1037.92,0.00,COMMERCIAL SUPPLIER 
 11-10-2023,People - Ageing Well,Matrix SCM Ltd,Agency Staff,1066.04,0.00,COMMERCIAL SUPPLIER 
 11-10-2023,People - Ageing Well,Matrix SCM Ltd,Agency Staff,1288.10,0.00,COMMERCIAL SUPPLIER 
 11-10-2023,People - Ageing Well,Matrix SCM Ltd,Agency Staff,1241.28,0.00,COMMERCIAL SUPPLIER 
 11-10-2023,People - Ageing Well,Matrix SCM Ltd,Agency Staff,1385.28,0.00,COMMERCIAL SUPPLIER 
 11-10-2023,People - Ageing Well,Matrix SCM Ltd,Agency Staff,619.55,0.00,COMMERCIAL SUPPLIER 
 11-10-2023,People - Ageing Well,Matrix SCM Ltd,Agency Staff,1395.73,0.00,COMMERCIAL SUPPLIER 
 11-10-2023,People - Ageing Well,Matrix SCM Ltd,Agency Staff,1277.28,0.00,COMMERCIAL SUPPLIER 
 11-10-2023,People - Ageing Well,Matrix SCM Ltd,Agency Staff,774.90,0.00,COMMERCIAL SUPPLIER 
 11-10-2023,People - Ageing Well,Matrix SCM Ltd,Agency Staff,1283.04,0.00,COMMERCIAL SUPPLIER 
 11-10-2023,People - Ageing Well,Matrix SCM Ltd,Agency Staff,790.93,0.00,COMMERCIAL SUPPLIER 
 11-10-2023,People - Ageing Well,Matrix SCM Ltd,Agency Staff,1275.49,0.00,COMMERCIAL SUPPLIER 
 11-10-2023,People - Ageing Well,Matrix SCM Ltd,Agency Staff,1241.28,0.00,COMMERCIAL SUPPLIER 
 11-10-2023,People - Ageing Well,Matrix SCM Ltd,Agency Staff,1071.84,0.00,COMMERCIAL SUPPLIER 
 11-10-2023,People - Ageing Well,Matrix SCM Ltd,Agency Staff,1241.28,0.00,COMMERCIAL SUPPLIER 
 11-10-2023,People - Ageing Well,Matrix SCM Ltd,Agency Staff,1169.28,0.00,COMMERCIAL SUPPLIER 
 11-10-2023,People - Ageing Well,Matrix SCM Ltd,Agency Staff,1253.54,0.00,COMMERCIAL SUPPLIER 
 11-10-2023,People - Ageing Well,Matrix SCM Ltd,Agency Staff,1275.49,0.00,COMMERCIAL SUPPLIER 
 11-10-2023,People - Ageing Well,Matrix SCM Ltd,Agency Staff,790.91,0.00,COMMERCIAL SUPPLIER 
 11-10-2023,People - Ageing Well,Matrix SCM Ltd,Agency Staff,1274.05,0.00,COMMERCIAL SUPPLIER 
 11-10-2023,People - Ageing Well,Matrix SCM Ltd,Agency Staff,1241.28,0.00,COMMERCIAL SUPPLIER 
 11-10-2023,People - Ageing Well,Matrix SCM Ltd,Agency Staff,1241.28,0.00,COMMERCIAL SUPPLIER 
 11-10-2023,People - Ageing Well,Matrix SCM Ltd,Agency Staff,504.90,0.00,COMMERCIAL SUPPLIER 
 11-10-2023,People - Ageing Well,Matrix SCM Ltd,Agency Staff,1384.58,0.00,COMMERCIAL SUPPLIER 
 11-10-2023,People - Ageing Well,Matrix SCM Ltd,Agency Staff,560.30,0.00,COMMERCIAL SUPPLIER 
 11-10-2023,People - Ageing Well,Matrix SCM Ltd,Agency Staff,1241.28,0.00,COMMERCIAL SUPPLIER 
 11-10-2023,People - Ageing Well,Eveshel Care Ltd,Home Care - Private Contractors Payment,1157.55,0.00,COMMERCIAL SUPPLIER 
 11-10-2023,People - Ageing Well,Eveshel Care Ltd,Home Care - Private Contractors Payment,1157.55,0.00,COMMERCIAL SUPPLIER 
 11-10-2023,People - Ageing Well,Alzheimer's Society.,Payments To Voluntary Sector,6374.17,0.00,COMMERCIAL SUPPLIER 
 11-10-2023,People - Ageing Well,Alzheimer's Society.,Payments To Voluntary Sector,6374.17,0.00,COMMERCIAL SUPPLIER 
 11-10-2023,People - Ageing Well,Pleasant Home Healthcare Ltd,Home Care - Private Contractors Payment,1348.65,0.00,COMMERCIAL SUPPLIER 
 12-10-2023,People - Ageing Well,Care-Away Ltd T/A Care Support,Home Care - Private Contractors Payment,1027.04,0.00,COMMERCIAL SUPPLIER 
 12-10-2023,People - Ageing Well,Care-Away Ltd T/A Care Support,Home Care - Private Contractors Payment,2824.36,0.00,COMMERCIAL SUPPLIER 
 12-10-2023,People - Ageing Well,Care-Away Ltd T/A Care Support,Home Care - Private Contractors Payment,513.52,0.00,COMMERCIAL SUPPLIER 
 12-10-2023,People - Ageing Well,Care-Away Ltd T/A Care Support,Home Care - Private Contractors Payment,1247.12,0.00,COMMERCIAL SUPPLIER 
 12-10-2023,People - Ageing Well,Care-Away Ltd T/A Care Support,Home Care - Private Contractors Payment,660.24,0.00,COMMERCIAL SUPPLIER 
 12-10-2023,People - Ageing Well,Care-Away Ltd T/A Care Support,Home Care - Private Contractors Payment,1118.74,0.00,COMMERCIAL SUPPLIER 
 12-10-2023,People - Ageing Well,Care-Away Ltd T/A Care Support,Home Care - Private Contractors Payment,1210.44,0.00,COMMERCIAL SUPPLIER 
 12-10-2023,People - Ageing Well,Care-Away Ltd T/A Care Support,Home Care - Private Contractors Payment,1027.04,0.00,COMMERCIAL SUPPLIER 
 12-10-2023,People - Ageing Well,Care-Away Ltd T/A Care Support,Home Care - Private Contractors Payment,1155.42,0.00,COMMERCIAL SUPPLIER 
 12-10-2023,People - Ageing Well,Care-Away Ltd T/A Care Support,Home Care - Private Contractors Payment,770.28,0.00,COMMERCIAL SUPPLIER 
 12-10-2023,People - Ageing Well,Care-Away Ltd T/A Care Support,Home Care - Private Contractors Payment,586.88,0.00,COMMERCIAL SUPPLIER 
 12-10-2023,People - Ageing Well,Care-Away Ltd T/A Care Support,Home Care - Private Contractors Payment,1155.42,0.00,COMMERCIAL SUPPLIER 
 12-10-2023,People - Ageing Well,Care-Away Ltd T/A Care Support,Home Care - Private Contractors Payment,1283.80,0.00,COMMERCIAL SUPPLIER 
 12-10-2023,People - Ageing Well,Care-Away Ltd T/A Care Support,Home Care - Private Contractors Payment,641.90,0.00,COMMERCIAL SUPPLIER 
 12-10-2023,People - Ageing Well,Care-Away Ltd T/A Care Support,Home Care - Private Contractors Payment,687.75,0.00,COMMERCIAL SUPPLIER 
 12-10-2023,People - Ageing Well,Care-Away Ltd T/A Care Support,Home Care - Private Contractors Payment,513.52,0.00,COMMERCIAL SUPPLIER 
 12-10-2023,People - Ageing Well,Care-Away Ltd T/A Care Support,Home Care - Private Contractors Payment,2824.36,0.00,COMMERCIAL SUPPLIER 
 12-10-2023,People - Ageing Well,Care-Away Ltd T/A Care Support,Home Care - Private Contractors Payment,513.52,0.00,COMMERCIAL SUPPLIER 
 12-10-2023,People - Ageing Well,Care-Away Ltd T/A Care Support,Home Care - Private Contractors Payment,1027.04,0.00,COMMERCIAL SUPPLIER 
 12-10-2023,People - Ageing Well,Care-Away Ltd T/A Care Support,Home Care - Private Contractors Payment,2567.60,0.00,COMMERCIAL SUPPLIER 
 12-10-2023,People - Ageing Well,Care-Away Ltd T/A Care Support,Home Care - Private Contractors Payment,3081.12,0.00,COMMERCIAL SUPPLIER 
 12-10-2023,People - Ageing Well,Care-Away Ltd T/A Care Support,Home Care - Private Contractors Payment,2017.40,0.00,COMMERCIAL SUPPLIER 
 12-10-2023,People - Ageing Well,Care-Away Ltd T/A Care Support,Home Care - Private Contractors Payment,1027.04,0.00,COMMERCIAL SUPPLIER 
 12-10-2023,People - Ageing Well,Care-Away Ltd T/A Care Support,Home Care - Private Contractors Payment,770.28,0.00,COMMERCIAL SUPPLIER 
 12-10-2023,People - Ageing Well,Care-Away Ltd T/A Care Support,Home Care - Private Contractors Payment,1118.74,0.00,COMMERCIAL SUPPLIER 
 12-10-2023,People - Ageing Well,Worcestershire County Council ,Private Contractors Payment - Other,500.00,0.00,LOCAL AUTHORITY SERVICES 
 13-10-2023,People - Ageing Well,London Care Plc_a,Home Care - Private Contractors Payment,956.63,0.00,COMMERCIAL SUPPLIER 
 13-10-2023,People - Ageing Well,London Care Plc_a,Home Care - Private Contractors Payment,1558.33,0.00,COMMERCIAL SUPPLIER 
 13-10-2023,People - Ageing Well,London Care Plc_a,Home Care - Private Contractors Payment,1570.34,0.00,COMMERCIAL SUPPLIER 
 13-10-2023,People - Ageing Well,London Care Plc_a,Home Care - Private Contractors Payment,1467.33,0.00,COMMERCIAL SUPPLIER 
 13-10-2023,People - Ageing Well,London Care Plc_a,Home Care - Private Contractors Payment,1468.42,0.00,COMMERCIAL SUPPLIER 
 13-10-2023,People - Ageing Well,London Care Plc_a,Home Care - Private Contractors Payment,1467.69,0.00,COMMERCIAL SUPPLIER 
 13-10-2023,People - Ageing Well,Mayflower Travel,Client Transport,3360.00,0.00,COMMERCIAL SUPPLIER 
 13-10-2023,People - Ageing Well,Mayflower Travel,Client Transport,1548.00,0.00,COMMERCIAL SUPPLIER 
 13-10-2023,People - Ageing Well,Eastway Care Ltd_a,Daycare - Private Contractors Payment,2784.00,0.00,COMMERCIAL SUPPLIER 
 13-10-2023,People - Ageing Well,Eastway Care Ltd_a,Daycare - Private Contractors Payment,928.00,0.00,COMMERCIAL SUPPLIER 
 13-10-2023,People - Ageing Well,Eastway Care Ltd_a,Daycare - Private Contractors Payment,4640.00,0.00,COMMERCIAL SUPPLIER 
 13-10-2023,People - Ageing Well,Eastway Care Ltd_a,Daycare - Private Contractors Payment,2784.00,0.00,COMMERCIAL SUPPLIER 
 13-10-2023,People - Ageing Well,Eastway Care Ltd_a,Daycare - Private Contractors Payment,3712.00,0.00,COMMERCIAL SUPPLIER 
 13-10-2023,People - Ageing Well,Eastway Care Ltd_a,Daycare - Private Contractors Payment,4640.00,0.00,COMMERCIAL SUPPLIER 
 13-10-2023,People - Ageing Well,Eastway Care Ltd_a,Daycare - Private Contractors Payment,1488.00,0.00,COMMERCIAL SUPPLIER 
 13-10-2023,People - Ageing Well,Eastway Care Ltd_a,Daycare - Private Contractors Payment,4640.00,0.00,COMMERCIAL SUPPLIER 
 13-10-2023,People - Ageing Well,Eastway Care Ltd_a,Daycare - Private Contractors Payment,3712.00,0.00,COMMERCIAL SUPPLIER 
 13-10-2023,People - Ageing Well,Eastway Care Ltd_a,Daycare - Private Contractors Payment,4640.00,0.00,COMMERCIAL SUPPLIER 
 13-10-2023,People - Ageing Well,Eastway Care Ltd_a,Daycare - Private Contractors Payment,3420.00,0.00,COMMERCIAL SUPPLIER 
 13-10-2023,People - Ageing Well,Eastway Care Ltd_a,Daycare - Private Contractors Payment,4640.00,0.00,COMMERCIAL SUPPLIER 
 13-10-2023,People - Ageing Well,Eastway Care Ltd_a,Daycare - Private Contractors Payment,2784.00,0.00,COMMERCIAL SUPPLIER 
 13-10-2023,People - Ageing Well,Eastway Care Ltd_a,Daycare - Private Contractors Payment,928.00,0.00,COMMERCIAL SUPPLIER 
 13-10-2023,People - Ageing Well,Care-Away Ltd T/A Care Support,Private Contractors Payment - Other,20828.31,0.00,COMMERCIAL SUPPLIER 
 13-10-2023,People - Ageing Well,Care-Away Ltd T/A Care Support,Home Care - Private Contractors Payment,513.52,0.00,COMMERCIAL SUPPLIER 
 13-10-2023,People - Ageing Well,Care-Away Ltd T/A Care Support,Home Care - Private Contractors Payment,770.28,0.00,COMMERCIAL SUPPLIER 
 13-10-2023,People - Ageing Well,Care-Away Ltd T/A Care Support,Home Care - Private Contractors Payment,1540.56,0.00,COMMERCIAL SUPPLIER 
 13-10-2023,People - Ageing Well,Care-Away Ltd T/A Care Support,Home Care - Private Contractors Payment,513.52,0.00,COMMERCIAL SUPPLIER 
 13-10-2023,People - Ageing Well,Care-Away Ltd T/A Care Support,Home Care - Private Contractors Payment,788.62,0.00,COMMERCIAL SUPPLIER 
 13-10-2023,People - Ageing Well,Care-Away Ltd T/A Care Support,Home Care - Private Contractors Payment,1155.42,0.00,COMMERCIAL SUPPLIER 
 13-10-2023,People - Ageing Well,Care-Away Ltd T/A Care Support,Home Care - Private Contractors Payment,1027.04,0.00,COMMERCIAL SUPPLIER 
 13-10-2023,People - Ageing Well,Care-Away Ltd T/A Care Support,Home Care - Private Contractors Payment,770.28,0.00,COMMERCIAL SUPPLIER 
 13-10-2023,People - Ageing Well,Care-Away Ltd T/A Care Support,Home Care - Private Contractors Payment,513.52,0.00,COMMERCIAL SUPPLIER 
 13-10-2023,People - Ageing Well,Care-Away Ltd T/A Care Support,Home Care - Private Contractors Payment,1357.16,0.00,COMMERCIAL SUPPLIER 
 13-10-2023,People - Ageing Well,Care-Away Ltd T/A Care Support,Home Care - Private Contractors Payment,1027.04,0.00,COMMERCIAL SUPPLIER 
 13-10-2023,People - Ageing Well,Care-Away Ltd T/A Care Support,Home Care - Private Contractors Payment,586.88,0.00,COMMERCIAL SUPPLIER 
 13-10-2023,People - Ageing Well,Care-Away Ltd T/A Care Support,Home Care - Private Contractors Payment,3493.77,0.00,COMMERCIAL SUPPLIER 
 13-10-2023,People - Ageing Well,Care-Away Ltd T/A Care Support,Home Care - Private Contractors Payment,1027.04,0.00,COMMERCIAL SUPPLIER 
 13-10-2023,People - Ageing Well,Care-Away Ltd T/A Care Support,Home Care - Private Contractors Payment,2640.96,0.00,COMMERCIAL SUPPLIER 
 13-10-2023,People - Ageing Well,Care-Away Ltd T/A Care Support,Home Care - Private Contractors Payment,770.28,0.00,COMMERCIAL SUPPLIER 
 13-10-2023,People - Ageing Well,Care-Away Ltd T/A Care Support,Home Care - Private Contractors Payment,2054.08,0.00,COMMERCIAL SUPPLIER 
 13-10-2023,People - Ageing Well,Care-Away Ltd T/A Care Support,Home Care - Private Contractors Payment,641.90,0.00,COMMERCIAL SUPPLIER 
 13-10-2023,People - Ageing Well,Care-Away Ltd T/A Care Support,Home Care - Private Contractors Payment,513.52,0.00,COMMERCIAL SUPPLIER 
 13-10-2023,People - Ageing Well,Care-Away Ltd T/A Care Support,Home Care - Private Contractors Payment,1283.80,0.00,COMMERCIAL SUPPLIER 
 13-10-2023,People - Ageing Well,Care-Away Ltd T/A Care Support,Home Care - Private Contractors Payment,513.52,0.00,COMMERCIAL SUPPLIER 
 13-10-2023,People - Ageing Well,Care-Away Ltd T/A Care Support,Home Care - Private Contractors Payment,1852.34,0.00,COMMERCIAL SUPPLIER 
 13-10-2023,People - Ageing Well,Care-Away Ltd T/A Care Support,Home Care - Private Contractors Payment,770.28,0.00,COMMERCIAL SUPPLIER 
 13-10-2023,People - Ageing Well,Care-Away Ltd T/A Care Support,Home Care - Private Contractors Payment,953.68,0.00,COMMERCIAL SUPPLIER 
 13-10-2023,People - Ageing Well,Care-Away Ltd T/A Care Support,Home Care - Private Contractors Payment,898.66,0.00,COMMERCIAL SUPPLIER 
 13-10-2023,People - Ageing Well,Care-Away Ltd T/A Care Support,Home Care - Private Contractors Payment,1063.72,0.00,COMMERCIAL SUPPLIER 
 13-10-2023,People - Ageing Well,Care-Away Ltd T/A Care Support,Home Care - Private Contractors Payment,1063.72,0.00,COMMERCIAL SUPPLIER 
 13-10-2023,People - Ageing Well,Home Support Services (Havering & Essex) Ltd,Home Care - Private Contractors Payment,604.26,0.00,COMMERCIAL SUPPLIER 
 13-10-2023,People - Ageing Well,Home Support Services (Havering & Essex) Ltd,Home Care - Private Contractors Payment,2207.74,0.00,COMMERCIAL SUPPLIER 
 13-10-2023,People - Ageing Well,Home Support Services (Havering & Essex) Ltd,Home Care - Private Contractors Payment,1318.09,0.00,COMMERCIAL SUPPLIER 
 13-10-2023,People - Ageing Well,Home Support Services (Havering & Essex) Ltd,Home Care - Private Contractors Payment,2446.17,0.00,COMMERCIAL SUPPLIER 
 13-10-2023,People - Ageing Well,Home Support Services (Havering & Essex) Ltd,Home Care - Private Contractors Payment,2349.71,0.00,COMMERCIAL SUPPLIER 
 13-10-2023,People - Ageing Well,Home Support Services (Havering & Essex) Ltd,Home Care - Private Contractors Payment,1055.27,0.00,COMMERCIAL SUPPLIER 
 13-10-2023,People - Ageing Well,Home Support Services (Havering & Essex) Ltd,Home Care - Private Contractors Payment,1630.41,0.00,COMMERCIAL SUPPLIER 
 13-10-2023,People - Ageing Well,Home Support Services (Havering & Essex) Ltd,Home Care - Private Contractors Payment,2066.50,0.00,COMMERCIAL SUPPLIER 
 13-10-2023,People - Ageing Well,Home Support Services (Havering & Essex) Ltd,Home Care - Private Contractors Payment,613.00,0.00,COMMERCIAL SUPPLIER 
 13-10-2023,People - Ageing Well,Home Support Services (Havering & Essex) Ltd,Home Care - Private Contractors Payment,786.27,0.00,COMMERCIAL SUPPLIER 
 13-10-2023,People - Ageing Well,Home Support Services (Havering & Essex) Ltd,Home Care - Private Contractors Payment,907.85,0.00,COMMERCIAL SUPPLIER 
 13-10-2023,People - Ageing Well,Home Support Services (Havering & Essex) Ltd,Home Care - Private Contractors Payment,591.89,0.00,COMMERCIAL SUPPLIER 
 13-10-2023,People - Ageing Well,Home Support Services (Havering & Essex) Ltd,Home Care - Private Contractors Payment,921.32,0.00,COMMERCIAL SUPPLIER 
 13-10-2023,People - Ageing Well,Home Support Services (Havering & Essex) Ltd,Home Care - Private Contractors Payment,2469.83,0.00,COMMERCIAL SUPPLIER 
 13-10-2023,People - Ageing Well,Home Support Services (Havering & Essex) Ltd,Home Care - Private Contractors Payment,1383.25,0.00,COMMERCIAL SUPPLIER 
 13-10-2023,People - Ageing Well,Home Support Services (Havering & Essex) Ltd,Home Care - Private Contractors Payment,1834.63,0.00,COMMERCIAL SUPPLIER 
 13-10-2023,People - Ageing Well,Home Support Services (Havering & Essex) Ltd,Home Care - Private Contractors Payment,2430.15,0.00,COMMERCIAL SUPPLIER 
 13-10-2023,People - Ageing Well,Home Support Services (Havering & Essex) Ltd,Home Care - Private Contractors Payment,733.48,0.00,COMMERCIAL SUPPLIER 
 13-10-2023,People - Ageing Well,Home Support Services (Havering & Essex) Ltd,Home Care - Private Contractors Payment,923.14,0.00,COMMERCIAL SUPPLIER 
 13-10-2023,People - Ageing Well,Home Support Services (Havering & Essex) Ltd,Home Care - Private Contractors Payment,2446.17,0.00,COMMERCIAL SUPPLIER 
 13-10-2023,People - Ageing Well,Home Support Services (Havering & Essex) Ltd,Home Care - Private Contractors Payment,1743.62,0.00,COMMERCIAL SUPPLIER 
 13-10-2023,People - Ageing Well,Home Support Services (Havering & Essex) Ltd,Home Care - Private Contractors Payment,1844.09,0.00,COMMERCIAL SUPPLIER 
 13-10-2023,People - Ageing Well,Home Support Services (Havering & Essex) Ltd,Home Care - Private Contractors Payment,665.41,0.00,COMMERCIAL SUPPLIER 
 13-10-2023,People - Ageing Well,Home Support Services (Havering & Essex) Ltd,Home Care - Private Contractors Payment,2537.17,0.00,COMMERCIAL SUPPLIER 
 13-10-2023,People - Ageing Well,Home Support Services (Havering & Essex) Ltd,Home Care - Private Contractors Payment,2452.72,0.00,COMMERCIAL SUPPLIER 
 13-10-2023,People - Ageing Well,Home Support Services (Havering & Essex) Ltd,Home Care - Private Contractors Payment,524.18,0.00,COMMERCIAL SUPPLIER 
 13-10-2023,People - Ageing Well,Home Support Services (Havering & Essex) Ltd,Home Care - Private Contractors Payment,956.26,0.00,COMMERCIAL SUPPLIER 
 13-10-2023,People - Ageing Well,Home Support Services (Havering & Essex) Ltd,Home Care - Private Contractors Payment,1243.83,0.00,COMMERCIAL SUPPLIER 
 13-10-2023,People - Ageing Well,Home Support Services (Havering & Essex) Ltd,Home Care - Private Contractors Payment,917.31,0.00,COMMERCIAL SUPPLIER 
 13-10-2023,People - Ageing Well,Home Support Services (Havering & Essex) Ltd,Home Care - Private Contractors Payment,618.46,0.00,COMMERCIAL SUPPLIER 
 13-10-2023,People - Ageing Well,Home Support Services (Havering & Essex) Ltd,Home Care - Private Contractors Payment,1246.75,0.00,COMMERCIAL SUPPLIER 
 13-10-2023,People - Ageing Well,Home Support Services (Havering & Essex) Ltd,Home Care - Private Contractors Payment,1358.86,0.00,COMMERCIAL SUPPLIER 
 13-10-2023,People - Ageing Well,Home Support Services (Havering & Essex) Ltd,Home Care - Private Contractors Payment,1835.72,0.00,COMMERCIAL SUPPLIER 
 13-10-2023,People - Ageing Well,Home Support Services (Havering & Essex) Ltd,Home Care - Private Contractors Payment,2456.36,0.00,COMMERCIAL SUPPLIER 
 13-10-2023,People - Ageing Well,Home Support Services (Havering & Essex) Ltd,Home Care - Private Contractors Payment,655.22,0.00,COMMERCIAL SUPPLIER 
 13-10-2023,People - Ageing Well,Home Support Services (Havering & Essex) Ltd,Home Care - Private Contractors Payment,2449.81,0.00,COMMERCIAL SUPPLIER 
 13-10-2023,People - Ageing Well,Home Support Services (Havering & Essex) Ltd,Home Care - Private Contractors Payment,809.93,0.00,COMMERCIAL SUPPLIER 
 13-10-2023,People - Ageing Well,Home Support Services (Havering & Essex) Ltd,Home Care - Private Contractors Payment,1157.56,0.00,COMMERCIAL SUPPLIER 
 13-10-2023,People - Ageing Well,Home Support Services (Havering & Essex) Ltd,Home Care - Private Contractors Payment,935.15,0.00,COMMERCIAL SUPPLIER 
 13-10-2023,People - Ageing Well,Home Support Services (Havering & Essex) Ltd,Home Care - Private Contractors Payment,2475.65,0.00,COMMERCIAL SUPPLIER 
 13-10-2023,People - Ageing Well,Home Support Services (Havering & Essex) Ltd,Home Care - Private Contractors Payment,1584.55,0.00,COMMERCIAL SUPPLIER 
 13-10-2023,People - Ageing Well,Home Support Services (Havering & Essex) Ltd,Home Care - Private Contractors Payment,1528.86,0.00,COMMERCIAL SUPPLIER 
 13-10-2023,People - Ageing Well,Home Support Services (Havering & Essex) Ltd,Home Care - Private Contractors Payment,1223.08,0.00,COMMERCIAL SUPPLIER 
 13-10-2023,People - Ageing Well,Home Support Services (Havering & Essex) Ltd,Home Care - Private Contractors Payment,570.41,0.00,COMMERCIAL SUPPLIER 
 13-10-2023,People - Ageing Well,Home Support Services (Havering & Essex) Ltd,Home Care - Private Contractors Payment,2510.96,0.00,COMMERCIAL SUPPLIER 
 13-10-2023,People - Ageing Well,Home Support Services (Havering & Essex) Ltd,Home Care - Private Contractors Payment,629.38,0.00,COMMERCIAL SUPPLIER 
 13-10-2023,People - Ageing Well,Home Support Services (Havering & Essex) Ltd,Home Care - Private Contractors Payment,2020.27,0.00,COMMERCIAL SUPPLIER 
 13-10-2023,People - Ageing Well,Home Support Services (Havering & Essex) Ltd,Home Care - Private Contractors Payment,2487.30,0.00,COMMERCIAL SUPPLIER 
 13-10-2023,People - Ageing Well,Home Support Services (Havering & Essex) Ltd,Home Care - Private Contractors Payment,1048.36,0.00,COMMERCIAL SUPPLIER 
 13-10-2023,People - Ageing Well,Home Support Services (Havering & Essex) Ltd,Home Care - Private Contractors Payment,3701.27,0.00,COMMERCIAL SUPPLIER 
 13-10-2023,People - Ageing Well,Home Support Services (Havering & Essex) Ltd,Home Care - Private Contractors Payment,1466.24,0.00,COMMERCIAL SUPPLIER 
 13-10-2023,People - Ageing Well,Home Support Services (Havering & Essex) Ltd,Home Care - Private Contractors Payment,1303.89,0.00,COMMERCIAL SUPPLIER 
 13-10-2023,People - Ageing Well,Home Support Services (Havering & Essex) Ltd,Home Care - Private Contractors Payment,1540.87,0.00,COMMERCIAL SUPPLIER 
 13-10-2023,People - Ageing Well,Home Support Services (Havering & Essex) Ltd,Home Care - Private Contractors Payment,1259.12,0.00,COMMERCIAL SUPPLIER 
 13-10-2023,People - Ageing Well,Home Support Services (Havering & Essex) Ltd,Home Care - Private Contractors Payment,1315.90,0.00,COMMERCIAL SUPPLIER 
 13-10-2023,People - Ageing Well,Home Support Services (Havering & Essex) Ltd,Home Care - Private Contractors Payment,599.89,0.00,COMMERCIAL SUPPLIER 
 13-10-2023,People - Ageing Well,Home Support Services (Havering & Essex) Ltd,Home Care - Private Contractors Payment,561.61,0.00,COMMERCIAL SUPPLIER 
 13-10-2023,People - Ageing Well,Home Support Services (Havering & Essex) Ltd,Home Care - Private Contractors Payment,1094.22,0.00,COMMERCIAL SUPPLIER 
 13-10-2023,People - Ageing Well,Home Support Services (Havering & Essex) Ltd,Home Care - Private Contractors Payment,1135.36,0.00,COMMERCIAL SUPPLIER 
 13-10-2023,People - Ageing Well,Home Support Services (Havering & Essex) Ltd,Home Care - Private Contractors Payment,742.59,0.00,COMMERCIAL SUPPLIER 
 13-10-2023,People - Ageing Well,Home Support Services (Havering & Essex) Ltd,Home Care - Private Contractors Payment,2489.49,0.00,COMMERCIAL SUPPLIER 
 13-10-2023,People - Ageing Well,Home Support Services (Havering & Essex) Ltd,Home Care - Private Contractors Payment,1252.93,0.00,COMMERCIAL SUPPLIER 
 13-10-2023,People - Ageing Well,Home Support Services (Havering & Essex) Ltd,Home Care - Private Contractors Payment,1271.13,0.00,COMMERCIAL SUPPLIER 
 13-10-2023,People - Ageing Well,Home Support Services (Havering & Essex) Ltd,Home Care - Private Contractors Payment,2427.97,0.00,COMMERCIAL SUPPLIER 
 13-10-2023,People - Ageing Well,Home Support Services (Havering & Essex) Ltd,Home Care - Private Contractors Payment,2453.81,0.00,COMMERCIAL SUPPLIER 
 13-10-2023,People - Ageing Well,Home Support Services (Havering & Essex) Ltd,Home Care - Private Contractors Payment,1735.23,0.00,COMMERCIAL SUPPLIER 
 13-10-2023,People - Ageing Well,Home Support Services (Havering & Essex) Ltd,Home Care - Private Contractors Payment,3065.33,0.00,COMMERCIAL SUPPLIER 
 13-10-2023,People - Ageing Well,Home Support Services (Havering & Essex) Ltd,Home Care - Private Contractors Payment,601.35,0.00,COMMERCIAL SUPPLIER 
 13-10-2023,People - Ageing Well,Home Support Services (Havering & Essex) Ltd,Home Care - Private Contractors Payment,764.06,0.00,COMMERCIAL SUPPLIER 
 13-10-2023,People - Ageing Well,Home Support Services (Havering & Essex) Ltd,Home Care - Private Contractors Payment,2447.99,0.00,COMMERCIAL SUPPLIER 
 13-10-2023,People - Ageing Well,Home Support Services (Havering & Essex) Ltd,Home Care - Private Contractors Payment,618.46,0.00,COMMERCIAL SUPPLIER 
 13-10-2023,People - Ageing Well,Home Support Services (Havering & Essex) Ltd,Home Care - Private Contractors Payment,629.38,0.00,COMMERCIAL SUPPLIER 
 13-10-2023,People - Ageing Well,Home Support Services (Havering & Essex) Ltd,Home Care - Private Contractors Payment,1289.33,0.00,COMMERCIAL SUPPLIER 
 13-10-2023,People - Ageing Well,Home Support Services (Havering & Essex) Ltd,Home Care - Private Contractors Payment,611.91,0.00,COMMERCIAL SUPPLIER 
 13-10-2023,People - Ageing Well,Home Support Services (Havering & Essex) Ltd,Home Care - Private Contractors Payment,1223.45,0.00,COMMERCIAL SUPPLIER 
 13-10-2023,People - Ageing Well,Home Support Services (Havering & Essex) Ltd,Home Care - Private Contractors Payment,1194.32,0.00,COMMERCIAL SUPPLIER 
 13-10-2023,People - Ageing Well,Home Support Services (Havering & Essex) Ltd,Home Care - Private Contractors Payment,780.80,0.00,COMMERCIAL SUPPLIER 
 13-10-2023,People - Ageing Well,Home Support Services (Havering & Essex) Ltd,Home Care - Private Contractors Payment,1053.45,0.00,COMMERCIAL SUPPLIER 
 13-10-2023,People - Ageing Well,Home Support Services (Havering & Essex) Ltd,Home Care - Private Contractors Payment,2603.05,0.00,COMMERCIAL SUPPLIER 
 13-10-2023,People - Ageing Well,Home Support Services (Havering & Essex) Ltd,Home Care - Private Contractors Payment,2462.19,0.00,COMMERCIAL SUPPLIER 
 13-10-2023,People - Ageing Well,Home Support Services (Havering & Essex) Ltd,Home Care - Private Contractors Payment,2023.91,0.00,COMMERCIAL SUPPLIER 
 13-10-2023,People - Ageing Well,Home Support Services (Havering & Essex) Ltd,Home Care - Private Contractors Payment,1880.49,0.00,COMMERCIAL SUPPLIER 
 13-10-2023,People - Ageing Well,Home Support Services (Havering & Essex) Ltd,Home Care - Private Contractors Payment,698.88,0.00,COMMERCIAL SUPPLIER 
 13-10-2023,People - Ageing Well,Home Support Services (Havering & Essex) Ltd,Home Care - Private Contractors Payment,813.93,0.00,COMMERCIAL SUPPLIER 
 13-10-2023,People - Ageing Well,Home Support Services (Havering & Essex) Ltd,Home Care - Private Contractors Payment,995.58,0.00,COMMERCIAL SUPPLIER 
 13-10-2023,People - Ageing Well,Home Support Services (Havering & Essex) Ltd,Home Care - Private Contractors Payment,1977.68,0.00,COMMERCIAL SUPPLIER 
 13-10-2023,People - Ageing Well,Home Support Services (Havering & Essex) Ltd,Home Care - Private Contractors Payment,728.39,0.00,COMMERCIAL SUPPLIER 
 13-10-2023,People - Ageing Well,Home Support Services (Havering & Essex) Ltd,Home Care - Private Contractors Payment,611.54,0.00,COMMERCIAL SUPPLIER 
 13-10-2023,People - Ageing Well,Home Support Services (Havering & Essex) Ltd,Home Care - Private Contractors Payment,774.62,0.00,COMMERCIAL SUPPLIER 
 13-10-2023,People - Ageing Well,Home Support Services (Havering & Essex) Ltd,Home Care - Private Contractors Payment,642.48,0.00,COMMERCIAL SUPPLIER 
 13-10-2023,People - Ageing Well,Home Support Services (Havering & Essex) Ltd,Home Care - Private Contractors Payment,895.47,0.00,COMMERCIAL SUPPLIER 
 13-10-2023,People - Ageing Well,Home Support Services (Havering & Essex) Ltd,Home Care - Private Contractors Payment,1289.70,0.00,COMMERCIAL SUPPLIER 
 13-10-2023,People - Ageing Well,Home Support Services (Havering & Essex) Ltd,Home Care - Private Contractors Payment,1341.38,0.00,COMMERCIAL SUPPLIER 
 13-10-2023,People - Ageing Well,Home Support Services (Havering & Essex) Ltd,Home Care - Private Contractors Payment,816.12,0.00,COMMERCIAL SUPPLIER 
 13-10-2023,People - Ageing Well,Home Support Services (Havering & Essex) Ltd,Home Care - Private Contractors Payment,1264.58,0.00,COMMERCIAL SUPPLIER 
 13-10-2023,People - Ageing Well,Home Support Services (Havering & Essex) Ltd,Home Care - Private Contractors Payment,618.46,0.00,COMMERCIAL SUPPLIER 
 13-10-2023,People - Ageing Well,Home Support Services (Havering & Essex) Ltd,Home Care - Private Contractors Payment,660.68,0.00,COMMERCIAL SUPPLIER 
 13-10-2023,People - Ageing Well,Home Support Services (Havering & Essex) Ltd,Home Care - Private Contractors Payment,895.47,0.00,COMMERCIAL SUPPLIER 
 13-10-2023,People - Ageing Well,Home Support Services (Havering & Essex) Ltd,Home Care - Private Contractors Payment,611.54,0.00,COMMERCIAL SUPPLIER 
 13-10-2023,People - Ageing Well,Home Support Services (Havering & Essex) Ltd,Home Care - Private Contractors Payment,615.55,0.00,COMMERCIAL SUPPLIER 
 13-10-2023,People - Ageing Well,Home Support Services (Havering & Essex) Ltd,Home Care - Private Contractors Payment,2480.02,0.00,COMMERCIAL SUPPLIER 
 13-10-2023,People - Ageing Well,Home Support Services (Havering & Essex) Ltd,Home Care - Private Contractors Payment,1417.10,0.00,COMMERCIAL SUPPLIER 
 13-10-2023,People - Ageing Well,Home Support Services (Havering & Essex) Ltd,Home Care - Private Contractors Payment,1484.07,0.00,COMMERCIAL SUPPLIER 
 13-10-2023,People - Ageing Well,Home Support Services (Havering & Essex) Ltd,Home Care - Private Contractors Payment,1372.69,0.00,COMMERCIAL SUPPLIER 
 13-10-2023,People - Ageing Well,Home Support Services (Havering & Essex) Ltd,Home Care - Private Contractors Payment,1204.88,0.00,COMMERCIAL SUPPLIER 
 13-10-2023,People - Ageing Well,Home Support Services (Havering & Essex) Ltd,Home Care - Private Contractors Payment,2340.24,0.00,COMMERCIAL SUPPLIER 
 13-10-2023,People - Ageing Well,Home Support Services (Havering & Essex) Ltd,Home Care - Private Contractors Payment,1834.63,0.00,COMMERCIAL SUPPLIER 
 13-10-2023,People - Ageing Well,Home Support Services (Havering & Essex) Ltd,Home Care - Private Contractors Payment,917.31,0.00,COMMERCIAL SUPPLIER 
 13-10-2023,People - Ageing Well,Home Support Services (Havering & Essex) Ltd,Home Care - Private Contractors Payment,1253.66,0.00,COMMERCIAL SUPPLIER 
 13-10-2023,People - Ageing Well,Home Support Services (Havering & Essex) Ltd,Home Care - Private Contractors Payment,960.27,0.00,COMMERCIAL SUPPLIER 
 13-10-2023,People - Ageing Well,Home Support Services (Havering & Essex) Ltd,Home Care - Private Contractors Payment,503.07,0.00,COMMERCIAL SUPPLIER 
 13-10-2023,People - Ageing Well,Home Support Services (Havering & Essex) Ltd,Home Care - Private Contractors Payment,611.54,0.00,COMMERCIAL SUPPLIER 
 13-10-2023,People - Ageing Well,Home Support Services (Havering & Essex) Ltd,Home Care - Private Contractors Payment,1356.28,0.00,COMMERCIAL SUPPLIER 
 13-10-2023,People - Ageing Well,Agracare Ltd t/a Home Instead Senior Care,Home Care - Private Contractors Payment,2376.00,0.00,COMMERCIAL SUPPLIER 
 16-10-2023,People - Ageing Well,Anytime Care 2020_a,Home Care - Private Contractors Payment,981.74,0.00,COMMERCIAL SUPPLIER 
 16-10-2023,People - Ageing Well,Anytime Care 2020_a,Home Care - Private Contractors Payment,612.27,0.00,COMMERCIAL SUPPLIER 
 16-10-2023,People - Ageing Well,Anytime Care 2020_a,Home Care - Private Contractors Payment,942.07,0.00,COMMERCIAL SUPPLIER 
 16-10-2023,People - Ageing Well,Anytime Care 2020_a,Home Care - Private Contractors Payment,852.52,0.00,COMMERCIAL SUPPLIER 
 16-10-2023,People - Ageing Well,Anytime Care 2020_a,Home Care - Private Contractors Payment,853.61,0.00,COMMERCIAL SUPPLIER 
 16-10-2023,People - Ageing Well,Anytime Care 2020_a,Home Care - Private Contractors Payment,1201.24,0.00,COMMERCIAL SUPPLIER 
 16-10-2023,People - Ageing Well,Anytime Care 2020_a,Home Care - Private Contractors Payment,1204.52,0.00,COMMERCIAL SUPPLIER 
 16-10-2023,People - Ageing Well,Anytime Care 2020_a,Home Care - Private Contractors Payment,1037.44,0.00,COMMERCIAL SUPPLIER 
 16-10-2023,People - Ageing Well,Anytime Care 2020_a,Home Care - Private Contractors Payment,1037.80,0.00,COMMERCIAL SUPPLIER 
 16-10-2023,People - Ageing Well,Anytime Care 2020_a,Home Care - Private Contractors Payment,606.45,0.00,COMMERCIAL SUPPLIER 
 16-10-2023,People - Ageing Well,Anytime Care 2020_a,Home Care - Private Contractors Payment,1258.76,0.00,COMMERCIAL SUPPLIER 
 16-10-2023,People - Ageing Well,Anytime Care 2020_a,Home Care - Private Contractors Payment,524.18,0.00,COMMERCIAL SUPPLIER 
 16-10-2023,People - Ageing Well,Anytime Care 2020_a,Home Care - Private Contractors Payment,979.56,0.00,COMMERCIAL SUPPLIER 
 16-10-2023,People - Ageing Well,Anytime Care 2020_a,Home Care - Private Contractors Payment,972.98,0.00,COMMERCIAL SUPPLIER 
 16-10-2023,People - Ageing Well,Anytime Care 2020_a,Home Care - Private Contractors Payment,917.31,0.00,COMMERCIAL SUPPLIER 
 16-10-2023,People - Ageing Well,Anytime Care 2020_a,Home Care - Private Contractors Payment,1212.16,0.00,COMMERCIAL SUPPLIER 
 16-10-2023,People - Ageing Well,Anytime Care 2020_a,Home Care - Private Contractors Payment,1223.81,0.00,COMMERCIAL SUPPLIER 
 16-10-2023,People - Ageing Well,Anytime Care 2020_a,Home Care - Private Contractors Payment,1223.81,0.00,COMMERCIAL SUPPLIER 
 16-10-2023,People - Ageing Well,Anytime Care 2020_a,Home Care - Private Contractors Payment,1223.08,0.00,COMMERCIAL SUPPLIER 
 16-10-2023,People - Ageing Well,Anytime Care 2020_a,Home Care - Private Contractors Payment,1301.35,0.00,COMMERCIAL SUPPLIER 
 16-10-2023,People - Ageing Well,Anytime Care 2020_a,Home Care - Private Contractors Payment,704.36,0.00,COMMERCIAL SUPPLIER 
 16-10-2023,People - Ageing Well,Anytime Care 2020_a,Home Care - Private Contractors Payment,704.73,0.00,COMMERCIAL SUPPLIER 
 16-10-2023,People - Ageing Well,Anytime Care 2020_a,Home Care - Private Contractors Payment,1226.00,0.00,COMMERCIAL SUPPLIER 
 16-10-2023,People - Ageing Well,Anytime Care 2020_a,Home Care - Private Contractors Payment,1226.00,0.00,COMMERCIAL SUPPLIER 
 16-10-2023,People - Ageing Well,Anytime Care 2020_a,Home Care - Private Contractors Payment,919.50,0.00,COMMERCIAL SUPPLIER 
 16-10-2023,People - Ageing Well,Anytime Care 2020_a,Home Care - Private Contractors Payment,665.42,0.00,COMMERCIAL SUPPLIER 
 16-10-2023,People - Ageing Well,Anytime Care 2020_a,Home Care - Private Contractors Payment,655.22,0.00,COMMERCIAL SUPPLIER 
 16-10-2023,People - Ageing Well,Anytime Care 2020_a,Home Care - Private Contractors Payment,1212.16,0.00,COMMERCIAL SUPPLIER 
 16-10-2023,People - Ageing Well,Anytime Care 2020_a,Home Care - Private Contractors Payment,930.78,0.00,COMMERCIAL SUPPLIER 
 16-10-2023,People - Ageing Well,Anytime Care 2020_a,Home Care - Private Contractors Payment,614.45,0.00,COMMERCIAL SUPPLIER 
 16-10-2023,People - Ageing Well,Anytime Care 2020_a,Home Care - Private Contractors Payment,900.57,0.00,COMMERCIAL SUPPLIER 
 16-10-2023,People - Ageing Well,Anytime Care 2020_a,Home Care - Private Contractors Payment,785.18,0.00,COMMERCIAL SUPPLIER 
 16-10-2023,People - Ageing Well,Anytime Care 2020_a,Home Care - Private Contractors Payment,605.72,0.00,COMMERCIAL SUPPLIER 
 16-10-2023,People - Ageing Well,Anytime Care 2020_a,Home Care - Private Contractors Payment,606.08,0.00,COMMERCIAL SUPPLIER 
 16-10-2023,People - Ageing Well,Anytime Care 2020_a,Home Care - Private Contractors Payment,587.52,0.00,COMMERCIAL SUPPLIER 
 16-10-2023,People - Ageing Well,Anytime Care 2020_a,Home Care - Private Contractors Payment,587.52,0.00,COMMERCIAL SUPPLIER 
 16-10-2023,People - Ageing Well,Anytime Care 2020_a,Home Care - Private Contractors Payment,642.84,0.00,COMMERCIAL SUPPLIER 
 16-10-2023,People - Ageing Well,Anytime Care 2020_a,Home Care - Private Contractors Payment,567.86,0.00,COMMERCIAL SUPPLIER 
 16-10-2023,People - Ageing Well,Anytime Care 2020_a,Home Care - Private Contractors Payment,567.86,0.00,COMMERCIAL SUPPLIER 
 16-10-2023,People - Ageing Well,Anytime Care 2020_a,Home Care - Private Contractors Payment,1249.66,0.00,COMMERCIAL SUPPLIER 
 16-10-2023,People - Ageing Well,Anytime Care 2020_a,Home Care - Private Contractors Payment,1329.37,0.00,COMMERCIAL SUPPLIER 
 16-10-2023,People - Ageing Well,Anytime Care 2020_a,Home Care - Private Contractors Payment,633.38,0.00,COMMERCIAL SUPPLIER 
 16-10-2023,People - Ageing Well,London Borough of Barking & Dagenham_a,Daycare - Private Contractors Payment,2328.00,0.00,LOCAL AUTHORITY SERVICES 
 16-10-2023,People - Ageing Well,London Borough of Barking & Dagenham_a,Daycare - Private Contractors Payment,2328.00,0.00,LOCAL AUTHORITY SERVICES 
 16-10-2023,People - Ageing Well,London Borough of Barking & Dagenham_a,Daycare - Private Contractors Payment,3880.00,0.00,LOCAL AUTHORITY SERVICES 
 16-10-2023,People - Ageing Well,London Borough of Barking & Dagenham_a,Daycare - Private Contractors Payment,3880.00,0.00,LOCAL AUTHORITY SERVICES 
 16-10-2023,People - Ageing Well,London Borough of Barking & Dagenham_a,Daycare - Private Contractors Payment,1552.00,0.00,LOCAL AUTHORITY SERVICES 
 16-10-2023,People - Ageing Well,London Borough of Barking & Dagenham_a,Daycare - Private Contractors Payment,3880.00,0.00,LOCAL AUTHORITY SERVICES 
 16-10-2023,People - Ageing Well,London Borough of Barking & Dagenham_a,Daycare - Private Contractors Payment,1552.00,0.00,LOCAL AUTHORITY SERVICES 
 16-10-2023,People - Ageing Well,London Borough of Barking & Dagenham_a,Daycare - Private Contractors Payment,3880.00,0.00,LOCAL AUTHORITY SERVICES 
 16-10-2023,People - Ageing Well,London Borough of Barking & Dagenham_a,Daycare - Private Contractors Payment,776.00,0.00,LOCAL AUTHORITY SERVICES 
 16-10-2023,People - Ageing Well,Morepower Ltd t/a Aqs Homecare,Home Care - Private Contractors Payment,1233.64,0.00,COMMERCIAL SUPPLIER 
 16-10-2023,People - Ageing Well,Morepower Ltd t/a Aqs Homecare,Home Care - Private Contractors Payment,612.63,0.00,COMMERCIAL SUPPLIER 
 16-10-2023,People - Ageing Well,Morepower Ltd t/a Aqs Homecare,Home Care - Private Contractors Payment,938.79,0.00,COMMERCIAL SUPPLIER 
 16-10-2023,People - Ageing Well,Morepower Ltd t/a Aqs Homecare,Home Care - Private Contractors Payment,733.48,0.00,COMMERCIAL SUPPLIER 
 16-10-2023,People - Ageing Well,Morepower Ltd t/a Aqs Homecare,Home Care - Private Contractors Payment,871.44,0.00,COMMERCIAL SUPPLIER 
 16-10-2023,People - Ageing Well,Morepower Ltd t/a Aqs Homecare,Home Care - Private Contractors Payment,871.44,0.00,COMMERCIAL SUPPLIER 
 16-10-2023,People - Ageing Well,Morepower Ltd t/a Aqs Homecare,Home Care - Private Contractors Payment,1236.55,0.00,COMMERCIAL SUPPLIER 
 16-10-2023,People - Ageing Well,Morepower Ltd t/a Aqs Homecare,Home Care - Private Contractors Payment,1236.55,0.00,COMMERCIAL SUPPLIER 
 16-10-2023,People - Ageing Well,Morepower Ltd t/a Aqs Homecare,Home Care - Private Contractors Payment,675.24,0.00,COMMERCIAL SUPPLIER 
 16-10-2023,People - Ageing Well,Morepower Ltd t/a Aqs Homecare,Home Care - Private Contractors Payment,908.21,0.00,COMMERCIAL SUPPLIER 
 16-10-2023,People - Ageing Well,Morepower Ltd t/a Aqs Homecare,Home Care - Private Contractors Payment,611.54,0.00,COMMERCIAL SUPPLIER 
 16-10-2023,People - Ageing Well,Morepower Ltd t/a Aqs Homecare,Home Care - Private Contractors Payment,1228.17,0.00,COMMERCIAL SUPPLIER 
 16-10-2023,People - Ageing Well,Morepower Ltd t/a Aqs Homecare,Home Care - Private Contractors Payment,698.90,0.00,COMMERCIAL SUPPLIER 
 16-10-2023,People - Ageing Well,Morepower Ltd t/a Aqs Homecare,Home Care - Private Contractors Payment,672.33,0.00,COMMERCIAL SUPPLIER 
 16-10-2023,People - Ageing Well,Morepower Ltd t/a Aqs Homecare,Home Care - Private Contractors Payment,576.23,0.00,COMMERCIAL SUPPLIER 
 16-10-2023,People - Ageing Well,Morepower Ltd t/a Aqs Homecare,Home Care - Private Contractors Payment,1223.08,0.00,COMMERCIAL SUPPLIER 
 16-10-2023,People - Ageing Well,Morepower Ltd t/a Aqs Homecare,Home Care - Private Contractors Payment,1272.59,0.00,COMMERCIAL SUPPLIER 
 16-10-2023,People - Ageing Well,Morepower Ltd t/a Aqs Homecare,Home Care - Private Contractors Payment,1272.59,0.00,COMMERCIAL SUPPLIER 
 16-10-2023,People - Ageing Well,Morepower Ltd t/a Aqs Homecare,Home Care - Private Contractors Payment,1338.47,0.00,COMMERCIAL SUPPLIER 
 16-10-2023,People - Ageing Well,Morepower Ltd t/a Aqs Homecare,Home Care - Private Contractors Payment,1338.47,0.00,COMMERCIAL SUPPLIER 
 16-10-2023,People - Ageing Well,Morepower Ltd t/a Aqs Homecare,Home Care - Private Contractors Payment,665.78,0.00,COMMERCIAL SUPPLIER 
 16-10-2023,People - Ageing Well,Morepower Ltd t/a Aqs Homecare,Home Care - Private Contractors Payment,906.76,0.00,COMMERCIAL SUPPLIER 
 16-10-2023,People - Ageing Well,Morepower Ltd t/a Aqs Homecare,Home Care - Private Contractors Payment,1006.86,0.00,COMMERCIAL SUPPLIER 
 16-10-2023,People - Ageing Well,Morepower Ltd t/a Aqs Homecare,Home Care - Private Contractors Payment,1266.76,0.00,COMMERCIAL SUPPLIER 
 16-10-2023,People - Ageing Well,Morepower Ltd t/a Aqs Homecare,Home Care - Private Contractors Payment,1267.13,0.00,COMMERCIAL SUPPLIER 
 16-10-2023,People - Ageing Well,Morepower Ltd t/a Aqs Homecare,Home Care - Private Contractors Payment,638.84,0.00,COMMERCIAL SUPPLIER 
 16-10-2023,People - Ageing Well,Morepower Ltd t/a Aqs Homecare,Home Care - Private Contractors Payment,639.57,0.00,COMMERCIAL SUPPLIER 
 16-10-2023,People - Ageing Well,Morepower Ltd t/a Aqs Homecare,Home Care - Private Contractors Payment,618.46,0.00,COMMERCIAL SUPPLIER 
 16-10-2023,People - Ageing Well,Morepower Ltd t/a Aqs Homecare,Home Care - Private Contractors Payment,952.99,0.00,COMMERCIAL SUPPLIER 
 16-10-2023,People - Ageing Well,Morepower Ltd t/a Aqs Homecare,Home Care - Private Contractors Payment,1135.68,0.00,COMMERCIAL SUPPLIER 
 16-10-2023,People - Ageing Well,Morepower Ltd t/a Aqs Homecare,Home Care - Private Contractors Payment,1672.99,0.00,COMMERCIAL SUPPLIER 
 16-10-2023,People - Ageing Well,Morepower Ltd t/a Aqs Homecare,Home Care - Private Contractors Payment,1862.25,0.00,COMMERCIAL SUPPLIER 
 16-10-2023,People - Ageing Well,Morepower Ltd t/a Aqs Homecare,Home Care - Private Contractors Payment,568.22,0.00,COMMERCIAL SUPPLIER 
 16-10-2023,People - Ageing Well,Morepower Ltd t/a Aqs Homecare,Home Care - Private Contractors Payment,590.78,0.00,COMMERCIAL SUPPLIER 
 16-10-2023,People - Ageing Well,Morepower Ltd t/a Aqs Homecare,Home Care - Private Contractors Payment,982.83,0.00,COMMERCIAL SUPPLIER 
 16-10-2023,People - Ageing Well,Morepower Ltd t/a Aqs Homecare,Home Care - Private Contractors Payment,921.68,0.00,COMMERCIAL SUPPLIER 
 16-10-2023,People - Ageing Well,Morepower Ltd t/a Aqs Homecare,Home Care - Private Contractors Payment,1246.38,0.00,COMMERCIAL SUPPLIER 
 16-10-2023,People - Ageing Well,Morepower Ltd t/a Aqs Homecare,Home Care - Private Contractors Payment,612.63,0.00,COMMERCIAL SUPPLIER 
 16-10-2023,People - Ageing Well,Morepower Ltd t/a Aqs Homecare,Home Care - Private Contractors Payment,624.65,0.00,COMMERCIAL SUPPLIER 
 16-10-2023,People - Ageing Well,Morepower Ltd t/a Aqs Homecare,Home Care - Private Contractors Payment,907.49,0.00,COMMERCIAL SUPPLIER 
 16-10-2023,People - Ageing Well,Morepower Ltd t/a Aqs Homecare,Home Care - Private Contractors Payment,920.95,0.00,COMMERCIAL SUPPLIER 
 16-10-2023,People - Ageing Well,Morepower Ltd t/a Aqs Homecare,Home Care - Private Contractors Payment,1251.84,0.00,COMMERCIAL SUPPLIER 
 16-10-2023,People - Ageing Well,Morepower Ltd t/a Aqs Homecare,Home Care - Private Contractors Payment,1251.84,0.00,COMMERCIAL SUPPLIER 
 16-10-2023,People - Ageing Well,Morepower Ltd t/a Aqs Homecare,Home Care - Private Contractors Payment,1020.69,0.00,COMMERCIAL SUPPLIER 
 16-10-2023,People - Ageing Well,Morepower Ltd t/a Aqs Homecare,Home Care - Private Contractors Payment,958.07,0.00,COMMERCIAL SUPPLIER 
 16-10-2023,People - Ageing Well,Morepower Ltd t/a Aqs Homecare,Home Care - Private Contractors Payment,1482.61,0.00,COMMERCIAL SUPPLIER 
 16-10-2023,People - Ageing Well,Morepower Ltd t/a Aqs Homecare,Home Care - Private Contractors Payment,625.01,0.00,COMMERCIAL SUPPLIER 
 16-10-2023,People - Ageing Well,Morepower Ltd t/a Aqs Homecare,Home Care - Private Contractors Payment,591.89,0.00,COMMERCIAL SUPPLIER 
 16-10-2023,People - Ageing Well,Morepower Ltd t/a Aqs Homecare,Home Care - Private Contractors Payment,795.00,0.00,COMMERCIAL SUPPLIER 
 16-10-2023,People - Ageing Well,Morepower Ltd t/a Aqs Homecare,Home Care - Private Contractors Payment,1244.19,0.00,COMMERCIAL SUPPLIER 
 16-10-2023,People - Ageing Well,Morepower Ltd t/a Aqs Homecare,Home Care - Private Contractors Payment,1244.56,0.00,COMMERCIAL SUPPLIER 
 16-10-2023,People - Ageing Well,Morepower Ltd t/a Aqs Homecare,Home Care - Private Contractors Payment,728.75,0.00,COMMERCIAL SUPPLIER 
 16-10-2023,People - Ageing Well,Home Sweet Home Care Ltd,Home Care - Private Contractors Payment,1109.15,0.00,COMMERCIAL SUPPLIER 
 16-10-2023,People - Ageing Well,Home Sweet Home Care Ltd,Home Care - Private Contractors Payment,1192.51,0.00,COMMERCIAL SUPPLIER 
 16-10-2023,People - Ageing Well,Home Sweet Home Care Ltd,Home Care - Private Contractors Payment,546.38,0.00,COMMERCIAL SUPPLIER 
 16-10-2023,People - Ageing Well,Home Sweet Home Care Ltd,Home Care - Private Contractors Payment,1079.30,0.00,COMMERCIAL SUPPLIER 
 16-10-2023,People - Ageing Well,Home Sweet Home Care Ltd,Home Care - Private Contractors Payment,601.71,0.00,COMMERCIAL SUPPLIER 
 16-10-2023,People - Ageing Well,Home Sweet Home Care Ltd,Home Care - Private Contractors Payment,1265.31,0.00,COMMERCIAL SUPPLIER 
 16-10-2023,People - Ageing Well,Home Sweet Home Care Ltd,Home Care - Private Contractors Payment,636.66,0.00,COMMERCIAL SUPPLIER 
 16-10-2023,People - Ageing Well,Home Sweet Home Care Ltd,Home Care - Private Contractors Payment,769.52,0.00,COMMERCIAL SUPPLIER 
 16-10-2023,People - Ageing Well,Home Sweet Home Care Ltd,Home Care - Private Contractors Payment,1326.07,0.00,COMMERCIAL SUPPLIER 
 16-10-2023,People - Ageing Well,Home Sweet Home Care Ltd,Home Care - Private Contractors Payment,3619.48,0.00,COMMERCIAL SUPPLIER 
 16-10-2023,People - Ageing Well,Home Sweet Home Care Ltd,Home Care - Private Contractors Payment,601.71,0.00,COMMERCIAL SUPPLIER 
 16-10-2023,People - Ageing Well,Home Sweet Home Care Ltd,Home Care - Private Contractors Payment,870.35,0.00,COMMERCIAL SUPPLIER 
 16-10-2023,People - Ageing Well,Home Sweet Home Care Ltd,Home Care - Private Contractors Payment,629.74,0.00,COMMERCIAL SUPPLIER 
 16-10-2023,People - Ageing Well,Home Sweet Home Care Ltd,Home Care - Private Contractors Payment,1179.40,0.00,COMMERCIAL SUPPLIER 
 16-10-2023,People - Ageing Well,Home Sweet Home Care Ltd,Home Care - Private Contractors Payment,1172.85,0.00,COMMERCIAL SUPPLIER 
 16-10-2023,People - Ageing Well,Home Sweet Home Care Ltd,Home Care - Private Contractors Payment,855.79,0.00,COMMERCIAL SUPPLIER 
 16-10-2023,People - Ageing Well,Home Sweet Home Care Ltd,Home Care - Private Contractors Payment,600.62,0.00,COMMERCIAL SUPPLIER 
 16-10-2023,People - Ageing Well,Home Sweet Home Care Ltd,Home Care - Private Contractors Payment,931.15,0.00,COMMERCIAL SUPPLIER 
 16-10-2023,People - Ageing Well,Home Sweet Home Care Ltd,Home Care - Private Contractors Payment,1222.36,0.00,COMMERCIAL SUPPLIER 
 16-10-2023,People - Ageing Well,Home Sweet Home Care Ltd,Home Care - Private Contractors Payment,1223.08,0.00,COMMERCIAL SUPPLIER 
 16-10-2023,People - Ageing Well,Home Sweet Home Care Ltd,Home Care - Private Contractors Payment,654.13,0.00,COMMERCIAL SUPPLIER 
 16-10-2023,People - Ageing Well,Home Sweet Home Care Ltd,Home Care - Private Contractors Payment,1238.74,0.00,COMMERCIAL SUPPLIER 
 16-10-2023,People - Ageing Well,Home Sweet Home Care Ltd,Home Care - Private Contractors Payment,1234.00,0.00,COMMERCIAL SUPPLIER 
 16-10-2023,People - Ageing Well,Home Sweet Home Care Ltd,Home Care - Private Contractors Payment,1100.78,0.00,COMMERCIAL SUPPLIER 
 16-10-2023,People - Ageing Well,Home Sweet Home Care Ltd,Home Care - Private Contractors Payment,1205.25,0.00,COMMERCIAL SUPPLIER 
 16-10-2023,People - Ageing Well,Home Sweet Home Care Ltd,Home Care - Private Contractors Payment,1218.72,0.00,COMMERCIAL SUPPLIER 
 16-10-2023,People - Ageing Well,Home Sweet Home Care Ltd,Home Care - Private Contractors Payment,923.87,0.00,COMMERCIAL SUPPLIER 
 16-10-2023,People - Ageing Well,Home Sweet Home Care Ltd,Home Care - Private Contractors Payment,579.51,0.00,COMMERCIAL SUPPLIER 
 16-10-2023,People - Ageing Well,Home Sweet Home Care Ltd,Home Care - Private Contractors Payment,1430.20,0.00,COMMERCIAL SUPPLIER 
 16-10-2023,People - Ageing Well,Home Sweet Home Care Ltd,Home Care - Private Contractors Payment,611.54,0.00,COMMERCIAL SUPPLIER 
 16-10-2023,People - Ageing Well,Home Sweet Home Care Ltd,Home Care - Private Contractors Payment,1212.53,0.00,COMMERCIAL SUPPLIER 
 16-10-2023,People - Ageing Well,Home Sweet Home Care Ltd,Home Care - Private Contractors Payment,1313.36,0.00,COMMERCIAL SUPPLIER 
 16-10-2023,People - Ageing Well,Home Sweet Home Care Ltd,Home Care - Private Contractors Payment,808.83,0.00,COMMERCIAL SUPPLIER 
 16-10-2023,People - Ageing Well,Home Sweet Home Care Ltd,Home Care - Private Contractors Payment,612.63,0.00,COMMERCIAL SUPPLIER 
 16-10-2023,People - Ageing Well,Home Sweet Home Care Ltd,Home Care - Private Contractors Payment,1236.55,0.00,COMMERCIAL SUPPLIER 
 16-10-2023,People - Ageing Well,Home Sweet Home Care Ltd,Home Care - Private Contractors Payment,1238.37,0.00,COMMERCIAL SUPPLIER 
 16-10-2023,People - Ageing Well,Home Sweet Home Care Ltd,Home Care - Private Contractors Payment,891.47,0.00,COMMERCIAL SUPPLIER 
 16-10-2023,People - Ageing Well,Home Sweet Home Care Ltd,Home Care - Private Contractors Payment,625.74,0.00,COMMERCIAL SUPPLIER 
 16-10-2023,People - Ageing Well,Home Sweet Home Care Ltd,Home Care - Private Contractors Payment,780.81,0.00,COMMERCIAL SUPPLIER 
 16-10-2023,People - Ageing Well,Home Sweet Home Care Ltd,Home Care - Private Contractors Payment,1233.64,0.00,COMMERCIAL SUPPLIER 
 16-10-2023,People - Ageing Well,Home Sweet Home Care Ltd,Home Care - Private Contractors Payment,1472.79,0.00,COMMERCIAL SUPPLIER 
 16-10-2023,People - Ageing Well,Home Sweet Home Care Ltd,Home Care - Private Contractors Payment,611.54,0.00,COMMERCIAL SUPPLIER 
 16-10-2023,People - Ageing Well,Home Sweet Home Care Ltd,Home Care - Private Contractors Payment,611.54,0.00,COMMERCIAL SUPPLIER 
 16-10-2023,People - Ageing Well,Home Sweet Home Care Ltd,Home Care - Private Contractors Payment,606.45,0.00,COMMERCIAL SUPPLIER 
 16-10-2023,People - Ageing Well,Home Sweet Home Care Ltd,Home Care - Private Contractors Payment,1267.86,0.00,COMMERCIAL SUPPLIER 
 16-10-2023,People - Ageing Well,Home Sweet Home Care Ltd,Home Care - Private Contractors Payment,1293.34,0.00,COMMERCIAL SUPPLIER 
 16-10-2023,People - Ageing Well,Home Sweet Home Care Ltd,Home Care - Private Contractors Payment,1249.29,0.00,COMMERCIAL SUPPLIER 
 16-10-2023,People - Ageing Well,Home Sweet Home Care Ltd,Home Care - Private Contractors Payment,1274.41,0.00,COMMERCIAL SUPPLIER 
 16-10-2023,People - Ageing Well,Home Sweet Home Care Ltd,Home Care - Private Contractors Payment,1214.35,0.00,COMMERCIAL SUPPLIER 
 16-10-2023,People - Ageing Well,Home Sweet Home Care Ltd,Home Care - Private Contractors Payment,1214.71,0.00,COMMERCIAL SUPPLIER 
 16-10-2023,People - Ageing Well,Home Sweet Home Care Ltd,Home Care - Private Contractors Payment,1218.72,0.00,COMMERCIAL SUPPLIER 
 16-10-2023,People - Ageing Well,Home Sweet Home Care Ltd,Home Care - Private Contractors Payment,1430.93,0.00,COMMERCIAL SUPPLIER 
 16-10-2023,People - Ageing Well,Home Sweet Home Care Ltd,Home Care - Private Contractors Payment,589.70,0.00,COMMERCIAL SUPPLIER 
 16-10-2023,People - Ageing Well,Home Sweet Home Care Ltd,Home Care - Private Contractors Payment,589.70,0.00,COMMERCIAL SUPPLIER 
 16-10-2023,People - Ageing Well,Home Sweet Home Care Ltd,Home Care - Private Contractors Payment,1188.87,0.00,COMMERCIAL SUPPLIER 
 16-10-2023,People - Ageing Well,Home Sweet Home Care Ltd,Home Care - Private Contractors Payment,1594.36,0.00,COMMERCIAL SUPPLIER 
 16-10-2023,People - Ageing Well,Home Sweet Home Care Ltd,Home Care - Private Contractors Payment,1620.57,0.00,COMMERCIAL SUPPLIER 
 16-10-2023,People - Ageing Well,Home Sweet Home Care Ltd,Home Care - Private Contractors Payment,613.36,0.00,COMMERCIAL SUPPLIER 
 16-10-2023,People - Ageing Well,Home Sweet Home Care Ltd,Home Care - Private Contractors Payment,743.31,0.00,COMMERCIAL SUPPLIER 
 16-10-2023,People - Ageing Well,Home Sweet Home Care Ltd,Home Care - Private Contractors Payment,607.17,0.00,COMMERCIAL SUPPLIER 
 16-10-2023,People - Ageing Well,Home Sweet Home Care Ltd,Home Care - Private Contractors Payment,611.54,0.00,COMMERCIAL SUPPLIER 
 16-10-2023,People - Ageing Well,Home Sweet Home Care Ltd,Home Care - Private Contractors Payment,1203.06,0.00,COMMERCIAL SUPPLIER 
 16-10-2023,People - Ageing Well,Home Sweet Home Care Ltd,Home Care - Private Contractors Payment,1219.81,0.00,COMMERCIAL SUPPLIER 
 16-10-2023,People - Ageing Well,Home Sweet Home Care Ltd,Home Care - Private Contractors Payment,1207.80,0.00,COMMERCIAL SUPPLIER 
 16-10-2023,People - Ageing Well,Home Sweet Home Care Ltd,Home Care - Private Contractors Payment,1210.34,0.00,COMMERCIAL SUPPLIER 
 16-10-2023,People - Ageing Well,Home Sweet Home Care Ltd,Home Care - Private Contractors Payment,1224.18,0.00,COMMERCIAL SUPPLIER 
 16-10-2023,People - Ageing Well,Home Sweet Home Care Ltd,Home Care - Private Contractors Payment,1311.90,0.00,COMMERCIAL SUPPLIER 
 16-10-2023,People - Ageing Well,Home Sweet Home Care Ltd,Home Care - Private Contractors Payment,927.51,0.00,COMMERCIAL SUPPLIER 
 16-10-2023,People - Ageing Well,Home Sweet Home Care Ltd,Home Care - Private Contractors Payment,1228.18,0.00,COMMERCIAL SUPPLIER 
 16-10-2023,People - Ageing Well,Home Sweet Home Care Ltd,Home Care - Private Contractors Payment,593.71,0.00,COMMERCIAL SUPPLIER 
 16-10-2023,People - Ageing Well,Home Sweet Home Care Ltd,Home Care - Private Contractors Payment,611.18,0.00,COMMERCIAL SUPPLIER 
 16-10-2023,People - Ageing Well,Home Sweet Home Care Ltd,Home Care - Private Contractors Payment,1358.48,0.00,COMMERCIAL SUPPLIER 
 16-10-2023,People - Ageing Well,Home Sweet Home Care Ltd,Home Care - Private Contractors Payment,611.54,0.00,COMMERCIAL SUPPLIER 
 16-10-2023,People - Ageing Well,Home Sweet Home Care Ltd,Home Care - Private Contractors Payment,611.54,0.00,COMMERCIAL SUPPLIER 
 16-10-2023,People - Ageing Well,Home Sweet Home Care Ltd,Home Care - Private Contractors Payment,917.31,0.00,COMMERCIAL SUPPLIER 
 16-10-2023,People - Ageing Well,Home Sweet Home Care Ltd,Home Care - Private Contractors Payment,1258.39,0.00,COMMERCIAL SUPPLIER 
 16-10-2023,People - Ageing Well,Home Sweet Home Care Ltd,Home Care - Private Contractors Payment,1298.43,0.00,COMMERCIAL SUPPLIER 
 16-10-2023,People - Ageing Well,Home Sweet Home Care Ltd,Home Care - Private Contractors Payment,906.39,0.00,COMMERCIAL SUPPLIER 
 16-10-2023,People - Ageing Well,Home Sweet Home Care Ltd,Home Care - Private Contractors Payment,826.67,0.00,COMMERCIAL SUPPLIER 
 16-10-2023,People - Ageing Well,Home Sweet Home Care Ltd,Home Care - Private Contractors Payment,611.54,0.00,COMMERCIAL SUPPLIER 
 16-10-2023,People - Ageing Well,Home Sweet Home Care Ltd,Home Care - Private Contractors Payment,1212.89,0.00,COMMERCIAL SUPPLIER 
 16-10-2023,People - Ageing Well,Home Sweet Home Care Ltd,Home Care - Private Contractors Payment,555.48,0.00,COMMERCIAL SUPPLIER 
 16-10-2023,People - Ageing Well,Home Sweet Home Care Ltd,Home Care - Private Contractors Payment,1247.84,0.00,COMMERCIAL SUPPLIER 
 16-10-2023,People - Ageing Well,Home Sweet Home Care Ltd,Home Care - Private Contractors Payment,927.87,0.00,COMMERCIAL SUPPLIER 
 16-10-2023,People - Ageing Well,Home Sweet Home Care Ltd,Home Care - Private Contractors Payment,619.19,0.00,COMMERCIAL SUPPLIER 
 16-10-2023,People - Ageing Well,Home Sweet Home Care Ltd,Home Care - Private Contractors Payment,1239.83,0.00,COMMERCIAL SUPPLIER 
 16-10-2023,People - Ageing Well,Home Sweet Home Care Ltd,Home Care - Private Contractors Payment,1251.84,0.00,COMMERCIAL SUPPLIER 
 16-10-2023,People - Ageing Well,Home Sweet Home Care Ltd,Home Care - Private Contractors Payment,579.87,0.00,COMMERCIAL SUPPLIER 
 16-10-2023,People - Ageing Well,Home Sweet Home Care Ltd,Home Care - Private Contractors Payment,1917.95,0.00,COMMERCIAL SUPPLIER 
 16-10-2023,People - Ageing Well,Home Sweet Home Care Ltd,Home Care - Private Contractors Payment,912.95,0.00,COMMERCIAL SUPPLIER 
 16-10-2023,People - Ageing Well,Quality Healthcare Solutions Ltd t/a Kare Plus Romford,Home Care - Private Contractors Payment,1298.05,0.00,COMMERCIAL SUPPLIER 
 16-10-2023,People - Ageing Well,Quality Healthcare Solutions Ltd t/a Kare Plus Romford,Home Care - Private Contractors Payment,830.31,0.00,COMMERCIAL SUPPLIER 
 16-10-2023,People - Ageing Well,Quality Healthcare Solutions Ltd t/a Kare Plus Romford,Home Care - Private Contractors Payment,1147.00,0.00,COMMERCIAL SUPPLIER 
 16-10-2023,People - Ageing Well,Quality Healthcare Solutions Ltd t/a Kare Plus Romford,Home Care - Private Contractors Payment,1126.99,0.00,COMMERCIAL SUPPLIER 
 16-10-2023,People - Ageing Well,Quality Healthcare Solutions Ltd t/a Kare Plus Romford,Home Care - Private Contractors Payment,676.34,0.00,COMMERCIAL SUPPLIER 
 16-10-2023,People - Ageing Well,Quality Healthcare Solutions Ltd t/a Kare Plus Romford,Home Care - Private Contractors Payment,2693.33,0.00,COMMERCIAL SUPPLIER 
 16-10-2023,People - Ageing Well,Quality Healthcare Solutions Ltd t/a Kare Plus Romford,Home Care - Private Contractors Payment,621.73,0.00,COMMERCIAL SUPPLIER 
 16-10-2023,People - Ageing Well,Quality Healthcare Solutions Ltd t/a Kare Plus Romford,Home Care - Private Contractors Payment,536.92,0.00,COMMERCIAL SUPPLIER 
 16-10-2023,People - Ageing Well,Quality Healthcare Solutions Ltd t/a Kare Plus Romford,Home Care - Private Contractors Payment,876.90,0.00,COMMERCIAL SUPPLIER 
 16-10-2023,People - Ageing Well,Quality Healthcare Solutions Ltd t/a Kare Plus Romford,Home Care - Private Contractors Payment,720.38,0.00,COMMERCIAL SUPPLIER 
 16-10-2023,People - Ageing Well,Quality Healthcare Solutions Ltd t/a Kare Plus Romford,Home Care - Private Contractors Payment,2488.39,0.00,COMMERCIAL SUPPLIER 
 16-10-2023,People - Ageing Well,Quality Healthcare Solutions Ltd t/a Kare Plus Romford,Home Care - Private Contractors Payment,930.78,0.00,COMMERCIAL SUPPLIER 
 16-10-2023,People - Ageing Well,Quality Healthcare Solutions Ltd t/a Kare Plus Romford,Home Care - Private Contractors Payment,1390.89,0.00,COMMERCIAL SUPPLIER 
 16-10-2023,People - Ageing Well,Quality Healthcare Solutions Ltd t/a Kare Plus Romford,Home Care - Private Contractors Payment,2983.80,0.00,COMMERCIAL SUPPLIER 
 16-10-2023,People - Ageing Well,Quality Healthcare Solutions Ltd t/a Kare Plus Romford,Home Care - Private Contractors Payment,1254.02,0.00,COMMERCIAL SUPPLIER 
 16-10-2023,People - Ageing Well,Quality Healthcare Solutions Ltd t/a Kare Plus Romford,Home Care - Private Contractors Payment,678.88,0.00,COMMERCIAL SUPPLIER 
 16-10-2023,People - Ageing Well,Quality Healthcare Solutions Ltd t/a Kare Plus Romford,Home Care - Private Contractors Payment,1302.80,0.00,COMMERCIAL SUPPLIER 
 16-10-2023,People - Ageing Well,Quality Healthcare Solutions Ltd t/a Kare Plus Romford,Home Care - Private Contractors Payment,3332.15,0.00,COMMERCIAL SUPPLIER 
 16-10-2023,People - Ageing Well,Quality Healthcare Solutions Ltd t/a Kare Plus Romford,Home Care - Private Contractors Payment,989.39,0.00,COMMERCIAL SUPPLIER 
 16-10-2023,People - Ageing Well,Quality Healthcare Solutions Ltd t/a Kare Plus Romford,Home Care - Private Contractors Payment,1195.41,0.00,COMMERCIAL SUPPLIER 
 16-10-2023,People - Ageing Well,Quality Healthcare Solutions Ltd t/a Kare Plus Romford,Home Care - Private Contractors Payment,3208.03,0.00,COMMERCIAL SUPPLIER 
 16-10-2023,People - Ageing Well,Quality Healthcare Solutions Ltd t/a Kare Plus Romford,Home Care - Private Contractors Payment,646.49,0.00,COMMERCIAL SUPPLIER 
 16-10-2023,People - Ageing Well,Quality Healthcare Solutions Ltd t/a Kare Plus Romford,Home Care - Private Contractors Payment,1005.77,0.00,COMMERCIAL SUPPLIER 
 16-10-2023,People - Ageing Well,Quality Healthcare Solutions Ltd t/a Kare Plus Romford,Home Care - Private Contractors Payment,975.92,0.00,COMMERCIAL SUPPLIER 
 16-10-2023,People - Ageing Well,Quality Healthcare Solutions Ltd t/a Kare Plus Romford,Home Care - Private Contractors Payment,924.23,0.00,COMMERCIAL SUPPLIER 
 16-10-2023,People - Ageing Well,Quality Healthcare Solutions Ltd t/a Kare Plus Romford,Home Care - Private Contractors Payment,524.18,0.00,COMMERCIAL SUPPLIER 
 16-10-2023,People - Ageing Well,Quality Healthcare Solutions Ltd t/a Kare Plus Romford,Home Care - Private Contractors Payment,777.16,0.00,COMMERCIAL SUPPLIER 
 16-10-2023,People - Ageing Well,Quality Healthcare Solutions Ltd t/a Kare Plus Romford,Home Care - Private Contractors Payment,957.72,0.00,COMMERCIAL SUPPLIER 
 16-10-2023,People - Ageing Well,Quality Healthcare Solutions Ltd t/a Kare Plus Romford,Home Care - Private Contractors Payment,952.62,0.00,COMMERCIAL SUPPLIER 
 16-10-2023,People - Ageing Well,Passion Tree Care Services Ltd,Home Care - Private Contractors Payment,611.54,0.00,COMMERCIAL SUPPLIER 
 16-10-2023,People - Ageing Well,Passion Tree Care Services Ltd,Home Care - Private Contractors Payment,1223.08,0.00,COMMERCIAL SUPPLIER 
 16-10-2023,People - Ageing Well,Passion Tree Care Services Ltd,Home Care - Private Contractors Payment,611.54,0.00,COMMERCIAL SUPPLIER 
 16-10-2023,People - Ageing Well,Passion Tree Care Services Ltd,Home Care - Private Contractors Payment,611.54,0.00,COMMERCIAL SUPPLIER 
 16-10-2023,People - Ageing Well,Passion Tree Care Services Ltd,Home Care - Private Contractors Payment,1070.19,0.00,COMMERCIAL SUPPLIER 
 16-10-2023,People - Ageing Well,Passion Tree Care Services Ltd,Home Care - Private Contractors Payment,611.54,0.00,COMMERCIAL SUPPLIER 
 16-10-2023,People - Ageing Well,Passion Tree Care Services Ltd,Home Care - Private Contractors Payment,611.54,0.00,COMMERCIAL SUPPLIER 
 16-10-2023,People - Ageing Well,Passion Tree Care Services Ltd,Home Care - Private Contractors Payment,1223.08,0.00,COMMERCIAL SUPPLIER 
 16-10-2023,People - Ageing Well,Passion Tree Care Services Ltd,Home Care - Private Contractors Payment,1310.45,0.00,COMMERCIAL SUPPLIER 
 16-10-2023,People - Ageing Well,Passion Tree Care Services Ltd,Home Care - Private Contractors Payment,1048.33,0.00,COMMERCIAL SUPPLIER 
 16-10-2023,People - Ageing Well,Passion Tree Care Services Ltd,Home Care - Private Contractors Payment,917.31,0.00,COMMERCIAL SUPPLIER 
 16-10-2023,People - Ageing Well,Rosemont Care Limited,Home Care - Private Contractors Payment,524.18,0.00,COMMERCIAL SUPPLIER 
 16-10-2023,People - Ageing Well,Rosemont Care Limited,Home Care - Private Contractors Payment,524.18,0.00,COMMERCIAL SUPPLIER 
 16-10-2023,People - Ageing Well,Rosemont Care Limited,Home Care - Private Contractors Payment,1179.40,0.00,COMMERCIAL SUPPLIER 
 16-10-2023,People - Ageing Well,Rosemont Care Limited,Home Care - Private Contractors Payment,1223.08,0.00,COMMERCIAL SUPPLIER 
 16-10-2023,People - Ageing Well,Rosemont Care Limited,Home Care - Private Contractors Payment,1223.08,0.00,COMMERCIAL SUPPLIER 
 16-10-2023,People - Ageing Well,Rosemont Care Limited,Home Care - Private Contractors Payment,1223.08,0.00,COMMERCIAL SUPPLIER 
 16-10-2023,People - Ageing Well,Rosemont Care Limited,Home Care - Private Contractors Payment,917.31,0.00,COMMERCIAL SUPPLIER 
 16-10-2023,People - Ageing Well,Rosemont Care Limited,Home Care - Private Contractors Payment,917.31,0.00,COMMERCIAL SUPPLIER 
 16-10-2023,People - Ageing Well,Rosemont Care Limited,Home Care - Private Contractors Payment,1223.08,0.00,COMMERCIAL SUPPLIER 
 16-10-2023,People - Ageing Well,Outreach Support Services Ltd,Home Care - Private Contractors Payment,611.53,0.00,COMMERCIAL SUPPLIER 
 16-10-2023,People - Ageing Well,Outreach Support Services Ltd,Home Care - Private Contractors Payment,917.31,0.00,COMMERCIAL SUPPLIER 
 16-10-2023,People - Ageing Well,Outreach Support Services Ltd,Home Care - Private Contractors Payment,1223.08,0.00,COMMERCIAL SUPPLIER 
 16-10-2023,People - Ageing Well,Outreach Support Services Ltd,Home Care - Private Contractors Payment,2205.89,0.00,COMMERCIAL SUPPLIER 
 16-10-2023,People - Ageing Well,Outreach Support Services Ltd,Home Care - Private Contractors Payment,1863.99,0.00,COMMERCIAL SUPPLIER 
 16-10-2023,People - Ageing Well,Outreach Support Services Ltd,Home Care - Private Contractors Payment,1863.99,0.00,COMMERCIAL SUPPLIER 
 16-10-2023,People - Ageing Well,Outreach Support Services Ltd,Home Care - Private Contractors Payment,1812.76,0.00,COMMERCIAL SUPPLIER 
 16-10-2023,People - Ageing Well,Outreach Support Services Ltd,Home Care - Private Contractors Payment,1223.08,0.00,COMMERCIAL SUPPLIER 
 16-10-2023,People - Ageing Well,Outreach Support Services Ltd,Home Care - Private Contractors Payment,873.63,0.00,COMMERCIAL SUPPLIER 
 16-10-2023,People - Ageing Well,Outreach Support Services Ltd,Home Care - Private Contractors Payment,2271.40,0.00,COMMERCIAL SUPPLIER 
 16-10-2023,People - Ageing Well,Outreach Support Services Ltd,Home Care - Private Contractors Payment,2271.40,0.00,COMMERCIAL SUPPLIER 
 16-10-2023,People - Ageing Well,Outreach Support Services Ltd,Home Care - Private Contractors Payment,2271.40,0.00,COMMERCIAL SUPPLIER 
 16-10-2023,People - Ageing Well,Outreach Support Services Ltd,Home Care - Private Contractors Payment,2271.40,0.00,COMMERCIAL SUPPLIER 
 16-10-2023,People - Ageing Well,Outreach Support Services Ltd,Home Care - Private Contractors Payment,786.26,0.00,COMMERCIAL SUPPLIER 
 16-10-2023,People - Ageing Well,Outreach Support Services Ltd,Home Care - Private Contractors Payment,1375.96,0.00,COMMERCIAL SUPPLIER 
 16-10-2023,People - Ageing Well,Outreach Support Services Ltd,Home Care - Private Contractors Payment,1375.96,0.00,COMMERCIAL SUPPLIER 
 16-10-2023,People - Ageing Well,Outreach Support Services Ltd,Home Care - Private Contractors Payment,1375.96,0.00,COMMERCIAL SUPPLIER 
 16-10-2023,People - Ageing Well,Outreach Support Services Ltd,Home Care - Private Contractors Payment,1223.08,0.00,COMMERCIAL SUPPLIER 
 16-10-2023,People - Ageing Well,Outreach Support Services Ltd,Home Care - Private Contractors Payment,1223.08,0.00,COMMERCIAL SUPPLIER 
 16-10-2023,People - Ageing Well,Outreach Support Services Ltd,Home Care - Private Contractors Payment,1223.08,0.00,COMMERCIAL SUPPLIER 
 16-10-2023,People - Ageing Well,Outreach Support Services Ltd,Home Care - Private Contractors Payment,1223.08,0.00,COMMERCIAL SUPPLIER 
 17-10-2023,People - Ageing Well,Homestead Care Service,Home Care - Private Contractors Payment,1215.80,0.00,COMMERCIAL SUPPLIER 
 17-10-2023,People - Ageing Well,Homestead Care Service,Home Care - Private Contractors Payment,1207.80,0.00,COMMERCIAL SUPPLIER 
 17-10-2023,People - Ageing Well,Homestead Care Service,Home Care - Private Contractors Payment,918.77,0.00,COMMERCIAL SUPPLIER 
 17-10-2023,People - Ageing Well,Homestead Care Service,Home Care - Private Contractors Payment,1201.24,0.00,COMMERCIAL SUPPLIER 
 17-10-2023,People - Ageing Well,Homestead Care Service,Home Care - Private Contractors Payment,1201.24,0.00,COMMERCIAL SUPPLIER 
 17-10-2023,People - Ageing Well,Homestead Care Service,Home Care - Private Contractors Payment,775.35,0.00,COMMERCIAL SUPPLIER 
 17-10-2023,People - Ageing Well,Homestead Care Service,Home Care - Private Contractors Payment,990.48,0.00,COMMERCIAL SUPPLIER 
 17-10-2023,People - Ageing Well,Homestead Care Service,Home Care - Private Contractors Payment,594.07,0.00,COMMERCIAL SUPPLIER 
 17-10-2023,People - Ageing Well,Homestead Care Service,Home Care - Private Contractors Payment,623.92,0.00,COMMERCIAL SUPPLIER 
 17-10-2023,People - Ageing Well,Homestead Care Service,Home Care - Private Contractors Payment,701.09,0.00,COMMERCIAL SUPPLIER 
 17-10-2023,People - Ageing Well,Homestead Care Service,Home Care - Private Contractors Payment,1179.40,0.00,COMMERCIAL SUPPLIER 
 17-10-2023,People - Ageing Well,Homestead Care Service,Home Care - Private Contractors Payment,1192.14,0.00,COMMERCIAL SUPPLIER 
 17-10-2023,People - Ageing Well,Homestead Care Service,Home Care - Private Contractors Payment,614.09,0.00,COMMERCIAL SUPPLIER 
 17-10-2023,People - Ageing Well,Homestead Care Service,Home Care - Private Contractors Payment,1243.10,0.00,COMMERCIAL SUPPLIER 
 17-10-2023,People - Ageing Well,Homestead Care Service,Home Care - Private Contractors Payment,1243.47,0.00,COMMERCIAL SUPPLIER 
 17-10-2023,People - Ageing Well,Homestead Care Service,Home Care - Private Contractors Payment,1385.43,0.00,COMMERCIAL SUPPLIER 
 17-10-2023,People - Ageing Well,Homestead Care Service,Home Care - Private Contractors Payment,1210.71,0.00,COMMERCIAL SUPPLIER 
 17-10-2023,People - Ageing Well,Homestead Care Service,Home Care - Private Contractors Payment,1221.63,0.00,COMMERCIAL SUPPLIER 
 17-10-2023,People - Ageing Well,Homestead Care Service,Home Care - Private Contractors Payment,1359.22,0.00,COMMERCIAL SUPPLIER 
 17-10-2023,People - Ageing Well,Homestead Care Service,Home Care - Private Contractors Payment,1237.28,0.00,COMMERCIAL SUPPLIER 
 17-10-2023,People - Ageing Well,Homestead Care Service,Home Care - Private Contractors Payment,1171.76,0.00,COMMERCIAL SUPPLIER 
 17-10-2023,People - Ageing Well,Homestead Care Service,Home Care - Private Contractors Payment,677.79,0.00,COMMERCIAL SUPPLIER 
 17-10-2023,People - Ageing Well,Homestead Care Service,Home Care - Private Contractors Payment,1274.41,0.00,COMMERCIAL SUPPLIER 
 17-10-2023,People - Ageing Well,Homestead Care Service,Home Care - Private Contractors Payment,1036.34,0.00,COMMERCIAL SUPPLIER 
 17-10-2023,People - Ageing Well,Homestead Care Service,Home Care - Private Contractors Payment,1238.74,0.00,COMMERCIAL SUPPLIER 
 17-10-2023,People - Ageing Well,Homestead Care Service,Home Care - Private Contractors Payment,1207.07,0.00,COMMERCIAL SUPPLIER 
 17-10-2023,People - Ageing Well,Homestead Care Service,Home Care - Private Contractors Payment,1240.92,0.00,COMMERCIAL SUPPLIER 
 17-10-2023,People - Ageing Well,Homestead Care Service,Home Care - Private Contractors Payment,1204.88,0.00,COMMERCIAL SUPPLIER 
 17-10-2023,People - Ageing Well,Homestead Care Service,Home Care - Private Contractors Payment,1319.54,0.00,COMMERCIAL SUPPLIER 
 17-10-2023,People - Ageing Well,Homestead Care Service,Home Care - Private Contractors Payment,1339.20,0.00,COMMERCIAL SUPPLIER 
 17-10-2023,People - Ageing Well,Homestead Care Service,Home Care - Private Contractors Payment,1057.81,0.00,COMMERCIAL SUPPLIER 
 17-10-2023,People - Ageing Well,Homestead Care Service,Home Care - Private Contractors Payment,1509.53,0.00,COMMERCIAL SUPPLIER 
 17-10-2023,People - Ageing Well,Homestead Care Service,Home Care - Private Contractors Payment,1202.69,0.00,COMMERCIAL SUPPLIER 
 17-10-2023,People - Ageing Well,Homestead Care Service,Home Care - Private Contractors Payment,777.17,0.00,COMMERCIAL SUPPLIER 
 17-10-2023,People - Ageing Well,Homestead Care Service,Home Care - Private Contractors Payment,777.17,0.00,COMMERCIAL SUPPLIER 
 17-10-2023,People - Ageing Well,Homestead Care Service,Home Care - Private Contractors Payment,1223.08,0.00,COMMERCIAL SUPPLIER 
 17-10-2023,People - Ageing Well,Homestead Care Service,Home Care - Private Contractors Payment,1238.37,0.00,COMMERCIAL SUPPLIER 
 17-10-2023,People - Ageing Well,Homestead Care Service,Home Care - Private Contractors Payment,744.40,0.00,COMMERCIAL SUPPLIER 
 17-10-2023,People - Ageing Well,Homestead Care Service,Home Care - Private Contractors Payment,578.77,0.00,COMMERCIAL SUPPLIER 
 17-10-2023,People - Ageing Well,Homestead Care Service,Home Care - Private Contractors Payment,1211.80,0.00,COMMERCIAL SUPPLIER 
 17-10-2023,People - Ageing Well,Homestead Care Service,Home Care - Private Contractors Payment,1234.73,0.00,COMMERCIAL SUPPLIER 
 17-10-2023,People - Ageing Well,Homestead Care Service,Home Care - Private Contractors Payment,1322.82,0.00,COMMERCIAL SUPPLIER 
 17-10-2023,People - Ageing Well,Homestead Care Service,Home Care - Private Contractors Payment,1224.54,0.00,COMMERCIAL SUPPLIER 
 17-10-2023,People - Ageing Well,Homestead Care Service,Home Care - Private Contractors Payment,1226.00,0.00,COMMERCIAL SUPPLIER 
 17-10-2023,People - Ageing Well,Homestead Care Service,Home Care - Private Contractors Payment,1227.45,0.00,COMMERCIAL SUPPLIER 
 17-10-2023,People - Ageing Well,Homestead Care Service,Home Care - Private Contractors Payment,1071.27,0.00,COMMERCIAL SUPPLIER 
 17-10-2023,People - Ageing Well,Homestead Care Service,Home Care - Private Contractors Payment,983.93,0.00,COMMERCIAL SUPPLIER 
 17-10-2023,People - Ageing Well,Homestead Care Service,Home Care - Private Contractors Payment,673.78,0.00,COMMERCIAL SUPPLIER 
 17-10-2023,People - Ageing Well,Homestead Care Service,Home Care - Private Contractors Payment,1204.88,0.00,COMMERCIAL SUPPLIER 
 17-10-2023,People - Ageing Well,Homestead Care Service,Home Care - Private Contractors Payment,1191.78,0.00,COMMERCIAL SUPPLIER 
 17-10-2023,People - Ageing Well,Homestead Care Service,Home Care - Private Contractors Payment,1517.94,0.00,COMMERCIAL SUPPLIER 
 17-10-2023,People - Ageing Well,Homestead Care Service,Home Care - Private Contractors Payment,1347.57,0.00,COMMERCIAL SUPPLIER 
 17-10-2023,People - Ageing Well,Homestead Care Service,Home Care - Private Contractors Payment,1358.49,0.00,COMMERCIAL SUPPLIER 
 17-10-2023,People - Ageing Well,Homestead Care Service,Home Care - Private Contractors Payment,1346.12,0.00,COMMERCIAL SUPPLIER 
 17-10-2023,People - Ageing Well,Homestead Care Service,Home Care - Private Contractors Payment,1364.68,0.00,COMMERCIAL SUPPLIER 
 17-10-2023,People - Ageing Well,Homestead Care Service,Home Care - Private Contractors Payment,1245.65,0.00,COMMERCIAL SUPPLIER 
 17-10-2023,People - Ageing Well,Homestead Care Service,Home Care - Private Contractors Payment,1306.80,0.00,COMMERCIAL SUPPLIER 
 17-10-2023,People - Ageing Well,Homestead Care Service,Home Care - Private Contractors Payment,1225.99,0.00,COMMERCIAL SUPPLIER 
 17-10-2023,People - Ageing Well,Homestead Care Service,Home Care - Private Contractors Payment,1217.99,0.00,COMMERCIAL SUPPLIER 
 17-10-2023,People - Ageing Well,Homestead Care Service,Home Care - Private Contractors Payment,1230.73,0.00,COMMERCIAL SUPPLIER 
 17-10-2023,People - Ageing Well,Homestead Care Service,Home Care - Private Contractors Payment,601.71,0.00,COMMERCIAL SUPPLIER 
 17-10-2023,People - Ageing Well,Homestead Care Service,Home Care - Private Contractors Payment,612.63,0.00,COMMERCIAL SUPPLIER 
 17-10-2023,People - Ageing Well,Homestead Care Service,Home Care - Private Contractors Payment,1323.18,0.00,COMMERCIAL SUPPLIER 
 17-10-2023,People - Ageing Well,Homestead Care Service,Home Care - Private Contractors Payment,1274.04,0.00,COMMERCIAL SUPPLIER 
 17-10-2023,People - Ageing Well,Homestead Care Service,Home Care - Private Contractors Payment,1275.14,0.00,COMMERCIAL SUPPLIER 
 17-10-2023,People - Ageing Well,Homestead Care Service,Home Care - Private Contractors Payment,589.70,0.00,COMMERCIAL SUPPLIER 
 17-10-2023,People - Ageing Well,Homestead Care Service,Home Care - Private Contractors Payment,1224.18,0.00,COMMERCIAL SUPPLIER 
 17-10-2023,People - Ageing Well,Homestead Care Service,Home Care - Private Contractors Payment,797.19,0.00,COMMERCIAL SUPPLIER 
 17-10-2023,People - Ageing Well,Homestead Care Service,Home Care - Private Contractors Payment,862.71,0.00,COMMERCIAL SUPPLIER 
 17-10-2023,People - Ageing Well,Homestead Care Service,Home Care - Private Contractors Payment,698.91,0.00,COMMERCIAL SUPPLIER 
 17-10-2023,People - Ageing Well,Homestead Care Service,Home Care - Private Contractors Payment,1224.18,0.00,COMMERCIAL SUPPLIER 
 17-10-2023,People - Ageing Well,Homestead Care Service,Home Care - Private Contractors Payment,1201.97,0.00,COMMERCIAL SUPPLIER 
 17-10-2023,People - Ageing Well,Homestead Care Service,Home Care - Private Contractors Payment,1201.97,0.00,COMMERCIAL SUPPLIER 
 17-10-2023,People - Ageing Well,Homestead Care Service,Home Care - Private Contractors Payment,1567.79,0.00,COMMERCIAL SUPPLIER 
 17-10-2023,People - Ageing Well,Homestead Care Service,Home Care - Private Contractors Payment,1575.80,0.00,COMMERCIAL SUPPLIER 
 17-10-2023,People - Ageing Well,Homestead Care Service,Home Care - Private Contractors Payment,671.24,0.00,COMMERCIAL SUPPLIER 
 17-10-2023,People - Ageing Well,Homestead Care Service,Home Care - Private Contractors Payment,1220.54,0.00,COMMERCIAL SUPPLIER 
 17-10-2023,People - Ageing Well,Homestead Care Service,Home Care - Private Contractors Payment,1222.72,0.00,COMMERCIAL SUPPLIER 
 17-10-2023,People - Ageing Well,Homestead Care Service,Home Care - Private Contractors Payment,1152.83,0.00,COMMERCIAL SUPPLIER 
 17-10-2023,People - Ageing Well,Homestead Care Service,Home Care - Private Contractors Payment,1253.66,0.00,COMMERCIAL SUPPLIER 
 17-10-2023,People - Ageing Well,Homestead Care Service,Home Care - Private Contractors Payment,594.80,0.00,COMMERCIAL SUPPLIER 
 17-10-2023,People - Ageing Well,Homestead Care Service,Home Care - Private Contractors Payment,1084.03,0.00,COMMERCIAL SUPPLIER 
 17-10-2023,People - Ageing Well,Homestead Care Service,Home Care - Private Contractors Payment,1225.27,0.00,COMMERCIAL SUPPLIER 
 17-10-2023,People - Ageing Well,Homestead Care Service,Home Care - Private Contractors Payment,1421.83,0.00,COMMERCIAL SUPPLIER 
 17-10-2023,People - Ageing Well,Homestead Care Service,Home Care - Private Contractors Payment,1281.32,0.00,COMMERCIAL SUPPLIER 
 17-10-2023,People - Ageing Well,Homestead Care Service,Home Care - Private Contractors Payment,1287.87,0.00,COMMERCIAL SUPPLIER 
 17-10-2023,People - Ageing Well,Homestead Care Service,Home Care - Private Contractors Payment,1227.82,0.00,COMMERCIAL SUPPLIER 
 17-10-2023,People - Ageing Well,Homestead Care Service,Home Care - Private Contractors Payment,1294.06,0.00,COMMERCIAL SUPPLIER 
 17-10-2023,People - Ageing Well,Homestead Care Service,Home Care - Private Contractors Payment,1057.09,0.00,COMMERCIAL SUPPLIER 
 17-10-2023,People - Ageing Well,Homestead Care Service,Home Care - Private Contractors Payment,1216.17,0.00,COMMERCIAL SUPPLIER 
 17-10-2023,People - Ageing Well,Homestead Care Service,Home Care - Private Contractors Payment,1216.17,0.00,COMMERCIAL SUPPLIER 
 17-10-2023,People - Ageing Well,Homestead Care Service,Home Care - Private Contractors Payment,805.92,0.00,COMMERCIAL SUPPLIER 
 17-10-2023,People - Ageing Well,Homestead Care Service,Home Care - Private Contractors Payment,807.02,0.00,COMMERCIAL SUPPLIER 
 17-10-2023,People - Ageing Well,Homestead Care Service,Home Care - Private Contractors Payment,1737.06,0.00,COMMERCIAL SUPPLIER 
 17-10-2023,People - Ageing Well,All Therapy Solutions Ltd,Occupational Health,4980.00,0.00,COMMERCIAL SUPPLIER 
 17-10-2023,People - Ageing Well,Potton Services Ltd,Home Care - Private Contractors Payment,789.25,0.00,COMMERCIAL SUPPLIER 
 17-10-2023,People - Ageing Well,Flex360 Limited,Private Contractors Payment - Other,2100.00,0.00,COMMERCIAL SUPPLIER 
 17-10-2023,People - Ageing Well,Pathways Care and Support Services Ltd,Supported Other Accommodation - Private Contractors Payment,4383.72,0.00,COMMERCIAL SUPPLIER 
 17-10-2023,People - Ageing Well,Pathways Care and Support Services Ltd,Supported Other Accommodation - Private Contractors Payment,5844.96,0.00,COMMERCIAL SUPPLIER 
 17-10-2023,People - Ageing Well,Pathways Care and Support Services Ltd,Supported Other Accommodation - Private Contractors Payment,5844.96,0.00,COMMERCIAL SUPPLIER 
 17-10-2023,People - Ageing Well,John Stanleys Care Agency Ltd,Home Care - Private Contractors Payment,4861.40,0.00,COMMERCIAL SUPPLIER 
 17-10-2023,People - Ageing Well,John Stanleys Care Agency Ltd,Home Care - Private Contractors Payment,5406.40,0.00,COMMERCIAL SUPPLIER 
 17-10-2023,People - Ageing Well,John Stanleys Care Agency Ltd,Home Care - Private Contractors Payment,6518.20,0.00,COMMERCIAL SUPPLIER 
 17-10-2023,People - Ageing Well,John Stanleys Care Agency Ltd,Home Care - Private Contractors Payment,5733.40,0.00,COMMERCIAL SUPPLIER 
 17-10-2023,People - Ageing Well,John Stanleys Care Agency Ltd,Home Care - Private Contractors Payment,1384.34,0.00,COMMERCIAL SUPPLIER 
 17-10-2023,People - Ageing Well,John Stanleys Care Agency Ltd,Home Care - Private Contractors Payment,881.64,0.00,COMMERCIAL SUPPLIER 
 17-10-2023,People - Ageing Well,John Stanleys Care Agency Ltd,Home Care - Private Contractors Payment,809.57,0.00,COMMERCIAL SUPPLIER 
 17-10-2023,People - Ageing Well,John Stanleys Care Agency Ltd,Home Care - Private Contractors Payment,1306.44,0.00,COMMERCIAL SUPPLIER 
 17-10-2023,People - Ageing Well,John Stanleys Care Agency Ltd,Home Care - Private Contractors Payment,1230.36,0.00,COMMERCIAL SUPPLIER 
 17-10-2023,People - Ageing Well,John Stanleys Care Agency Ltd,Home Care - Private Contractors Payment,1234.73,0.00,COMMERCIAL SUPPLIER 
 17-10-2023,People - Ageing Well,John Stanleys Care Agency Ltd,Home Care - Private Contractors Payment,643.94,0.00,COMMERCIAL SUPPLIER 
 17-10-2023,People - Ageing Well,John Stanleys Care Agency Ltd,Home Care - Private Contractors Payment,754.58,0.00,COMMERCIAL SUPPLIER 
 17-10-2023,People - Ageing Well,John Stanleys Care Agency Ltd,Home Care - Private Contractors Payment,1350.48,0.00,COMMERCIAL SUPPLIER 
 17-10-2023,People - Ageing Well,John Stanleys Care Agency Ltd,Home Care - Private Contractors Payment,695.63,0.00,COMMERCIAL SUPPLIER 
 17-10-2023,People - Ageing Well,John Stanleys Care Agency Ltd,Home Care - Private Contractors Payment,864.17,0.00,COMMERCIAL SUPPLIER 
 17-10-2023,People - Ageing Well,John Stanleys Care Agency Ltd,Home Care - Private Contractors Payment,1381.06,0.00,COMMERCIAL SUPPLIER 
 17-10-2023,People - Ageing Well,John Stanleys Care Agency Ltd,Home Care - Private Contractors Payment,1382.52,0.00,COMMERCIAL SUPPLIER 
 17-10-2023,People - Ageing Well,John Stanleys Care Agency Ltd,Home Care - Private Contractors Payment,5581.94,0.00,COMMERCIAL SUPPLIER 
 17-10-2023,People - Ageing Well,John Stanleys Care Agency Ltd,Home Care - Private Contractors Payment,9329.34,0.00,COMMERCIAL SUPPLIER 
 17-10-2023,People - Ageing Well,John Stanleys Care Agency Ltd,Home Care - Private Contractors Payment,2922.56,0.00,COMMERCIAL SUPPLIER 
 17-10-2023,People - Ageing Well,John Stanleys Care Agency Ltd,Home Care - Private Contractors Payment,1435.30,0.00,COMMERCIAL SUPPLIER 
 17-10-2023,People - Ageing Well,John Stanleys Care Agency Ltd,Home Care - Private Contractors Payment,2219.36,0.00,COMMERCIAL SUPPLIER 
 17-10-2023,People - Ageing Well,John Stanleys Care Agency Ltd,Home Care - Private Contractors Payment,916.59,0.00,COMMERCIAL SUPPLIER 
 17-10-2023,People - Ageing Well,John Stanleys Care Agency Ltd,Home Care - Private Contractors Payment,967.53,0.00,COMMERCIAL SUPPLIER 
 17-10-2023,People - Ageing Well,John Stanleys Care Agency Ltd,Home Care - Private Contractors Payment,777.53,0.00,COMMERCIAL SUPPLIER 
 17-10-2023,People - Ageing Well,John Stanleys Care Agency Ltd,Home Care - Private Contractors Payment,1272.22,0.00,COMMERCIAL SUPPLIER 
 17-10-2023,People - Ageing Well,John Stanleys Care Agency Ltd,Home Care - Private Contractors Payment,598.80,0.00,COMMERCIAL SUPPLIER 
 17-10-2023,People - Ageing Well,John Stanleys Care Agency Ltd,Home Care - Private Contractors Payment,1028.33,0.00,COMMERCIAL SUPPLIER 
 17-10-2023,People - Ageing Well,John Stanleys Care Agency Ltd,Home Care - Private Contractors Payment,1788.01,0.00,COMMERCIAL SUPPLIER 
 17-10-2023,People - Ageing Well,John Stanleys Care Agency Ltd,Home Care - Private Contractors Payment,1204.52,0.00,COMMERCIAL SUPPLIER 
 17-10-2023,People - Ageing Well,John Stanleys Care Agency Ltd,Home Care - Private Contractors Payment,776.07,0.00,COMMERCIAL SUPPLIER 
 17-10-2023,People - Ageing Well,John Stanleys Care Agency Ltd,Home Care - Private Contractors Payment,621.01,0.00,COMMERCIAL SUPPLIER 
 17-10-2023,People - Ageing Well,C.A.R.E Ltd,Residential Placements - Private Contractors Payment,630.00,0.00,COMMERCIAL SUPPLIER 
 18-10-2023,People - Ageing Well,Lodge Group Care UK Ltd,Home Care - Private Contractors Payment,1251.11,0.00,COMMERCIAL SUPPLIER 
 18-10-2023,People - Ageing Well,Lodge Group Care UK Ltd,Home Care - Private Contractors Payment,922.77,0.00,COMMERCIAL SUPPLIER 
 18-10-2023,People - Ageing Well,Lodge Group Care UK Ltd,Home Care - Private Contractors Payment,1025.42,0.00,COMMERCIAL SUPPLIER 
 18-10-2023,People - Ageing Well,Lodge Group Care UK Ltd,Home Care - Private Contractors Payment,1219.44,0.00,COMMERCIAL SUPPLIER 
 18-10-2023,People - Ageing Well,Lodge Group Care UK Ltd,Home Care - Private Contractors Payment,1386.16,0.00,COMMERCIAL SUPPLIER 
 18-10-2023,People - Ageing Well,Lodge Group Care UK Ltd,Home Care - Private Contractors Payment,1388.34,0.00,COMMERCIAL SUPPLIER 
 18-10-2023,People - Ageing Well,Lodge Group Care UK Ltd,Home Care - Private Contractors Payment,611.54,0.00,COMMERCIAL SUPPLIER 
 18-10-2023,People - Ageing Well,Lodge Group Care UK Ltd,Home Care - Private Contractors Payment,915.85,0.00,COMMERCIAL SUPPLIER 
 18-10-2023,People - Ageing Well,Lodge Group Care UK Ltd,Home Care - Private Contractors Payment,1057.09,0.00,COMMERCIAL SUPPLIER 
 18-10-2023,People - Ageing Well,Lodge Group Care UK Ltd,Home Care - Private Contractors Payment,892.92,0.00,COMMERCIAL SUPPLIER 
 18-10-2023,People - Ageing Well,Lodge Group Care UK Ltd,Home Care - Private Contractors Payment,927.14,0.00,COMMERCIAL SUPPLIER 
 18-10-2023,People - Ageing Well,Lodge Group Care UK Ltd,Home Care - Private Contractors Payment,622.10,0.00,COMMERCIAL SUPPLIER 
 18-10-2023,People - Ageing Well,Lodge Group Care UK Ltd,Home Care - Private Contractors Payment,1227.09,0.00,COMMERCIAL SUPPLIER 
 18-10-2023,People - Ageing Well,Lodge Group Care UK Ltd,Home Care - Private Contractors Payment,713.47,0.00,COMMERCIAL SUPPLIER 
 18-10-2023,People - Ageing Well,Lodge Group Care UK Ltd,Home Care - Private Contractors Payment,651.22,0.00,COMMERCIAL SUPPLIER 
 18-10-2023,People - Ageing Well,Lodge Group Care UK Ltd,Home Care - Private Contractors Payment,653.04,0.00,COMMERCIAL SUPPLIER 
 18-10-2023,People - Ageing Well,Lodge Group Care UK Ltd,Home Care - Private Contractors Payment,561.67,0.00,COMMERCIAL SUPPLIER 
 18-10-2023,People - Ageing Well,Lodge Group Care UK Ltd,Home Care - Private Contractors Payment,562.04,0.00,COMMERCIAL SUPPLIER 
 18-10-2023,People - Ageing Well,Lodge Group Care UK Ltd,Home Care - Private Contractors Payment,917.31,0.00,COMMERCIAL SUPPLIER 
 18-10-2023,People - Ageing Well,Lodge Group Care UK Ltd,Home Care - Private Contractors Payment,1244.20,0.00,COMMERCIAL SUPPLIER 
 18-10-2023,People - Ageing Well,Lodge Group Care UK Ltd,Home Care - Private Contractors Payment,519.44,0.00,COMMERCIAL SUPPLIER 
 18-10-2023,People - Ageing Well,Lodge Group Care UK Ltd,Home Care - Private Contractors Payment,1612.54,0.00,COMMERCIAL SUPPLIER 
 18-10-2023,People - Ageing Well,Lodge Group Care UK Ltd,Home Care - Private Contractors Payment,1395.62,0.00,COMMERCIAL SUPPLIER 
 18-10-2023,People - Ageing Well,Lodge Group Care UK Ltd,Home Care - Private Contractors Payment,1402.90,0.00,COMMERCIAL SUPPLIER 
 18-10-2023,People - Ageing Well,Lodge Group Care UK Ltd,Home Care - Private Contractors Payment,569.68,0.00,COMMERCIAL SUPPLIER 
 18-10-2023,People - Ageing Well,Lodge Group Care UK Ltd,Home Care - Private Contractors Payment,569.68,0.00,COMMERCIAL SUPPLIER 
 18-10-2023,People - Ageing Well,Lodge Group Care UK Ltd,Home Care - Private Contractors Payment,1223.08,0.00,COMMERCIAL SUPPLIER 
 18-10-2023,People - Ageing Well,Lodge Group Care UK Ltd,Home Care - Private Contractors Payment,1201.24,0.00,COMMERCIAL SUPPLIER 
 18-10-2023,People - Ageing Well,Lodge Group Care UK Ltd,Home Care - Private Contractors Payment,1201.24,0.00,COMMERCIAL SUPPLIER 
 18-10-2023,People - Ageing Well,Lodge Group Care UK Ltd,Home Care - Private Contractors Payment,927.87,0.00,COMMERCIAL SUPPLIER 
 18-10-2023,People - Ageing Well,Lodge Group Care UK Ltd,Home Care - Private Contractors Payment,927.87,0.00,COMMERCIAL SUPPLIER 
 18-10-2023,People - Ageing Well,Lodge Group Care UK Ltd,Home Care - Private Contractors Payment,600.62,0.00,COMMERCIAL SUPPLIER 
 18-10-2023,People - Ageing Well,Lodge Group Care UK Ltd,Home Care - Private Contractors Payment,600.62,0.00,COMMERCIAL SUPPLIER 
 18-10-2023,People - Ageing Well,Lodge Group Care UK Ltd,Home Care - Private Contractors Payment,933.69,0.00,COMMERCIAL SUPPLIER 
 18-10-2023,People - Ageing Well,Lodge Group Care UK Ltd,Home Care - Private Contractors Payment,1258.03,0.00,COMMERCIAL SUPPLIER 
 18-10-2023,People - Ageing Well,Lodge Group Care UK Ltd,Home Care - Private Contractors Payment,1266.04,0.00,COMMERCIAL SUPPLIER 
 18-10-2023,People - Ageing Well,Lodge Group Care UK Ltd,Home Care - Private Contractors Payment,920.95,0.00,COMMERCIAL SUPPLIER 
 18-10-2023,People - Ageing Well,Lodge Group Care UK Ltd,Home Care - Private Contractors Payment,657.41,0.00,COMMERCIAL SUPPLIER 
 18-10-2023,People - Ageing Well,Lodge Group Care UK Ltd,Home Care - Private Contractors Payment,1144.45,0.00,COMMERCIAL SUPPLIER 
 18-10-2023,People - Ageing Well,Lodge Group Care UK Ltd,Home Care - Private Contractors Payment,1249.66,0.00,COMMERCIAL SUPPLIER 
 18-10-2023,People - Ageing Well,Lodge Group Care UK Ltd,Home Care - Private Contractors Payment,1497.18,0.00,COMMERCIAL SUPPLIER 
 18-10-2023,People - Ageing Well,Lodge Group Care UK Ltd,Home Care - Private Contractors Payment,1223.08,0.00,COMMERCIAL SUPPLIER 
 18-10-2023,People - Ageing Well,Lodge Group Care UK Ltd,Home Care - Private Contractors Payment,925.68,0.00,COMMERCIAL SUPPLIER 
 18-10-2023,People - Ageing Well,Lodge Group Care UK Ltd,Home Care - Private Contractors Payment,943.89,0.00,COMMERCIAL SUPPLIER 
 18-10-2023,People - Ageing Well,Lodge Group Care UK Ltd,Home Care - Private Contractors Payment,944.25,0.00,COMMERCIAL SUPPLIER 
 18-10-2023,People - Ageing Well,Lodge Group Care UK Ltd,Home Care - Private Contractors Payment,1463.33,0.00,COMMERCIAL SUPPLIER 
 18-10-2023,People - Ageing Well,Lodge Group Care UK Ltd,Home Care - Private Contractors Payment,649.04,0.00,COMMERCIAL SUPPLIER 
 18-10-2023,People - Ageing Well,Lodge Group Care UK Ltd,Home Care - Private Contractors Payment,994.12,0.00,COMMERCIAL SUPPLIER 
 18-10-2023,People - Ageing Well,Lodge Group Care UK Ltd,Home Care - Private Contractors Payment,1250.02,0.00,COMMERCIAL SUPPLIER 
 18-10-2023,People - Ageing Well,Lodge Group Care UK Ltd,Home Care - Private Contractors Payment,615.91,0.00,COMMERCIAL SUPPLIER 
 18-10-2023,People - Ageing Well,Lodge Group Care UK Ltd,Home Care - Private Contractors Payment,1232.55,0.00,COMMERCIAL SUPPLIER 
 18-10-2023,People - Ageing Well,Lodge Group Care UK Ltd,Home Care - Private Contractors Payment,1922.70,0.00,COMMERCIAL SUPPLIER 
 18-10-2023,People - Ageing Well,Lodge Group Care UK Ltd,Home Care - Private Contractors Payment,924.59,0.00,COMMERCIAL SUPPLIER 
 18-10-2023,People - Ageing Well,Lodge Group Care UK Ltd,Home Care - Private Contractors Payment,925.69,0.00,COMMERCIAL SUPPLIER 
 18-10-2023,People - Ageing Well,Lodge Group Care UK Ltd,Home Care - Private Contractors Payment,873.63,0.00,COMMERCIAL SUPPLIER 
 18-10-2023,People - Ageing Well,Lodge Group Care UK Ltd,Home Care - Private Contractors Payment,884.19,0.00,COMMERCIAL SUPPLIER 
 18-10-2023,People - Ageing Well,Lodge Group Care UK Ltd,Home Care - Private Contractors Payment,1217.62,0.00,COMMERCIAL SUPPLIER 
 18-10-2023,People - Ageing Well,Lodge Group Care UK Ltd,Home Care - Private Contractors Payment,928.60,0.00,COMMERCIAL SUPPLIER 
 18-10-2023,People - Ageing Well,Lodge Group Care UK Ltd,Home Care - Private Contractors Payment,917.31,0.00,COMMERCIAL SUPPLIER 
 18-10-2023,People - Ageing Well,Lodge Group Care UK Ltd,Home Care - Private Contractors Payment,917.31,0.00,COMMERCIAL SUPPLIER 
 18-10-2023,People - Ageing Well,Lodge Group Care UK Ltd,Home Care - Private Contractors Payment,1225.63,0.00,COMMERCIAL SUPPLIER 
 18-10-2023,People - Ageing Well,Lodge Group Care UK Ltd,Home Care - Private Contractors Payment,1226.00,0.00,COMMERCIAL SUPPLIER 
 18-10-2023,People - Ageing Well,Lodge Group Care UK Ltd,Home Care - Private Contractors Payment,615.18,0.00,COMMERCIAL SUPPLIER 
 18-10-2023,People - Ageing Well,Lodge Group Care UK Ltd,Home Care - Private Contractors Payment,957.71,0.00,COMMERCIAL SUPPLIER 
 18-10-2023,People - Ageing Well,Lodge Group Care UK Ltd,Home Care - Private Contractors Payment,616.64,0.00,COMMERCIAL SUPPLIER 
 18-10-2023,People - Ageing Well,Lodge Group Care UK Ltd,Home Care - Private Contractors Payment,616.64,0.00,COMMERCIAL SUPPLIER 
 18-10-2023,People - Ageing Well,Lodge Group Care UK Ltd,Home Care - Private Contractors Payment,614.45,0.00,COMMERCIAL SUPPLIER 
 18-10-2023,People - Ageing Well,Lodge Group Care UK Ltd,Home Care - Private Contractors Payment,1228.18,0.00,COMMERCIAL SUPPLIER 
 18-10-2023,People - Ageing Well,Lodge Group Care UK Ltd,Home Care - Private Contractors Payment,611.54,0.00,COMMERCIAL SUPPLIER 
 18-10-2023,People - Ageing Well,Lodge Group Care UK Ltd,Home Care - Private Contractors Payment,1223.08,0.00,COMMERCIAL SUPPLIER 
 18-10-2023,People - Ageing Well,Lodge Group Care UK Ltd,Home Care - Private Contractors Payment,2009.33,0.00,COMMERCIAL SUPPLIER 
 18-10-2023,People - Ageing Well,Lodge Group Care UK Ltd,Home Care - Private Contractors Payment,585.33,0.00,COMMERCIAL SUPPLIER 
 18-10-2023,People - Ageing Well,Lodge Group Care UK Ltd,Home Care - Private Contractors Payment,786.27,0.00,COMMERCIAL SUPPLIER 
 18-10-2023,People - Ageing Well,Lodge Group Care UK Ltd,Home Care - Private Contractors Payment,547.84,0.00,COMMERCIAL SUPPLIER 
 18-10-2023,People - Ageing Well,Lodge Group Care UK Ltd,Home Care - Private Contractors Payment,627.92,0.00,COMMERCIAL SUPPLIER 
 18-10-2023,People - Ageing Well,Lodge Group Care UK Ltd,Home Care - Private Contractors Payment,1333.38,0.00,COMMERCIAL SUPPLIER 
 18-10-2023,People - Ageing Well,Lodge Group Care UK Ltd,Home Care - Private Contractors Payment,1339.20,0.00,COMMERCIAL SUPPLIER 
 18-10-2023,People - Ageing Well,Lodge Group Care UK Ltd,Home Care - Private Contractors Payment,892.90,0.00,COMMERCIAL SUPPLIER 
 18-10-2023,People - Ageing Well,Lodge Group Care UK Ltd,Home Care - Private Contractors Payment,1310.81,0.00,COMMERCIAL SUPPLIER 
 18-10-2023,People - Ageing Well,Lodge Group Care UK Ltd,Home Care - Private Contractors Payment,1206.70,0.00,COMMERCIAL SUPPLIER 
 18-10-2023,People - Ageing Well,Lodge Group Care UK Ltd,Home Care - Private Contractors Payment,1236.55,0.00,COMMERCIAL SUPPLIER 
 18-10-2023,People - Ageing Well,Lodge Group Care UK Ltd,Home Care - Private Contractors Payment,1169.21,0.00,COMMERCIAL SUPPLIER 
 18-10-2023,People - Ageing Well,Lodge Group Care UK Ltd,Home Care - Private Contractors Payment,906.39,0.00,COMMERCIAL SUPPLIER 
 18-10-2023,People - Ageing Well,Lodge Group Care UK Ltd,Home Care - Private Contractors Payment,611.54,0.00,COMMERCIAL SUPPLIER 
 18-10-2023,People - Ageing Well,Lodge Group Care UK Ltd,Home Care - Private Contractors Payment,1301.34,0.00,COMMERCIAL SUPPLIER 
 18-10-2023,People - Ageing Well,Lodge Group Care UK Ltd,Home Care - Private Contractors Payment,1306.44,0.00,COMMERCIAL SUPPLIER 
 18-10-2023,People - Ageing Well,Lodge Group Care UK Ltd,Home Care - Private Contractors Payment,614.09,0.00,COMMERCIAL SUPPLIER 
 18-10-2023,People - Ageing Well,Lodge Group Care UK Ltd,Home Care - Private Contractors Payment,1224.90,0.00,COMMERCIAL SUPPLIER 
 18-10-2023,People - Ageing Well,Lodge Group Care UK Ltd,Home Care - Private Contractors Payment,1224.90,0.00,COMMERCIAL SUPPLIER 
 18-10-2023,People - Ageing Well,Lodge Group Care UK Ltd,Home Care - Private Contractors Payment,616.27,0.00,COMMERCIAL SUPPLIER 
 18-10-2023,People - Ageing Well,Lodge Group Care UK Ltd,Home Care - Private Contractors Payment,1225.27,0.00,COMMERCIAL SUPPLIER 
 18-10-2023,People - Ageing Well,Lodge Group Care UK Ltd,Home Care - Private Contractors Payment,1574.71,0.00,COMMERCIAL SUPPLIER 
 18-10-2023,People - Ageing Well,Lodge Group Care UK Ltd,Home Care - Private Contractors Payment,753.51,0.00,COMMERCIAL SUPPLIER 
 18-10-2023,People - Ageing Well,Lodge Group Care UK Ltd,Home Care - Private Contractors Payment,611.54,0.00,COMMERCIAL SUPPLIER 
 18-10-2023,People - Ageing Well,Lodge Group Care UK Ltd,Home Care - Private Contractors Payment,952.26,0.00,COMMERCIAL SUPPLIER 
 18-10-2023,People - Ageing Well,Lodge Group Care UK Ltd,Home Care - Private Contractors Payment,923.50,0.00,COMMERCIAL SUPPLIER 
 18-10-2023,People - Ageing Well,Lodge Group Care UK Ltd,Home Care - Private Contractors Payment,614.82,0.00,COMMERCIAL SUPPLIER 
 18-10-2023,People - Ageing Well,Lodge Group Care UK Ltd,Home Care - Private Contractors Payment,1080.38,0.00,COMMERCIAL SUPPLIER 
 18-10-2023,People - Ageing Well,Lodge Group Care UK Ltd,Home Care - Private Contractors Payment,1168.11,0.00,COMMERCIAL SUPPLIER 
 18-10-2023,People - Ageing Well,Lodge Group Care UK Ltd,Home Care - Private Contractors Payment,1344.30,0.00,COMMERCIAL SUPPLIER 
 18-10-2023,People - Ageing Well,Lodge Group Care UK Ltd,Home Care - Private Contractors Payment,1237.28,0.00,COMMERCIAL SUPPLIER 
 18-10-2023,People - Ageing Well,Lodge Group Care UK Ltd,Home Care - Private Contractors Payment,1239.46,0.00,COMMERCIAL SUPPLIER 
 18-10-2023,People - Ageing Well,Lodge Group Care UK Ltd,Home Care - Private Contractors Payment,525.98,0.00,COMMERCIAL SUPPLIER 
 18-10-2023,People - Ageing Well,Lodge Group Care UK Ltd,Home Care - Private Contractors Payment,1223.08,0.00,COMMERCIAL SUPPLIER 
 18-10-2023,People - Ageing Well,Lodge Group Care UK Ltd,Home Care - Private Contractors Payment,1908.87,0.00,COMMERCIAL SUPPLIER 
 18-10-2023,People - Ageing Well,Lodge Group Care UK Ltd,Home Care - Private Contractors Payment,745.86,0.00,COMMERCIAL SUPPLIER 
 18-10-2023,People - Ageing Well,Lodge Group Care UK Ltd,Home Care - Private Contractors Payment,623.55,0.00,COMMERCIAL SUPPLIER 
 18-10-2023,People - Ageing Well,Lodge Group Care UK Ltd,Home Care - Private Contractors Payment,615.55,0.00,COMMERCIAL SUPPLIER 
 18-10-2023,People - Ageing Well,Lodge Group Care UK Ltd,Home Care - Private Contractors Payment,615.91,0.00,COMMERCIAL SUPPLIER 
 18-10-2023,People - Ageing Well,Lodge Group Care UK Ltd,Home Care - Private Contractors Payment,1201.24,0.00,COMMERCIAL SUPPLIER 
 18-10-2023,People - Ageing Well,Lodge Group Care UK Ltd,Home Care - Private Contractors Payment,1201.24,0.00,COMMERCIAL SUPPLIER 
 18-10-2023,People - Ageing Well,Lodge Group Care UK Ltd,Home Care - Private Contractors Payment,918.04,0.00,COMMERCIAL SUPPLIER 
 18-10-2023,People - Ageing Well,Lodge Group Care UK Ltd,Home Care - Private Contractors Payment,923.87,0.00,COMMERCIAL SUPPLIER 
 18-10-2023,People - Ageing Well,Lodge Group Care UK Ltd,Home Care - Private Contractors Payment,930.42,0.00,COMMERCIAL SUPPLIER 
 18-10-2023,People - Ageing Well,Lodge Group Care UK Ltd,Home Care - Private Contractors Payment,611.54,0.00,COMMERCIAL SUPPLIER 
 18-10-2023,People - Ageing Well,Lodge Group Care UK Ltd,Home Care - Private Contractors Payment,612.27,0.00,COMMERCIAL SUPPLIER 
 18-10-2023,People - Ageing Well,Lodge Group Care UK Ltd,Home Care - Private Contractors Payment,1631.13,0.00,COMMERCIAL SUPPLIER 
 18-10-2023,People - Ageing Well,Lodge Group Care UK Ltd,Home Care - Private Contractors Payment,633.38,0.00,COMMERCIAL SUPPLIER 
 18-10-2023,People - Ageing Well,Lodge Group Care UK Ltd,Home Care - Private Contractors Payment,769.52,0.00,COMMERCIAL SUPPLIER 
 18-10-2023,People - Ageing Well,Lodge Group Care UK Ltd,Home Care - Private Contractors Payment,1113.15,0.00,COMMERCIAL SUPPLIER 
 18-10-2023,People - Ageing Well,Lodge Group Care UK Ltd,Home Care - Private Contractors Payment,1155.38,0.00,COMMERCIAL SUPPLIER 
 18-10-2023,People - Ageing Well,Lodge Group Care UK Ltd,Home Care - Private Contractors Payment,1155.74,0.00,COMMERCIAL SUPPLIER 
 18-10-2023,People - Ageing Well,Lodge Group Care UK Ltd,Home Care - Private Contractors Payment,919.86,0.00,COMMERCIAL SUPPLIER 
 18-10-2023,People - Ageing Well,Lodge Group Care UK Ltd,Home Care - Private Contractors Payment,1245.65,0.00,COMMERCIAL SUPPLIER 
 18-10-2023,People - Ageing Well,Lodge Group Care UK Ltd,Home Care - Private Contractors Payment,1247.47,0.00,COMMERCIAL SUPPLIER 
 18-10-2023,People - Ageing Well,Lodge Group Care UK Ltd,Home Care - Private Contractors Payment,772.80,0.00,COMMERCIAL SUPPLIER 
 18-10-2023,People - Ageing Well,Lodge Group Care UK Ltd,Home Care - Private Contractors Payment,1223.08,0.00,COMMERCIAL SUPPLIER 
 18-10-2023,People - Ageing Well,Lodge Group Care UK Ltd,Home Care - Private Contractors Payment,1223.08,0.00,COMMERCIAL SUPPLIER 
 18-10-2023,People - Ageing Well,Lodge Group Care UK Ltd,Home Care - Private Contractors Payment,926.05,0.00,COMMERCIAL SUPPLIER 
 18-10-2023,People - Ageing Well,Lodge Group Care UK Ltd,Home Care - Private Contractors Payment,926.05,0.00,COMMERCIAL SUPPLIER 
 18-10-2023,People - Ageing Well,Lodge Group Care UK Ltd,Home Care - Private Contractors Payment,1263.49,0.00,COMMERCIAL SUPPLIER 
 18-10-2023,People - Ageing Well,Lodge Group Care UK Ltd,Home Care - Private Contractors Payment,927.87,0.00,COMMERCIAL SUPPLIER 
 18-10-2023,People - Ageing Well,Lodge Group Care UK Ltd,Home Care - Private Contractors Payment,575.14,0.00,COMMERCIAL SUPPLIER 
 18-10-2023,People - Ageing Well,Lodge Group Care UK Ltd,Home Care - Private Contractors Payment,1204.52,0.00,COMMERCIAL SUPPLIER 
 18-10-2023,People - Ageing Well,Lodge Group Care UK Ltd,Home Care - Private Contractors Payment,1205.25,0.00,COMMERCIAL SUPPLIER 
 18-10-2023,People - Ageing Well,Prior Care Ltd_a,Home Care - Private Contractors Payment,524.18,0.00,COMMERCIAL SUPPLIER 
 18-10-2023,People - Ageing Well,Prior Care Ltd_a,Home Care - Private Contractors Payment,514.35,0.00,COMMERCIAL SUPPLIER 
 18-10-2023,People - Ageing Well,Prior Care Ltd_a,Home Care - Private Contractors Payment,644.30,0.00,COMMERCIAL SUPPLIER 
 18-10-2023,People - Ageing Well,Prior Care Ltd_a,Home Care - Private Contractors Payment,1237.28,0.00,COMMERCIAL SUPPLIER 
 18-10-2023,People - Ageing Well,Prior Care Ltd_a,Home Care - Private Contractors Payment,555.48,0.00,COMMERCIAL SUPPLIER 
 18-10-2023,People - Ageing Well,Prior Care Ltd_a,Home Care - Private Contractors Payment,720.74,0.00,COMMERCIAL SUPPLIER 
 18-10-2023,People - Ageing Well,Prior Care Ltd_a,Home Care - Private Contractors Payment,1243.83,0.00,COMMERCIAL SUPPLIER 
 18-10-2023,People - Ageing Well,Prior Care Ltd_a,Home Care - Private Contractors Payment,1124.07,0.00,COMMERCIAL SUPPLIER 
 18-10-2023,People - Ageing Well,Prior Care Ltd_a,Home Care - Private Contractors Payment,1203.43,0.00,COMMERCIAL SUPPLIER 
 18-10-2023,People - Ageing Well,Prior Care Ltd_a,Home Care - Private Contractors Payment,528.91,0.00,COMMERCIAL SUPPLIER 
 18-10-2023,People - Ageing Well,Prior Care Ltd_a,Home Care - Private Contractors Payment,1489.53,0.00,COMMERCIAL SUPPLIER 
 18-10-2023,People - Ageing Well,Prior Care Ltd_a,Home Care - Private Contractors Payment,1240.92,0.00,COMMERCIAL SUPPLIER 
 18-10-2023,People - Ageing Well,Prior Care Ltd_a,Home Care - Private Contractors Payment,1180.13,0.00,COMMERCIAL SUPPLIER 
 18-10-2023,People - Ageing Well,Prior Care Ltd_a,Home Care - Private Contractors Payment,1194.69,0.00,COMMERCIAL SUPPLIER 
 18-10-2023,People - Ageing Well,Prior Care Ltd_a,Home Care - Private Contractors Payment,1238.37,0.00,COMMERCIAL SUPPLIER 
 18-10-2023,People - Ageing Well,Prior Care Ltd_a,Home Care - Private Contractors Payment,959.53,0.00,COMMERCIAL SUPPLIER 
 18-10-2023,People - Ageing Well,Prior Care Ltd_a,Home Care - Private Contractors Payment,1152.47,0.00,COMMERCIAL SUPPLIER 
 18-10-2023,People - Ageing Well,Prior Care Ltd_a,Home Care - Private Contractors Payment,1304.99,0.00,COMMERCIAL SUPPLIER 
 18-10-2023,People - Ageing Well,Prior Care Ltd_a,Home Care - Private Contractors Payment,622.46,0.00,COMMERCIAL SUPPLIER 
 18-10-2023,People - Ageing Well,Prior Care Ltd_a,Home Care - Private Contractors Payment,1212.16,0.00,COMMERCIAL SUPPLIER 
 18-10-2023,People - Ageing Well,Prior Care Ltd_a,Home Care - Private Contractors Payment,1181.22,0.00,COMMERCIAL SUPPLIER 
 18-10-2023,People - Ageing Well,Prior Care Ltd_a,Home Care - Private Contractors Payment,1278.41,0.00,COMMERCIAL SUPPLIER 
 18-10-2023,People - Ageing Well,Prior Care Ltd_a,Home Care - Private Contractors Payment,592.25,0.00,COMMERCIAL SUPPLIER 
 18-10-2023,People - Ageing Well,Prior Care Ltd_a,Home Care - Private Contractors Payment,1179.04,0.00,COMMERCIAL SUPPLIER 
 18-10-2023,People - Ageing Well,Prior Care Ltd_a,Home Care - Private Contractors Payment,511.07,0.00,COMMERCIAL SUPPLIER 
 18-10-2023,People - Ageing Well,Matrix SCM Ltd,Agency Staff,1209.60,0.00,COMMERCIAL SUPPLIER 
 18-10-2023,People - Ageing Well,Matrix SCM Ltd,Agency Staff,724.77,0.00,COMMERCIAL SUPPLIER 
 18-10-2023,People - Ageing Well,Matrix SCM Ltd,Agency Staff,728.64,0.00,COMMERCIAL SUPPLIER 
 18-10-2023,People - Ageing Well,Matrix SCM Ltd,Agency Staff,778.44,0.00,COMMERCIAL SUPPLIER 
 18-10-2023,People - Ageing Well,Matrix SCM Ltd,Agency Staff,1288.10,0.00,COMMERCIAL SUPPLIER 
 18-10-2023,People - Ageing Well,Matrix SCM Ltd,Agency Staff,1323.36,0.00,COMMERCIAL SUPPLIER 
 18-10-2023,People - Ageing Well,Matrix SCM Ltd,Agency Staff,769.28,0.00,COMMERCIAL SUPPLIER 
 18-10-2023,People - Ageing Well,Matrix SCM Ltd,Agency Staff,651.72,0.00,COMMERCIAL SUPPLIER 
 18-10-2023,People - Ageing Well,Matrix SCM Ltd,Agency Staff,619.55,0.00,COMMERCIAL SUPPLIER 
 18-10-2023,People - Ageing Well,Matrix SCM Ltd,Agency Staff,602.66,0.00,COMMERCIAL SUPPLIER 
 18-10-2023,People - Ageing Well,Matrix SCM Ltd,Agency Staff,1395.73,0.00,COMMERCIAL SUPPLIER 
 18-10-2023,People - Ageing Well,Matrix SCM Ltd,Agency Staff,1277.28,0.00,COMMERCIAL SUPPLIER 
 18-10-2023,People - Ageing Well,Matrix SCM Ltd,Agency Staff,1169.28,0.00,COMMERCIAL SUPPLIER 
 18-10-2023,People - Ageing Well,Matrix SCM Ltd,Agency Staff,1275.49,0.00,COMMERCIAL SUPPLIER 
 18-10-2023,People - Ageing Well,Matrix SCM Ltd,Agency Staff,1241.28,0.00,COMMERCIAL SUPPLIER 
 18-10-2023,People - Ageing Well,Matrix SCM Ltd,Agency Staff,1241.28,0.00,COMMERCIAL SUPPLIER 
 18-10-2023,People - Ageing Well,Matrix SCM Ltd,Agency Staff,1275.49,0.00,COMMERCIAL SUPPLIER 
 18-10-2023,People - Ageing Well,Matrix SCM Ltd,Agency Staff,1253.54,0.00,COMMERCIAL SUPPLIER 
 18-10-2023,People - Ageing Well,Matrix SCM Ltd,Agency Staff,1025.72,0.00,COMMERCIAL SUPPLIER 
 18-10-2023,People - Ageing Well,Matrix SCM Ltd,Agency Staff,1252.11,0.00,COMMERCIAL SUPPLIER 
 18-10-2023,People - Ageing Well,Matrix SCM Ltd,Agency Staff,1252.11,0.00,COMMERCIAL SUPPLIER 
 18-10-2023,People - Ageing Well,Matrix SCM Ltd,Agency Staff,1274.05,0.00,COMMERCIAL SUPPLIER 
 18-10-2023,People - Ageing Well,Matrix SCM Ltd,Agency Staff,1241.28,0.00,COMMERCIAL SUPPLIER 
 18-10-2023,People - Ageing Well,Matrix SCM Ltd,Agency Staff,1241.28,0.00,COMMERCIAL SUPPLIER 
 18-10-2023,People - Ageing Well,Inna Care Ltd,Home Care - Private Contractors Payment,611.53,0.00,COMMERCIAL SUPPLIER 
 18-10-2023,People - Ageing Well,Inna Care Ltd,Home Care - Private Contractors Payment,1179.40,0.00,COMMERCIAL SUPPLIER 
 18-10-2023,People - Ageing Well,Inna Care Ltd,Home Care - Private Contractors Payment,611.54,0.00,COMMERCIAL SUPPLIER 
 18-10-2023,People - Ageing Well,Inna Care Ltd,Home Care - Private Contractors Payment,1616.21,0.00,COMMERCIAL SUPPLIER 
 18-10-2023,People - Ageing Well,Inna Care Ltd,Home Care - Private Contractors Payment,1616.21,0.00,COMMERCIAL SUPPLIER 
 18-10-2023,People - Ageing Well,Inna Care Ltd,Home Care - Private Contractors Payment,2446.12,0.00,COMMERCIAL SUPPLIER 
 18-10-2023,People - Ageing Well,Inna Care Ltd,Home Care - Private Contractors Payment,2446.12,0.00,COMMERCIAL SUPPLIER 
 18-10-2023,People - Ageing Well,Inna Care Ltd,Home Care - Private Contractors Payment,1375.96,0.00,COMMERCIAL SUPPLIER 
 18-10-2023,People - Ageing Well,Inna Care Ltd,Home Care - Private Contractors Payment,1375.96,0.00,COMMERCIAL SUPPLIER 
 18-10-2023,People - Ageing Well,Inna Care Ltd,Home Care - Private Contractors Payment,917.31,0.00,COMMERCIAL SUPPLIER 
 18-10-2023,People - Ageing Well,Inna Care Ltd,Home Care - Private Contractors Payment,611.54,0.00,COMMERCIAL SUPPLIER 
 18-10-2023,People - Ageing Well,Inna Care Ltd,Home Care - Private Contractors Payment,1223.06,0.00,COMMERCIAL SUPPLIER 
 18-10-2023,People - Ageing Well,Inna Care Ltd,Home Care - Private Contractors Payment,917.31,0.00,COMMERCIAL SUPPLIER 
 18-10-2023,People - Ageing Well,Inna Care Ltd,Home Care - Private Contractors Payment,917.31,0.00,COMMERCIAL SUPPLIER 
 18-10-2023,People - Ageing Well,Inna Care Ltd,Home Care - Private Contractors Payment,1004.68,0.00,COMMERCIAL SUPPLIER 
 18-10-2023,People - Ageing Well,Inna Care Ltd,Home Care - Private Contractors Payment,611.54,0.00,COMMERCIAL SUPPLIER 
 18-10-2023,People - Ageing Well,Inna Care Ltd,Home Care - Private Contractors Payment,917.31,0.00,COMMERCIAL SUPPLIER 
 18-10-2023,People - Ageing Well,Inna Care Ltd,Home Care - Private Contractors Payment,917.31,0.00,COMMERCIAL SUPPLIER 
 18-10-2023,People - Ageing Well,Inna Care Ltd,Home Care - Private Contractors Payment,611.54,0.00,COMMERCIAL SUPPLIER 
 18-10-2023,People - Ageing Well,Inna Care Ltd,Home Care - Private Contractors Payment,611.54,0.00,COMMERCIAL SUPPLIER 
 18-10-2023,People - Ageing Well,Inna Care Ltd,Home Care - Private Contractors Payment,611.54,0.00,COMMERCIAL SUPPLIER 
 20-10-2023,People - Ageing Well,Fountains Care Centre - Bondcare,Nursing Homes - Private Contractors Payment,3685.52,0.00,COMMERCIAL SUPPLIER 
 20-10-2023,People - Ageing Well,Fountains Care Centre - Bondcare,Nursing Homes - Private Contractors Payment,3920.00,0.00,COMMERCIAL SUPPLIER 
 20-10-2023,People - Ageing Well,Fountains Care Centre - Bondcare,Nursing Homes - Private Contractors Payment,2615.14,0.00,COMMERCIAL SUPPLIER 
 20-10-2023,People - Ageing Well,Fountains Care Centre - Bondcare,Nursing Homes - Private Contractors Payment,3010.32,0.00,COMMERCIAL SUPPLIER 
 20-10-2023,People - Ageing Well,Fountains Care Centre - Bondcare,Nursing Homes - Private Contractors Payment,3010.32,0.00,COMMERCIAL SUPPLIER 
 20-10-2023,People - Ageing Well,Fountains Care Centre - Bondcare,Nursing Homes - Private Contractors Payment,3920.00,0.00,COMMERCIAL SUPPLIER 
 20-10-2023,People - Ageing Well,Fountains Care Centre - Bondcare,Nursing Homes - Private Contractors Payment,3010.32,0.00,COMMERCIAL SUPPLIER 
 20-10-2023,People - Ageing Well,Fountains Care Centre - Bondcare,Nursing Homes - Private Contractors Payment,3010.32,0.00,COMMERCIAL SUPPLIER 
 20-10-2023,People - Ageing Well,Fountains Care Centre - Bondcare,Nursing Homes - Private Contractors Payment,6072.00,0.00,COMMERCIAL SUPPLIER 
 20-10-2023,People - Ageing Well,Fountains Care Centre - Bondcare,Nursing Homes - Private Contractors Payment,3400.00,0.00,COMMERCIAL SUPPLIER 
 20-10-2023,People - Ageing Well,Fountains Care Centre - Bondcare,Nursing Homes - Private Contractors Payment,2660.00,0.00,COMMERCIAL SUPPLIER 
 20-10-2023,People - Ageing Well,Fountains Care Centre - Bondcare,Nursing Homes - Private Contractors Payment,3920.00,0.00,COMMERCIAL SUPPLIER 
 20-10-2023,People - Ageing Well,Fountains Care Centre - Bondcare,Nursing Homes - Private Contractors Payment,3010.32,0.00,COMMERCIAL SUPPLIER 
 20-10-2023,People - Ageing Well,Fountains Care Centre - Bondcare,Nursing Homes - Private Contractors Payment,3010.32,0.00,COMMERCIAL SUPPLIER 
 20-10-2023,People - Ageing Well,Fountains Care Centre - Bondcare,Residential Placements - Private Contractors Payment,2802.40,0.00,COMMERCIAL SUPPLIER 
 20-10-2023,People - Ageing Well,Fountains Care Centre - Bondcare,Residential Placements - Private Contractors Payment,2802.40,0.00,COMMERCIAL SUPPLIER 
 20-10-2023,People - Ageing Well,Fountains Care Centre - Bondcare,Nursing Homes - Private Contractors Payment,968.57,0.00,COMMERCIAL SUPPLIER 
 20-10-2023,People - Ageing Well,Fountains Care Centre - Bondcare,Nursing Homes - Private Contractors Payment,3920.00,0.00,COMMERCIAL SUPPLIER 
 20-10-2023,People - Ageing Well,Fountains Care Centre - Bondcare,Nursing Homes - Private Contractors Payment,3010.32,0.00,COMMERCIAL SUPPLIER 
 20-10-2023,People - Ageing Well,Fountains Care Centre - Bondcare,Nursing Homes - Private Contractors Payment,3010.32,0.00,COMMERCIAL SUPPLIER 
 20-10-2023,People - Ageing Well,Fountains Care Centre - Bondcare,Nursing Homes - Private Contractors Payment,3010.32,0.00,COMMERCIAL SUPPLIER 
 20-10-2023,People - Ageing Well,Fountains Care Centre - Bondcare,Nursing Homes - Private Contractors Payment,3010.32,0.00,COMMERCIAL SUPPLIER 
 20-10-2023,People - Ageing Well,Fountains Care Centre - Bondcare,Nursing Homes - Private Contractors Payment,2856.64,0.00,COMMERCIAL SUPPLIER 
 20-10-2023,People - Ageing Well,Fountains Care Centre - Bondcare,Nursing Homes - Private Contractors Payment,3010.32,0.00,COMMERCIAL SUPPLIER 
 20-10-2023,People - Ageing Well,Fountains Care Centre - Bondcare,Nursing Homes - Private Contractors Payment,3010.32,0.00,COMMERCIAL SUPPLIER 
 20-10-2023,People - Ageing Well,Fountains Care Centre - Bondcare,Nursing Homes - Private Contractors Payment,3010.32,0.00,COMMERCIAL SUPPLIER 
 20-10-2023,People - Ageing Well,Fountains Care Centre - Bondcare,Nursing Homes - Private Contractors Payment,3010.32,0.00,COMMERCIAL SUPPLIER 
 20-10-2023,People - Ageing Well,Fountains Care Centre - Bondcare,Residential Placements - Private Contractors Payment,3085.80,0.00,COMMERCIAL SUPPLIER 
 20-10-2023,People - Ageing Well,Black Swan International Ltd - Belamacanda,Residential Placements - Private Contractors Payment,2752.28,0.00,COMMERCIAL SUPPLIER 
 20-10-2023,People - Ageing Well,Black Swan International Ltd - Belamacanda,Residential Placements - Private Contractors Payment,3843.36,0.00,COMMERCIAL SUPPLIER 
 20-10-2023,People - Ageing Well,Voyage Ltd - Solar-Grange Liss,Nursing Homes - Private Contractors Payment,5721.12,0.00,COMMERCIAL SUPPLIER 
 20-10-2023,People - Ageing Well,Havering Care Homes Ltd t/a Abbscross Nursing Home,Nursing Homes - Private Contractors Payment,3010.32,0.00,COMMERCIAL SUPPLIER 
 20-10-2023,People - Ageing Well,Havering Care Homes Ltd t/a Abbscross Nursing Home,Nursing Homes - Private Contractors Payment,3010.32,0.00,COMMERCIAL SUPPLIER 
 20-10-2023,People - Ageing Well,Havering Care Homes Ltd t/a Abbscross Nursing Home,Nursing Homes - Private Contractors Payment,3010.32,0.00,COMMERCIAL SUPPLIER 
 20-10-2023,People - Ageing Well,Havering Care Homes Ltd t/a Abbscross Nursing Home,Nursing Homes - Private Contractors Payment,3800.00,0.00,COMMERCIAL SUPPLIER 
 20-10-2023,People - Ageing Well,Havering Care Homes Ltd t/a Abbscross Nursing Home,Nursing Homes - Private Contractors Payment,2856.64,0.00,COMMERCIAL SUPPLIER 
 20-10-2023,People - Ageing Well,Havering Care Homes Ltd t/a Abbscross Nursing Home,Nursing Homes - Private Contractors Payment,3010.32,0.00,COMMERCIAL SUPPLIER 
 20-10-2023,People - Ageing Well,Havering Care Homes Ltd t/a Abbscross Nursing Home,Nursing Homes - Private Contractors Payment,4809.08,0.00,COMMERCIAL SUPPLIER 
 20-10-2023,People - Ageing Well,Havering Care Homes Ltd t/a Abbscross Nursing Home,Nursing Homes - Private Contractors Payment,4069.44,0.00,COMMERCIAL SUPPLIER 
 20-10-2023,People - Ageing Well,One Tree Estates Ltd t/a Ashbrook Nursing Home,Nursing Homes - Private Contractors Payment,4800.00,0.00,COMMERCIAL SUPPLIER 
 20-10-2023,People - Ageing Well,One Tree Estates Ltd t/a Ashbrook Nursing Home,Nursing Homes - Private Contractors Payment,4800.00,0.00,COMMERCIAL SUPPLIER 
 20-10-2023,People - Ageing Well,One Tree Estates Ltd t/a Ashbrook Nursing Home,Nursing Homes - Private Contractors Payment,4800.00,0.00,COMMERCIAL SUPPLIER 
 20-10-2023,People - Ageing Well,One Tree Estates Ltd t/a Ashbrook Nursing Home,Nursing Homes - Private Contractors Payment,3392.00,0.00,COMMERCIAL SUPPLIER 
 20-10-2023,People - Ageing Well,One Tree Estates Ltd t/a Ashbrook Nursing Home,Nursing Homes - Private Contractors Payment,12600.00,0.00,COMMERCIAL SUPPLIER 
 20-10-2023,People - Ageing Well,One Tree Estates Ltd t/a Ashbrook Nursing Home,Nursing Homes - Private Contractors Payment,3800.00,0.00,COMMERCIAL SUPPLIER 
 20-10-2023,People - Ageing Well,One Tree Estates Ltd t/a Ashbrook Nursing Home,Nursing Homes - Private Contractors Payment,3259.52,0.00,COMMERCIAL SUPPLIER 
 20-10-2023,People - Ageing Well,One Tree Estates Ltd t/a Ashbrook Nursing Home,Nursing Homes - Private Contractors Payment,3800.00,0.00,COMMERCIAL SUPPLIER 
 20-10-2023,People - Ageing Well,One Tree Estates Ltd t/a Ashbrook Nursing Home,Nursing Homes - Private Contractors Payment,4800.00,0.00,COMMERCIAL SUPPLIER 
 20-10-2023,People - Ageing Well,One Tree Estates Ltd t/a Ashbrook Nursing Home,Nursing Homes - Private Contractors Payment,3694.12,0.00,COMMERCIAL SUPPLIER 
 20-10-2023,People - Ageing Well,One Tree Estates Ltd t/a Ashbrook Nursing Home,Nursing Homes - Private Contractors Payment,12600.00,0.00,COMMERCIAL SUPPLIER 
 20-10-2023,People - Ageing Well,One Tree Estates Ltd t/a Ashbrook Nursing Home,Nursing Homes - Private Contractors Payment,3100.52,0.00,COMMERCIAL SUPPLIER 
 20-10-2023,People - Ageing Well,One Tree Estates Ltd t/a Ashbrook Nursing Home,Nursing Homes - Private Contractors Payment,2736.00,0.00,COMMERCIAL SUPPLIER 
 20-10-2023,People - Ageing Well,One Tree Estates Ltd t/a Ashbrook Nursing Home,Nursing Homes - Private Contractors Payment,8870.40,0.00,COMMERCIAL SUPPLIER 
 20-10-2023,People - Ageing Well,One Tree Estates Ltd t/a Ashbrook Nursing Home,Nursing Homes - Private Contractors Payment,8064.00,0.00,COMMERCIAL SUPPLIER 
 20-10-2023,People - Ageing Well,One Tree Estates Ltd t/a Ashbrook Nursing Home,Nursing Homes - Private Contractors Payment,3010.32,0.00,COMMERCIAL SUPPLIER 
 20-10-2023,People - Ageing Well,One Tree Estates Ltd t/a Ashbrook Nursing Home,Nursing Homes - Private Contractors Payment,3243.84,0.00,COMMERCIAL SUPPLIER 
 20-10-2023,People - Ageing Well,One Tree Estates Ltd t/a Ashbrook Nursing Home,Nursing Homes - Private Contractors Payment,15456.00,0.00,COMMERCIAL SUPPLIER 
 20-10-2023,People - Ageing Well,One Tree Estates Ltd t/a Ashbrook Nursing Home,Nursing Homes - Private Contractors Payment,3816.00,0.00,COMMERCIAL SUPPLIER 
 20-10-2023,People - Ageing Well,One Tree Estates Ltd t/a Ashbrook Nursing Home,Nursing Homes - Private Contractors Payment,3298.72,0.00,COMMERCIAL SUPPLIER 
 20-10-2023,People - Ageing Well,One Tree Estates Ltd t/a Ashbrook Nursing Home,Nursing Homes - Private Contractors Payment,3010.32,0.00,COMMERCIAL SUPPLIER 
 20-10-2023,People - Ageing Well,One Tree Estates Ltd t/a Ashbrook Nursing Home,Nursing Homes - Private Contractors Payment,3125.12,0.00,COMMERCIAL SUPPLIER 
 20-10-2023,People - Ageing Well,One Tree Estates Ltd t/a Ashbrook Nursing Home,Nursing Homes - Private Contractors Payment,4452.00,0.00,COMMERCIAL SUPPLIER 
 20-10-2023,People - Ageing Well,One Tree Estates Ltd t/a Ashbrook Nursing Home,Nursing Homes - Private Contractors Payment,3604.00,0.00,COMMERCIAL SUPPLIER 
 20-10-2023,People - Ageing Well,One Tree Estates Ltd t/a Ashbrook Nursing Home,Nursing Homes - Private Contractors Payment,15456.00,0.00,COMMERCIAL SUPPLIER 
 20-10-2023,People - Ageing Well,One Tree Estates Ltd t/a Ashbrook Nursing Home,Nursing Homes - Private Contractors Payment,4400.00,0.00,COMMERCIAL SUPPLIER 
 20-10-2023,People - Ageing Well,One Tree Estates Ltd t/a Ashbrook Nursing Home,Nursing Homes - Private Contractors Payment,685.71,0.00,COMMERCIAL SUPPLIER 
 20-10-2023,People - Ageing Well,One Tree Estates Ltd t/a Ashbrook Nursing Home,Nursing Homes - Private Contractors Payment,3259.52,0.00,COMMERCIAL SUPPLIER 
 20-10-2023,People - Ageing Well,One Tree Estates Ltd t/a Ashbrook Nursing Home,Nursing Homes - Private Contractors Payment,5649.80,0.00,COMMERCIAL SUPPLIER 
 20-10-2023,People - Ageing Well,One Tree Estates Ltd t/a Ashbrook Nursing Home,Nursing Homes - Private Contractors Payment,14784.00,0.00,COMMERCIAL SUPPLIER 
 20-10-2023,People - Ageing Well,One Tree Estates Ltd t/a Ashbrook Nursing Home,Nursing Homes - Private Contractors Payment,3604.00,0.00,COMMERCIAL SUPPLIER 
 20-10-2023,People - Ageing Well,One Tree Estates Ltd t/a Ashbrook Nursing Home,Nursing Homes - Private Contractors Payment,4600.00,0.00,COMMERCIAL SUPPLIER 
 20-10-2023,People - Ageing Well,One Tree Estates Ltd t/a Ashbrook Nursing Home,Nursing Homes - Private Contractors Payment,3600.00,0.00,COMMERCIAL SUPPLIER 
 20-10-2023,People - Ageing Well,One Tree Estates Ltd t/a Ashbrook Nursing Home,Nursing Homes - Private Contractors Payment,5200.00,0.00,COMMERCIAL SUPPLIER 
 20-10-2023,People - Ageing Well,One Tree Estates Ltd t/a Ashbrook Nursing Home,Nursing Homes - Private Contractors Payment,5512.00,0.00,COMMERCIAL SUPPLIER 
 20-10-2023,People - Ageing Well,One Tree Estates Ltd t/a Ashbrook Nursing Home,Nursing Homes - Private Contractors Payment,4000.00,0.00,COMMERCIAL SUPPLIER 
 20-10-2023,People - Ageing Well,One Tree Estates Ltd t/a Ashbrook Nursing Home,Nursing Homes - Private Contractors Payment,3010.32,0.00,COMMERCIAL SUPPLIER 
 20-10-2023,People - Ageing Well,Highfield Care Homes Ltd t/a Romford Grange Care Home,Residential Placements - Private Contractors Payment,2802.40,0.00,COMMERCIAL SUPPLIER 
 20-10-2023,People - Ageing Well,Highfield Care Homes Ltd t/a Romford Grange Care Home,Nursing Homes - Private Contractors Payment,3010.32,0.00,COMMERCIAL SUPPLIER 
 20-10-2023,People - Ageing Well,Highfield Care Homes Ltd t/a Romford Grange Care Home,Nursing Homes - Private Contractors Payment,2856.64,0.00,COMMERCIAL SUPPLIER 
 20-10-2023,People - Ageing Well,Highfield Care Homes Ltd t/a Romford Grange Care Home,Nursing Homes - Private Contractors Payment,2856.64,0.00,COMMERCIAL SUPPLIER 
 20-10-2023,People - Ageing Well,Highfield Care Homes Ltd t/a Romford Grange Care Home,Nursing Homes - Private Contractors Payment,2856.64,0.00,COMMERCIAL SUPPLIER 
 20-10-2023,People - Ageing Well,Highfield Care Homes Ltd t/a Romford Grange Care Home,Residential Placements - Private Contractors Payment,2530.96,0.00,COMMERCIAL SUPPLIER 
 20-10-2023,People - Ageing Well,Highfield Care Homes Ltd t/a Romford Grange Care Home,Respite Care - Private Contractors Payment,994.00,0.00,COMMERCIAL SUPPLIER 
